Workbook

Sheet Grafici Portfolio Insurance

Sheet Moto Geom. Browniano
B2: Moto Geometrico Browniano
CY3: Valori del Montante di 100
B4: Numeri pseudo casuali estratti da una Normale standard
B5: 1 | C5: =+B5+1 -> 2 | D5: =+C5+1 -> 3 | E5: 4 | F5: 5 | G5: 6 | H5: 7 | I5: 8 | J5: 9 | K5: 10 | L5: 11 | M5: 12 | N5: 13 | O5: 14 | P5: 15 | Q5: 16 | R5: 17 | S5: 18 | T5: 19 | U5: 20 | V5: 21 | W5: 22 | X5: 23 | Y5: 24 | Z5: 25 | AA5: 26 | AB5: 27 | AC5: 28 | AD5: 29 | AE5: 30 | AF5: 31 | AG5: 32 | AH5: 33 | AI5: 34 | AJ5: 35 | AK5: 36 | AL5: 37 | AM5: 38 | AN5: 39 | AO5: 40 | AP5: 41 | AQ5: 42 | AR5: 43 | AS5: 44 | AT5: 45 | AU5: 46 | AV5: 47 | AW5: 48 | AX5: 49 | AY5: 50 | AZ5: 51 | BA5: 52 | BB5: 53 | BC5: 54 | BD5: 55 | BE5: 56 | BF5: 57 | BG5: 58 | BH5: 59 | BI5: 60 | BJ5: 61 | BK5: 62 | BL5: 63 | BM5: 64 | BN5: 65 | BO5: 66 | BP5: =+BO5+1 -> 67 | BQ5: 68 | BR5: 69 | BS5: 70 | BT5: 71 | BU5: 72 | BV5: 73 | BW5: 74 | BX5: 75 | BY5: 76 | BZ5: 77 | CA5: 78 | CB5: 79 | CC5: 80 | CD5: 81 | CE5: 82 | CF5: 83 | CG5: 84 | CH5: 85 | CI5: 86 | CJ5: 87 | CK5: 88 | CL5: 89 | CM5: 90 | CN5: 91 | CO5: 92 | CP5: 93 | CQ5: 94 | CR5: 95 | CS5: 96 | CT5: 97 | CU5: 98 | CV5: 99 | CW5: 100 | CY5: 1 | CZ5: =+CY5+1 -> 2 | DA5: =+CZ5+1 -> 3 | DB5: 4 | DC5: 5 | DD5: 6 | DE5: 7 | DF5: 8 | DG5: 9 | DH5: 10 | DI5: 11 | DJ5: 12 | DK5: 13 | DL5: 14 | DM5: 15 | DN5: 16 | DO5: 17 | DP5: 18 | DQ5: 19 | DR5: 20 | DS5: 21 | DT5: 22 | DU5: 23 | DV5: 24 | DW5: 25 | DX5: 26 | DY5: 27 | DZ5: 28 | EA5: 29 | EB5: 30 | EC5: 31 | ED5: 32 | EE5: 33 | EF5: 34 | EG5: 35 | EH5: 36 | EI5: 37 | EJ5: 38 | EK5: 39 | EL5: 40 | EM5: 41 | EN5: 42 | EO5: 43 | EP5: 44 | EQ5: 45 | ER5: 46 | ES5: 47 | ET5: 48 | EU5: 49 | EV5: 50 | EW5: 51 | EX5: 52 | EY5: 53 | EZ5: 54 | FA5: 55 | FB5: 56 | FC5: 57 | FD5: 58 | FE5: 59 | FF5: 60 | FG5: 61 | FH5: 62 | FI5: 63 | FJ5: 64 | FK5: 65 | FL5: 66 | FM5: =+FL5+1 -> 67 | FN5: 68 | FO5: 69 | FP5: 70 | FQ5: 71 | FR5: 72 | FS5: 73 | FT5: 74 | FU5: 75 | FV5: 76 | FW5: 77 | FX5: 78 | FY5: 79 | FZ5: 80 | GA5: 81 | GB5: 82 | GC5: 83 | GD5: 84 | GE5: 85 | GF5: 86 | GG5: 87 | GH5: 88 | GI5: 89 | GJ5: 90 | GK5: 91 | GL5: 92 | GM5: 93 | GN5: 94 | GO5: 95 | GP5: 96 | GQ5: 97 | GR5: 98 | GS5: 99 | GT5: 100
A6: 1 | B6: 0.66 | C6: -0.34 | D6: -0.15 | E6: -0.60 | F6: -0.15 | G6: -2.23 | H6: -0.13 | I6: -1.33 | J6: 0.16 | K6: 0.50 | L6: 1.32 | M6: -0.62 | N6: -0.75 | O6: 0.15 | P6: -0.23 | Q6: -0.21 | R6: 1.58 | S6: 0.04 | T6: -0.15 | U6: 1.83 | V6: -0.63 | W6: 1.27 | X6: -0.02 | Y6: -0.06 | Z6: 1.61 | AA6: 0.36 | AB6: 0.44 | AC6: -0.24 | AD6: 0.68 | AE6: -0.07 | AF6: -0.74 | AG6: -1.10 | AH6: 0.20 | AI6: -0.98 | AJ6: 1.94 | AK6: -0.13 | AL6: -1.59 | AM6: -0.34 | AN6: 0.96 | AO6: -0.38 | AP6: -0.65 | AQ6: -1.37 | AR6: 0.32 | AS6: -0.16 | AT6: 0.57 | AU6: -0.64 | AV6: -0.35 | AW6: 0.29 | AX6: -0.33 | AY6: 0.21 | AZ6: -2.47 | BA6: -0.07 | BB6: 0.25 | BC6: 2.12 | BD6: -1.53 | BE6: -1.56 | BF6: -2.30 | BG6: 1.17 | BH6: 2.37 | BI6: -0.39 | BJ6: -1.00 | BK6: 0.55 | BL6: 0.66 | BM6: -0.85 | BN6: 0.81 | BO6: 0.66 | BP6: -0.21 | BQ6: -1.55 | BR6: 1.01 | BS6: 0.76 | BT6: -0.35 | BU6: -0.69 | BV6: 0.86 | BW6: 0.35 | BX6: 0.56 | BY6: 2.09 | BZ6: 0.27 | CA6: -1.11 | CB6: 0.48 | CC6: -1.23 | CD6: 0.57 | CE6: -0.16 | CF6: 0.30 | CG6: 0.36 | CH6: 0.13 | CI6: -0.27 | CJ6: -1.35 | CK6: 2.12 | CL6: 1.60 | CM6: 1.05 | CN6: -1.48 | CO6: -1.12 | CP6: 0.53 | CQ6: 0.07 | CR6: -0.01 | CS6: 0.16 | CT6: -1.88 | CU6: -0.26 | CV6: -0.94 | CW6: -1.00 | CX6: 0 | CY6: 100.00 | CZ6: 100.00 | DA6: 100.00 | DB6: 100.00 | DC6: 100.00 | DD6: 100.00 | DE6: 100.00 | DF6: 100.00 | DG6: 100.00 | DH6: 100.00 | DI6: 100.00 | DJ6: 100.00 | DK6: 100.00 | DL6: 100.00 | DM6: 100.00 | DN6: 100.00 | DO6: 100.00 | DP6: 100.00 | DQ6: 100.00 | DR6: 100.00 | DS6: 100.00 | DT6: 100.00 | DU6: 100.00 | DV6: 100.00 | DW6: 100.00 | DX6: 100.00 | DY6: 100.00 | DZ6: 100.00 | EA6: 100.00 | EB6: 100.00 | EC6: 100.00 | ED6: 100.00 | EE6: 100.00 | EF6: 100.00 | EG6: 100.00 | EH6: 100.00 | EI6: 100.00 | EJ6: 100.00 | EK6: 100.00 | EL6: 100.00 | EM6: 100.00 | EN6: 100.00 | EO6: 100.00 | EP6: 100.00 | EQ6: 100.00 | ER6: 100.00 | ES6: 100.00 | ET6: 100.00 | EU6: 100.00 | EV6: 100.00 | EW6: 100.00 | EX6: 100.00 | EY6: 100.00 | EZ6: 100.00 | FA6: 100.00 | FB6: 100.00 | FC6: 100.00 | FD6: 100.00 | FE6: 100.00 | FF6: 100.00 | FG6: 100.00 | FH6: 100.00 | FI6: 100.00 | FJ6: 100.00 | FK6: 100.00 | FL6: 100.00 | FM6: 100.00 | FN6: 100.00 | FO6: 100.00 | FP6: 100.00 | FQ6: 100.00 | FR6: 100.00 | FS6: 100.00 | FT6: 100.00 | FU6: 100.00 | FV6: 100.00 | FW6: 100.00 | FX6: 100.00 | FY6: 100.00 | FZ6: 100.00 | GA6: 100.00 | GB6: 100.00 | GC6: 100.00 | GD6: 100.00 | GE6: 100.00 | GF6: 100.00 | GG6: 100.00 | GH6: 100.00 | GI6: 100.00 | GJ6: 100.00 | GK6: 100.00 | GL6: 100.00 | GM6: 100.00 | GN6: 100.00 | GO6: 100.00 | GP6: 100.00 | GQ6: 100.00 | GR6: 100.00 | GS6: 100.00 | GT6: 100.00
A7: =+A6+1 -> 2 | B7: 1.28 | C7: -0.85 | D7: -0.21 | E7: 1.32 | F7: -1.55 | G7: -1.76 | H7: -0.46 | I7: 0.48 | J7: 0.91 | K7: 0.45 | L7: -1.16 | M7: 1.24 | N7: -0.61 | O7: -0.16 | P7: -0.15 | Q7: -0.77 | R7: -1.20 | S7: -0.21 | T7: 1.73 | U7: -0.44 | V7: 0.65 | W7: 0.98 | X7: -0.45 | Y7: 0.64 | Z7: 0.51 | AA7: -0.64 | AB7: 0.69 | AC7: 0.45 | AD7: -0.72 | AE7: 0.16 | AF7: -0.94 | AG7: -0.83 | AH7: -1.27 | AI7: -0.69 | AJ7: -0.27 | AK7: -0.32 | AL7: -1.02 | AM7: -1.04 | AN7: -1.02 | AO7: 0.61 | AP7: -1.65 | AQ7: -1.83 | AR7: -0.09 | AS7: 1.06 | AT7: 0.30 | AU7: -1.27 | AV7: -0.96 | AW7: -0.31 | AX7: -1.58 | AY7: 2.55 | AZ7: -1.34 | BA7: -1.31 | BB7: 0.44 | BC7: -0.63 | BD7: 0.58 | BE7: 0.14 | BF7: -0.77 | BG7: 1.23 | BH7: 0.93 | BI7: 1.14 | BJ7: 0.32 | BK7: 0.97 | BL7: 1.17 | BM7: -1.62 | BN7: -1.24 | BO7: -0.86 | BP7: 0.61 | BQ7: 0.25 | BR7: -0.01 | BS7: 2.03 | BT7: -0.21 | BU7: 0.54 | BV7: 0.77 | BW7: -1.93 | BX7: 0.08 | BY7: 0.81 | BZ7: 0.28 | CA7: -1.25 | CB7: -1.81 | CC7: 0.46 | CD7: 1.45 | CE7: 0.61 | CF7: 1.51 | CG7: -0.93 | CH7: -0.56 | CI7: 0.59 | CJ7: 0.61 | CK7: -0.32 | CL7: -1.02 | CM7: -1.62 | CN7: -1.78 | CO7: -0.23 | CP7: 0.51 | CQ7: 1.79 | CR7: -0.58 | CS7: 2.07 | CT7: -0.36 | CU7: 1.85 | CV7: 1.23 | CW7: -0.19 | CX7: =+CX6+1 -> 1 | CY7: =+CY6*EXP(0.1-((0.15^2)/2)+0.15*B6) -> 120.59 | CZ7: =+CZ6*EXP(0.1-((0.15^2)/2)+0.15*C6) -> 103.92 | DA7: =+DA6*EXP(0.1-((0.15^2)/2)+0.15*D6) -> 106.93 | DB7: =+DB6*EXP(0.1-((0.15^2)/2)+0.15*E6) -> 99.86 | DC7: =+DC6*EXP(0.1-((0.15^2)/2)+0.15*F6) -> 106.78 | DD7: =+DD6*EXP(0.1-((0.15^2)/2)+0.15*G6) -> 78.17 | DE7: =+DE6*EXP(0.1-((0.15^2)/2)+0.15*H6) -> 107.11 | DF7: =+DF6*EXP(0.1-((0.15^2)/2)+0.15*I6) -> 89.53 | DG7: =+DG6*EXP(0.1-((0.15^2)/2)+0.15*J6) -> 111.88 | DH7: =+DH6*EXP(0.1-((0.15^2)/2)+0.15*K6) -> 117.85 | DI7: =+DI6*EXP(0.1-((0.15^2)/2)+0.15*L6) -> 133.15 | DJ7: =+DJ6*EXP(0.1-((0.15^2)/2)+0.15*M6) -> 99.59 | DK7: =+DK6*EXP(0.1-((0.15^2)/2)+0.15*N6) -> 97.68 | DL7: =+DL6*EXP(0.1-((0.15^2)/2)+0.15*O6) -> 111.71 | DM7: =+DM6*EXP(0.1-((0.15^2)/2)+0.15*P6) -> 105.55 | DN7: =+DN6*EXP(0.1-((0.15^2)/2)+0.15*Q6) -> 105.92 | DO7: =+DO6*EXP(0.1-((0.15^2)/2)+0.15*R6) -> 138.45 | DP7: =+DP6*EXP(0.1-((0.15^2)/2)+0.15*S6) -> 109.90 | DQ7: =+DQ6*EXP(0.1-((0.15^2)/2)+0.15*T6) -> 106.91 | DR7: =+DR6*EXP(0.1-((0.15^2)/2)+0.15*U6) -> 143.81 | DS7: =+DS6*EXP(0.1-((0.15^2)/2)+0.15*V6) -> 99.42 | DT7: =+DT6*EXP(0.1-((0.15^2)/2)+0.15*W6) -> 132.24 | DU7: =+DU6*EXP(0.1-((0.15^2)/2)+0.15*X6) -> 109.03 | DV7: =+DV6*EXP(0.1-((0.15^2)/2)+0.15*Y6) -> 108.23 | DW7: =+DW6*EXP(0.1-((0.15^2)/2)+0.15*Z6) -> 139.13 | DX7: =+DX6*EXP(0.1-((0.15^2)/2)+0.15*AA6) -> 115.39 | DY7: =+DY6*EXP(0.1-((0.15^2)/2)+0.15*AB6) -> 116.69 | DZ7: =+DZ6*EXP(0.1-((0.15^2)/2)+0.15*AC6) -> 105.49 | EA7: =+EA6*EXP(0.1-((0.15^2)/2)+0.15*AD6) -> 121.08 | EB7: =+EB6*EXP(0.1-((0.15^2)/2)+0.15*AE6) -> 108.16 | EC7: =+EC6*EXP(0.1-((0.15^2)/2)+0.15*AF6) -> 97.86 | ED7: =+ED6*EXP(0.1-((0.15^2)/2)+0.15*AG6) -> 92.69 | EE7: =+EE6*EXP(0.1-((0.15^2)/2)+0.15*AH6) -> 112.67 | EF7: =+EF6*EXP(0.1-((0.15^2)/2)+0.15*AI6) -> 94.32 | EG7: =+EG6*EXP(0.1-((0.15^2)/2)+0.15*AJ6) -> 146.18 | EH7: =+EH6*EXP(0.1-((0.15^2)/2)+0.15*AK6) -> 107.22 | EI7: =+EI6*EXP(0.1-((0.15^2)/2)+0.15*AL6) -> 86.12 | EJ7: =+EJ6*EXP(0.1-((0.15^2)/2)+0.15*AM6) -> 103.92 | EK7: =+EK6*EXP(0.1-((0.15^2)/2)+0.15*AN6) -> 126.15 | EL7: =+EL6*EXP(0.1-((0.15^2)/2)+0.15*AO6) -> 103.18 | EM7: =+EM6*EXP(0.1-((0.15^2)/2)+0.15*AP6) -> 99.07 | EN7: =+EN6*EXP(0.1-((0.15^2)/2)+0.15*AQ6) -> 89.03 | EO7: =+EO6*EXP(0.1-((0.15^2)/2)+0.15*AR6) -> 114.59 | EP7: =+EP6*EXP(0.1-((0.15^2)/2)+0.15*AS6) -> 106.63 | EQ7: =+EQ6*EXP(0.1-((0.15^2)/2)+0.15*AT6) -> 119.06 | ER7: =+ER6*EXP(0.1-((0.15^2)/2)+0.15*AU6) -> 99.32 | ES7: =+ES6*EXP(0.1-((0.15^2)/2)+0.15*AV6) -> 103.75 | ET7: =+ET6*EXP(0.1-((0.15^2)/2)+0.15*AW6) -> 114.07 | EU7: =+EU6*EXP(0.1-((0.15^2)/2)+0.15*AX6) -> 103.99 | EV7: =+EV6*EXP(0.1-((0.15^2)/2)+0.15*AY6) -> 112.82 | EW7: =+EW6*EXP(0.1-((0.15^2)/2)+0.15*AZ6) -> 75.40 | EX7: =+EX6*EXP(0.1-((0.15^2)/2)+0.15*BA6) -> 108.16 | EY7: =+EY6*EXP(0.1-((0.15^2)/2)+0.15*BB6) -> 113.40 | EZ7: =+EZ6*EXP(0.1-((0.15^2)/2)+0.15*BC6) -> 150.11 | FA7: =+FA6*EXP(0.1-((0.15^2)/2)+0.15*BD6) -> 86.93 | FB7: =+FB6*EXP(0.1-((0.15^2)/2)+0.15*BE6) -> 86.50 | FC7: =+FC6*EXP(0.1-((0.15^2)/2)+0.15*BF6) -> 77.34 | FD7: =+FD6*EXP(0.1-((0.15^2)/2)+0.15*BG6) -> 130.29 | FE7: =+FE6*EXP(0.1-((0.15^2)/2)+0.15*BH6) -> 156.03 | FF7: =+FF6*EXP(0.1-((0.15^2)/2)+0.15*BI6) -> 103.07 | FG7: =+FG6*EXP(0.1-((0.15^2)/2)+0.15*BJ6) -> 94.05 | FH7: =+FH6*EXP(0.1-((0.15^2)/2)+0.15*BK6) -> 118.64 | FI7: =+FI6*EXP(0.1-((0.15^2)/2)+0.15*BL6) -> 120.63 | FJ7: =+FJ6*EXP(0.1-((0.15^2)/2)+0.15*BM6) -> 96.17 | FK7: =+FK6*EXP(0.1-((0.15^2)/2)+0.15*BN6) -> 123.39 | FL7: =+FL6*EXP(0.1-((0.15^2)/2)+0.15*BO6) -> 120.66 | FM7: =+FM6*EXP(0.1-((0.15^2)/2)+0.15*BP6) -> 105.93 | FN7: =+FN6*EXP(0.1-((0.15^2)/2)+0.15*BQ6) -> 86.63 | FO7: =+FO6*EXP(0.1-((0.15^2)/2)+0.15*BR6) -> 127.21 | FP7: =+FP6*EXP(0.1-((0.15^2)/2)+0.15*BS6) -> 122.54 | FQ7: =+FQ6*EXP(0.1-((0.15^2)/2)+0.15*BT6) -> 103.68 | FR7: =+FR6*EXP(0.1-((0.15^2)/2)+0.15*BU6) -> 98.52 | FS7: =+FS6*EXP(0.1-((0.15^2)/2)+0.15*BV6) -> 124.38 | FT7: =+FT6*EXP(0.1-((0.15^2)/2)+0.15*BW6) -> 115.12 | FU7: =+FU6*EXP(0.1-((0.15^2)/2)+0.15*BX6) -> 118.79 | FV7: =+FV6*EXP(0.1-((0.15^2)/2)+0.15*BY6) -> 149.43 | FW7: =+FW6*EXP(0.1-((0.15^2)/2)+0.15*BZ6) -> 113.85 | FX7: =+FX6*EXP(0.1-((0.15^2)/2)+0.15*CA6) -> 92.57 | FY7: =+FY6*EXP(0.1-((0.15^2)/2)+0.15*CB6) -> 117.43 | FZ7: =+FZ6*EXP(0.1-((0.15^2)/2)+0.15*CC6) -> 90.89 | GA7: =+GA6*EXP(0.1-((0.15^2)/2)+0.15*CD6) -> 118.96 | GB7: =+GB6*EXP(0.1-((0.15^2)/2)+0.15*CE6) -> 106.75 | GC7: =+GC6*EXP(0.1-((0.15^2)/2)+0.15*CF6) -> 114.29 | GD7: =+GD6*EXP(0.1-((0.15^2)/2)+0.15*CG6) -> 115.29 | GE7: =+GE6*EXP(0.1-((0.15^2)/2)+0.15*CH6) -> 111.45 | GF7: =+GF6*EXP(0.1-((0.15^2)/2)+0.15*CI6) -> 104.91 | GG7: =+GG6*EXP(0.1-((0.15^2)/2)+0.15*CJ6) -> 89.28 | GH7: =+GH6*EXP(0.1-((0.15^2)/2)+0.15*CK6) -> 150.21 | GI7: =+GI6*EXP(0.1-((0.15^2)/2)+0.15*CL6) -> 138.88 | GJ7: =+GJ6*EXP(0.1-((0.15^2)/2)+0.15*CM6) -> 127.90 | GK7: =+GK6*EXP(0.1-((0.15^2)/2)+0.15*CN6) -> 87.55 | GL7: =+GL6*EXP(0.1-((0.15^2)/2)+0.15*CO6) -> 92.42 | GM7: =+GM6*EXP(0.1-((0.15^2)/2)+0.15*CP6) -> 118.37 | GN7: =+GN6*EXP(0.1-((0.15^2)/2)+0.15*CQ6) -> 110.49 | GO7: =+GO6*EXP(0.1-((0.15^2)/2)+0.15*CR6) -> 109.13 | GP7: =+GP6*EXP(0.1-((0.15^2)/2)+0.15*CS6) -> 111.96 | GQ7: =+GQ6*EXP(0.1-((0.15^2)/2)+0.15*CT6) -> 82.41 | GR7: =+GR6*EXP(0.1-((0.15^2)/2)+0.15*CU6) -> 105.15 | GS7: =+GS6*EXP(0.1-((0.15^2)/2)+0.15*CV6) -> 94.94 | GT7: =+GT6*EXP(0.1-((0.15^2)/2)+0.15*CW6) -> 94.09
A8: =+A7+1 -> 3 | B8: 0.79 | C8: 0.50 | D8: 1.11 | E8: 0.27 | F8: -0.63 | G8: -1.18 | H8: -0.96 | I8: -0.24 | J8: -0.27 | K8: -0.59 | L8: 0.83 | M8: -1.33 | N8: -1.60 | O8: 1.16 | P8: 1.94 | Q8: -0.31 | R8: -0.17 | S8: 1.73 | T8: -0.31 | U8: -0.26 | V8: -1.06 | W8: -1.72 | X8: 0.70 | Y8: -0.15 | Z8: -0.74 | AA8: 1.08 | AB8: 1.34 | AC8: 0.42 | AD8: -1.41 | AE8: -1.02 | AF8: -0.32 | AG8: 0.29 | AH8: 2.71 | AI8: 0.28 | AJ8: 0.79 | AK8: 0.99 | AL8: 0.14 | AM8: -0.17 | AN8: -0.65 | AO8: -0.51 | AP8: -0.29 | AQ8: 0.26 | AR8: 0.65 | AS8: 3.02 | AT8: 0.14 | AU8: -0.39 | AV8: 0.59 | AW8: -0.23 | AX8: -0.80 | AY8: 1.12 | AZ8: -0.81 | BA8: -0.74 | BB8: 0.32 | BC8: 0.89 | BD8: -0.30 | BE8: -1.89 | BF8: -0.55 | BG8: 0.22 | BH8: 0.90 | BI8: -0.92 | BJ8: -0.61 | BK8: 2.40 | BL8: 0.55 | BM8: 0.96 | BN8: -0.29 | BO8: -0.79 | BP8: 2.23 | BQ8: -0.81 | BR8: -0.08 | BS8: 0.67 | BT8: 0.55 | BU8: -2.28 | BV8: -0.56 | BW8: -0.75 | BX8: 0.50 | BY8: -0.89 | BZ8: -0.47 | CA8: 0.57 | CB8: 0.59 | CC8: 1.23 | CD8: -1.86 | CE8: 0.03 | CF8: -0.51 | CG8: 1.19 | CH8: 0.88 | CI8: 1.91 | CJ8: -0.43 | CK8: -1.06 | CL8: -0.77 | CM8: -0.33 | CN8: 0.22 | CO8: -2.02 | CP8: 0.57 | CQ8: -0.31 | CR8: -0.11 | CS8: 0.38 | CT8: -0.02 | CU8: -1.09 | CV8: 0.90 | CW8: 1.52 | CX8: =+CX7+1 -> 2 | CY8: 159.72 | CZ8: 99.99 | DA8: 113.19 | DB8: 133.06 | DC8: 92.49 | DD8: 65.60 | DE8: 109.32 | DF8: 105.17 | DG8: 140.21 | DH8: 137.76 | DI8: 122.23 | DJ8: 131.17 | DK8: 97.39 | DL8: 119.25 | DM8: 112.75 | DN8: 103.15 | DO8: 126.45 | DP8: 116.32 | DQ8: 151.37 | DR8: 147.17 | DS8: 119.69 | DT8: 167.49 | DU8: 111.43 | DV8: 130.18 | DW8: 164.06 | DX8: 114.63 | DY8: 141.47 | DZ8: 123.39 | EA8: 118.72 | EB8: 121.03 | EC8: 92.88 | ED8: 89.37 | EE8: 101.72 | EF8: 92.99 | EG8: 153.38 | EH8: 111.75 | EI8: 80.73 | EJ8: 97.23 | EK8: 118.23 | EL8: 123.57 | EM8: 84.54 | EN8: 73.97 | EO8: 123.62 | EP8: 136.54 | EQ8: 136.00 | ER8: 89.73 | ES8: 98.23 | ET8: 118.99 | EU8: 89.68 | EV8: 180.65 | EW8: 67.35 | EX8: 97.15 | EY8: 132.43 | EZ8: 149.30 | FA8: 103.65 | FB8: 96.53 | FC8: 75.30 | FD8: 171.21 | FE8: 196.17 | FF8: 133.69 | FG8: 107.75 | FH8: 149.91 | FI8: 157.06 | FJ8: 82.40 | FK8: 111.98 | FL8: 115.81 | FM8: 126.87 | FN8: 98.28 | FO8: 138.85 | FP8: 181.68 | FQ8: 109.78 | FR8: 116.71 | FS8: 152.46 | FT8: 94.12 | FU8: 131.38 | FV8: 184.35 | FW8: 129.76 | FX8: 83.81 | FY8: 97.80 | FZ8: 106.42 | GA8: 161.57 | GB8: 127.87 | GC8: 156.61 | GD8: 109.57 | GE8: 112.05 | GF8: 125.34 | GG8: 106.98 | GH8: 156.54 | GI8: 130.21 | GJ8: 109.54 | GK8: 73.22 | GL8: 97.61 | GM8: 139.68 | GN8: 157.84 | GO8: 109.38 | GP8: 166.80 | GQ8: 85.34 | GR8: 151.74 | GS8: 124.77 | GT8: 99.97
A9: 4 | B9: 0.29 | C9: 0.01 | D9: -0.08 | E9: 1.57 | F9: -1.36 | G9: -0.13 | H9: -2.73 | I9: 1.01 | J9: -1.95 | K9: -0.85 | L9: 0.12 | M9: -0.40 | N9: 0.17 | O9: -1.27 | P9: -0.60 | Q9: 0.75 | R9: 0.52 | S9: 0.78 | T9: -1.42 | U9: 0.41 | V9: 0.37 | W9: 0.21 | X9: -0.40 | Y9: -1.38 | Z9: 2.14 | AA9: 1.11 | AB9: -0.83 | AC9: 0.09 | AD9: -1.11 | AE9: -0.94 | AF9: -1.04 | AG9: 0.35 | AH9: -0.33 | AI9: 0.80 | AJ9: 0.01 | AK9: -0.19 | AL9: -1.69 | AM9: 0.59 | AN9: 0.14 | AO9: 0.18 | AP9: -1.14 | AQ9: 0.47 | AR9: 0.87 | AS9: -0.84 | AT9: 0.77 | AU9: -2.41 | AV9: -0.65 | AW9: 0.60 | AX9: -1.56 | AY9: -0.98 | AZ9: -1.29 | BA9: -0.36 | BB9: -0.09 | BC9: 0.70 | BD9: 0.64 | BE9: 0.42 | BF9: -0.21 | BG9: 0.43 | BH9: 0.19 | BI9: 1.18 | BJ9: -0.22 | BK9: -0.62 | BL9: -0.27 | BM9: -0.42 | BN9: 1.37 | BO9: -0.39 | BP9: 0.94 | BQ9: 0.52 | BR9: 0.56 | BS9: 0.41 | BT9: 0.74 | BU9: -0.33 | BV9: 1.10 | BW9: 0.52 | BX9: -1.07 | BY9: 0.83 | BZ9: 1.34 | CA9: 0.69 | CB9: 1.50 | CC9: 1.94 | CD9: -0.11 | CE9: 0.51 | CF9: 1.39 | CG9: 1.48 | CH9: 1.12 | CI9: 0.22 | CJ9: 1.60 | CK9: -0.07 | CL9: -1.04 | CM9: 0.36 | CN9: -0.76 | CO9: 1.96 | CP9: 0.56 | CQ9: 0.06 | CR9: -0.03 | CS9: -0.06 | CT9: -0.88 | CU9: 0.24 | CV9: -0.07 | CW9: 1.30 | CX9: 3 | CY9: 196.58 | CZ9: 117.78 | DA9: 146.12 | DB9: 151.46 | DC9: 92.02 | DD9: 60.03 | DE9: 103.49 | DF9: 110.84 | DG9: 147.08 | DH9: 137.70 | DI9: 151.17 | DJ9: 117.33 | DK9: 83.70 | DL9: 155.10 | DM9: 164.89 | DN9: 107.53 | DO9: 134.62 | DP9: 164.81 | DQ9: 157.85 | DR9: 154.76 | DS9: 111.54 | DT9: 141.38 | DU9: 135.21 | DV9: 139.14 | DW9: 160.57 | DX9: 147.29 | DY9: 188.88 | DZ9: 143.59 | EA9: 105.07 | EB9: 113.51 | EC9: 96.74 | ED9: 102.06 | EE9: 167.00 | EF9: 105.99 | EG9: 188.73 | EH9: 141.72 | EI9: 90.07 | EJ9: 103.59 | EK9: 117.23 | EL9: 125.15 | EM9: 88.39 | EN9: 84.05 | EO9: 148.82 | EP9: 234.82 | EQ9: 151.71 | ER9: 92.51 | ES9: 117.23 | ET9: 125.62 | EU9: 86.94 | EV9: 233.57 | EW9: 65.19 | EX9: 95.04 | EY9: 151.82 | EZ9: 186.46 | FA9: 108.23 | FB9: 79.49 | FC9: 75.80 | FD9: 193.51 | FE9: 245.28 | FF9: 127.35 | FG9: 107.44 | FH9: 234.79 | FI9: 186.43 | FJ9: 104.04 | FK9: 117.17 | FL9: 112.40 | FM9: 193.58 | FN9: 95.19 | FO9: 149.98 | FP9: 219.59 | FQ9: 130.38 | FR9: 90.54 | FS9: 153.18 | FT9: 91.91 | FU9: 154.80 | FV9: 176.19 | FW9: 132.17 | FX9: 99.70 | FY9: 116.70 | FZ9: 139.83 | GA9: 133.50 | GB9: 140.40 | GC9: 158.48 | GD9: 143.04 | GE9: 139.78 | GF9: 182.40 | GG9: 109.66 | GH9: 145.90 | GI9: 126.82 | GJ9: 113.92 | GK9: 82.73 | GL9: 78.83 | GM9: 166.34 | GN9: 164.65 | GO9: 117.51 | GP9: 192.85 | GQ9: 92.98 | GR9: 140.88 | GS9: 156.06 | GT9: 137.13
A10: 5 | B10: 1.34 | C10: -1.90 | D10: 0.22 | E10: 0.40 | F10: -0.66 | G10: -0.13 | H10: -0.78 | I10: -0.32 | J10: -0.05 | K10: -1.97 | L10: 0.00 | M10: -1.03 | N10: -0.75 | O10: 0.27 | P10: -1.35 | Q10: 1.81 | R10: -0.45 | S10: 1.38 | T10: 0.47 | U10: 0.31 | V10: -1.37 | W10: -0.49 | X10: 0.98 | Y10: -2.30 | Z10: 0.51 | AA10: -0.82 | AB10: 1.28 | AC10: 1.24 | AD10: 1.43 | AE10: 0.21 | AF10: 0.01 | AG10: -1.39 | AH10: 0.68 | AI10: 0.69 | AJ10: -0.03 | AK10: -0.71 | AL10: -1.30 | AM10: 0.76 | AN10: 0.62 | AO10: -1.40 | AP10: -0.53 | AQ10: 0.40 | AR10: 0.52 | AS10: -0.51 | AT10: -0.02 | AU10: 0.80 | AV10: -0.87 | AW10: 1.81 | AX10: 0.22 | AY10: 0.66 | AZ10: -0.89 | BA10: 0.34 | BB10: 1.39 | BC10: 1.09 | BD10: -1.15 | BE10: -1.34 | BF10: -0.51 | BG10: 0.59 | BH10: 0.34 | BI10: 0.96 | BJ10: 0.34 | BK10: -1.85 | BL10: -2.03 | BM10: -0.87 | BN10: 0.32 | BO10: 1.37 | BP10: -0.05 | BQ10: -0.40 | BR10: 1.96 | BS10: -0.87 | BT10: -0.20 | BU10: 1.93 | BV10: -0.14 | BW10: 0.37 | BX10: 0.81 | BY10: 1.18 | BZ10: -1.03 | CA10: 0.79 | CB10: 1.02 | CC10: -0.42 | CD10: 0.47 | CE10: -0.72 | CF10: -0.71 | CG10: -0.17 | CH10: -1.18 | CI10: -1.17 | CJ10: 1.00 | CK10: -0.76 | CL10: 0.73 | CM10: 0.40 | CN10: -0.76 | CO10: 1.60 | CP10: 0.26 | CQ10: -0.48 | CR10: -1.00 | CS10: -1.34 | CT10: -0.83 | CU10: 0.67 | CV10: -1.24 | CW10: 0.26 | CX10: 4 | CY10: 224.27 | CZ10: 128.88 | DA10: 157.78 | DB10: 209.50 | DC10: 81.96 | DD10: 64.33 | DE10: 75.14 | DF10: 140.95 | DG10: 119.91 | DH10: 132.47 | DI10: 168.21 | DJ10: 120.76 | DK10: 93.80 | DL10: 140.15 | DM10: 164.62 | DN10: 131.46 | DO10: 158.95 | DP10: 202.46 | DQ10: 139.35 | DR10: 179.96 | DS10: 128.81 | DT10: 159.42 | DU10: 139.22 | DV10: 123.54 | DW10: 241.73 | DX10: 190.08 | DY10: 182.15 | DZ10: 159.02 | EA10: 97.27 | EB10: 107.76 | EC10: 90.41 | ED10: 117.46 | EE10: 173.81 | EF10: 130.55 | EG10: 206.68 | EH10: 150.63 | EI10: 76.39 | EJ10: 123.63 | EK10: 130.92 | EL10: 140.49 | EM10: 81.46 | EN10: 98.53 | EO10: 185.42 | EP10: 226.36 | EQ10: 186.04 | ER10: 70.41 | ES10: 116.26 | ET10: 150.25 | EU10: 75.21 | EV10: 220.50 | EW10: 58.68 | EX10: 98.42 | EY10: 163.66 | EZ10: 226.36 | FA10: 130.14 | FB10: 92.58 | FC10: 80.32 | FD10: 225.42 | FE10: 275.64 | FF10: 166.23 | FG10: 113.66 | FH10: 233.88 | FI10: 195.56 | FJ10: 106.77 | FK10: 157.31 | FL10: 115.92 | FM10: 243.74 | FN10: 112.53 | FO10: 178.17 | FP10: 255.20 | FQ10: 159.21 | FR10: 94.18 | FS10: 197.47 | FT10: 108.62 | FU10: 144.07 | FV10: 218.13 | FW10: 176.49 | FX10: 120.83 | FY10: 159.75 | FZ10: 204.41 | GA10: 143.53 | GB10: 165.66 | GC10: 213.38 | GD10: 195.06 | GE10: 180.72 | GF10: 206.03 | GG10: 152.44 | GH10: 157.85 | GI10: 118.59 | GJ10: 131.38 | GK10: 80.66 | GL10: 115.62 | GM10: 197.80 | GN10: 181.67 | GO10: 127.75 | GP10: 208.92 | GQ10: 89.02 | GR10: 159.59 | GS10: 168.66 | GT10: 182.05
A11: 6 | B11: -0.68 | C11: 1.06 | D11: -1.67 | E11: -2.28 | F11: -0.57 | G11: -1.10 | H11: 0.20 | I11: 0.63 | J11: 1.23 | K11: 0.84 | L11: 0.51 | M11: -0.28 | N11: 1.39 | O11: 0.52 | P11: -1.07 | Q11: -0.39 | R11: 1.56 | S11: 0.21 | T11: 0.72 | U11: -0.47 | V11: 0.22 | W11: 0.60 | X11: 0.61 | Y11: -0.54 | Z11: 1.35 | AA11: -0.10 | AB11: -1.45 | AC11: 0.11 | AD11: -0.16 | AE11: 0.38 | AF11: -0.16 | AG11: -1.64 | AH11: -1.52 | AI11: 0.22 | AJ11: -0.24 | AK11: -1.53 | AL11: -0.07 | AM11: -0.15 | AN11: -0.28 | AO11: -1.12 | AP11: -0.94 | AQ11: 0.49 | AR11: -0.22 | AS11: -0.38 | AT11: 1.25 | AU11: 0.28 | AV11: 0.63 | AW11: -1.16 | AX11: -0.21 | AY11: -0.28 | AZ11: 0.52 | BA11: -0.82 | BB11: 0.15 | BC11: 0.91 | BD11: 0.67 | BE11: -0.41 | BF11: -0.22 | BG11: -1.01 | BH11: 1.77 | BI11: -0.75 | BJ11: 0.15 | BK11: -0.98 | BL11: -1.47 | BM11: -1.14 | BN11: -0.40 | BO11: 1.08 | BP11: -0.48 | BQ11: 1.29 | BR11: 1.49 | BS11: -1.97 | BT11: -1.38 | BU11: 0.63 | BV11: -0.70 | BW11: 1.79 | BX11: 0.56 | BY11: -0.42 | BZ11: -0.05 | CA11: 0.23 | CB11: -0.29 | CC11: 1.28 | CD11: -0.34 | CE11: -0.39 | CF11: -0.03 | CG11: 0.27 | CH11: 0.67 | CI11: 2.09 | CJ11: -0.24 | CK11: 1.76 | CL11: 0.66 | CM11: 0.65 | CN11: -1.70 | CO11: 0.57 | CP11: -1.35 | CQ11: 2.76 | CR11: -1.05 | CS11: 0.46 | CT11: 0.84 | CU11: 0.86 | CV11: 0.36 | CW11: -0.81 | CX11: 5 | CY11: 299.81 | CZ11: 105.86 | DA11: 178.30 | DB11: 243.03 | DC11: 81.12 | DD11: 68.94 | DE11: 73.00 | DF11: 146.81 | DG11: 130.07 | DH11: 107.77 | DI11: 183.92 | DJ11: 113.11 | DK11: 91.63 | DL11: 159.54 | DM11: 146.93 | DN11: 188.47 | DO11: 162.41 | DP11: 271.96 | DQ11: 163.41 | DR11: 206.16 | DS11: 114.66 | DT11: 161.94 | DU11: 176.11 | DV11: 95.56 | DW11: 285.17 | DX11: 183.60 | DY11: 241.25 | DZ11: 209.32 | EA11: 131.78 | EB11: 121.53 | EC11: 98.88 | ED11: 104.19 | EE11: 210.39 | EF11: 158.13 | EG11: 224.94 | EH11: 147.95 | EI11: 68.74 | EJ11: 151.50 | EK11: 157.03 | EL11: 124.52 | EM11: 82.16 | EN11: 114.35 | EO11: 219.08 | EP11: 229.08 | EQ11: 202.70 | ER11: 86.80 | ES11: 111.59 | ET11: 215.34 | EU11: 84.96 | EV11: 266.03 | EW11: 56.13 | EX11: 113.23 | EY11: 220.43 | EZ11: 291.35 | FA11: 119.76 | FB11: 82.77 | FC11: 81.28 | FD11: 269.32 | FE11: 317.21 | FF11: 209.77 | FG11: 130.61 | FH11: 193.72 | FI11: 157.68 | FJ11: 102.37 | FK11: 180.42 | FL11: 155.64 | FM11: 264.57 | FN11: 115.84 | FO11: 261.30 | FP11: 244.83 | FQ11: 168.93 | FR11: 137.51 | FS11: 211.16 | FT11: 125.39 | FU11: 177.85 | FV11: 284.34 | FW11: 165.35 | FX11: 148.73 | FY11: 203.54 | FZ11: 209.63 | GA11: 168.29 | GB11: 162.43 | GC11: 209.65 | GD11: 207.72 | GE11: 165.44 | GF11: 189.01 | GG11: 193.68 | GH11: 153.82 | GI11: 144.51 | GJ11: 152.36 | GK11: 78.63 | GL11: 160.70 | GM11: 224.77 | GN11: 184.70 | GO11: 120.13 | GP11: 186.80 | GQ11: 85.92 | GR11: 192.89 | GS11: 152.97 | GT11: 206.98
A12: 7 | B12: 1.15 | C12: 0.01 | D12: -1.60 | E12: 0.32 | F12: -1.15 | G12: 0.83 | H12: -0.43 | I12: -0.29 | J12: 0.97 | K12: -0.18 | L12: 2.34 | M12: -0.74 | N12: -0.29 | O12: 1.37 | P12: -2.40 | Q12: -1.03 | R12: 0.02 | S12: -0.23 | T12: -0.37 | U12: -0.18 | V12: -0.46 | W12: -0.77 | X12: 0.20 | Y12: -0.02 | Z12: 0.90 | AA12: -2.23 | AB12: -0.44 | AC12: 1.79 | AD12: 1.36 | AE12: -0.80 | AF12: -0.62 | AG12: 0.17 | AH12: 0.82 | AI12: 0.39 | AJ12: -0.76 | AK12: -0.58 | AL12: 0.34 | AM12: -2.13 | AN12: -1.75 | AO12: -0.18 | AP12: -0.27 | AQ12: -1.52 | AR12: 2.15 | AS12: -1.48 | AT12: 1.03 | AU12: -0.82 | AV12: -1.00 | AW12: -0.29 | AX12: -0.09 | AY12: -0.12 | AZ12: 0.82 | BA12: -0.18 | BB12: -0.41 | BC12: -0.71 | BD12: 1.03 | BE12: 1.68 | BF12: 0.92 | BG12: -0.75 | BH12: 0.89 | BI12: 0.36 | BJ12: 1.68 | BK12: 0.05 | BL12: -1.21 | BM12: -0.07 | BN12: -0.11 | BO12: -0.24 | BP12: -1.68 | BQ12: 0.21 | BR12: -0.39 | BS12: -1.26 | BT12: 0.36 | BU12: -0.48 | BV12: 1.15 | BW12: 0.23 | BX12: -0.44 | BY12: 0.79 | BZ12: 1.39 | CA12: 2.75 | CB12: 1.15 | CC12: 0.67 | CD12: 0.10 | CE12: 0.31 | CF12: -0.16 | CG12: -1.65 | CH12: 0.80 | CI12: -1.20 | CJ12: -0.94 | CK12: -0.27 | CL12: -0.09 | CM12: 0.90 | CN12: -0.45 | CO12: 0.75 | CP12: 1.94 | CQ12: 0.97 | CR12: -1.14 | CS12: -0.46 | CT12: 1.44 | CU12: 1.03 | CV12: 0.02 | CW12: 0.97 | CX12: 6 | CY12: 296.05 | CZ12: 135.70 | DA12: 151.76 | DB12: 188.70 | DC12: 81.41 | DD12: 63.87 | DE12: 82.20 | DF12: 176.28 | DG12: 171.01 | DH12: 133.60 | DI12: 216.97 | DJ12: 118.61 | DK12: 123.42 | DL12: 188.54 | DM12: 136.79 | DN12: 194.25 | DO12: 224.31 | DP12: 306.55 | DQ12: 198.87 | DR12: 210.10 | DS12: 129.57 | DT12: 193.51 | DU12: 210.90 | DV12: 96.29 | DW12: 381.86 | DX12: 197.74 | DY12: 212.24 | DZ12: 232.65 | EA12: 140.66 | EB12: 140.64 | EC12: 105.47 | ED12: 89.02 | EE12: 183.17 | EF12: 178.60 | EG12: 237.04 | EH12: 128.51 | EI12: 74.32 | EJ12: 161.97 | EK12: 164.54 | EL12: 115.02 | EM12: 77.92 | EN12: 134.47 | EO12: 231.78 | EP12: 236.32 | EQ12: 267.02 | ER12: 98.87 | ES12: 133.98 | ET12: 197.65 | EU12: 90.01 | EV12: 278.71 | EW12: 66.33 | EX12: 109.44 | EY12: 246.34 | EZ12: 365.19 | FA12: 144.61 | FB12: 85.11 | FC12: 85.98 | FD12: 253.02 | FE12: 452.09 | FF12: 204.87 | FG12: 146.03 | FH12: 182.68 | FI12: 138.27 | FJ12: 94.22 | FK12: 185.79 | FL12: 199.94 | FM12: 269.14 | FN12: 153.65 | FO12: 356.90 | FP12: 199.04 | FQ12: 150.14 | FR12: 165.25 | FS12: 207.73 | FT12: 179.30 | FU12: 211.51 | FV12: 291.82 | FW12: 179.38 | FX12: 168.26 | FY12: 212.83 | FZ12: 277.42 | GA12: 174.78 | GB12: 167.34 | GC12: 228.23 | GD12: 236.34 | GE12: 199.88 | GF12: 282.58 | GG12: 204.06 | GH12: 219.04 | GI12: 174.32 | GJ12: 183.65 | GK12: 66.61 | GL12: 191.23 | GM12: 200.52 | GN12: 305.16 | GO12: 112.16 | GP12: 218.87 | GQ12: 106.50 | GR12: 239.82 | GS12: 176.50 | GT12: 200.17
A13: 8 | B13: 0.38 | C13: -0.86 | D13: 1.82 | E13: 0.83 | F13: -0.59 | G13: -0.64 | H13: 0.04 | I13: -1.06 | J13: 0.08 | K13: 0.56 | L13: -1.16 | M13: 0.25 | N13: 1.40 | O13: 0.22 | P13: 0.08 | Q13: 0.81 | R13: -0.21 | S13: 0.88 | T13: 1.30 | U13: -2.25 | V13: -0.30 | W13: -1.24 | X13: -1.12 | Y13: 0.99 | Z13: 0.86 | AA13: 1.33 | AB13: -0.54 | AC13: -0.20 | AD13: 0.07 | AE13: -0.74 | AF13: -1.15 | AG13: 0.61 | AH13: 0.47 | AI13: -1.34 | AJ13: 1.18 | AK13: 0.06 | AL13: 1.18 | AM13: -0.04 | AN13: 0.18 | AO13: -0.46 | AP13: -0.21 | AQ13: -0.16 | AR13: 1.28 | AS13: -0.89 | AT13: -1.36 | AU13: -0.95 | AV13: 1.12 | AW13: 0.13 | AX13: 0.75 | AY13: 1.68 | AZ13: -0.21 | BA13: 1.43 | BB13: 0.00 | BC13: 0.23 | BD13: -2.21 | BE13: 0.56 | BF13: -1.59 | BG13: -1.02 | BH13: 0.32 | BI13: 2.05 | BJ13: 1.20 | BK13: 1.60 | BL13: 1.61 | BM13: -0.32 | BN13: -0.30 | BO13: -0.72 | BP13: -0.58 | BQ13: -1.55 | BR13: -0.68 | BS13: 0.93 | BT13: -1.65 | BU13: 1.30 | BV13: -1.45 | BW13: 1.33 | BX13: -0.72 | BY13: 0.48 | BZ13: 0.82 | CA13: -0.39 | CB13: 0.70 | CC13: 0.37 | CD13: -0.91 | CE13: 0.91 | CF13: -1.15 | CG13: -1.06 | CH13: -2.12 | CI13: 1.32 | CJ13: -0.53 | CK13: 0.48 | CL13: -1.15 | CM13: 0.36 | CN13: -0.96 | CO13: -1.19 | CP13: 1.24 | CQ13: 0.14 | CR13: 0.13 | CS13: -0.58 | CT13: -0.10 | CU13: 0.66 | CV13: -1.31 | CW13: 1.17 | CX13: 7 | CY13: 384.35 | CZ13: 148.43 | DA13: 130.41 | DB13: 216.39 | DC13: 74.89 | DD13: 79.10 | DE13: 84.16 | DF13: 184.37 | DG13: 216.29 | DH13: 142.19 | DI13: 337.05 | DJ13: 115.97 | DK13: 129.05 | DL13: 253.07 | DM13: 104.36 | DN13: 181.99 | DO13: 245.68 | DP13: 323.45 | DQ13: 205.64 | DR13: 223.48 | DS13: 132.08 | DT13: 188.28 | DU13: 237.43 | DV13: 104.96 | DW13: 477.66 | DX13: 154.55 | DY13: 217.01 | DZ13: 332.38 | EA13: 188.37 | EB13: 136.26 | EC13: 104.99 | ED13: 99.78 | EE13: 226.22 | EF13: 206.96 | EG13: 231.16 | EH13: 128.67 | EI13: 85.42 | EJ13: 128.66 | EK13: 138.32 | EL13: 122.41 | EM13: 81.77 | EN13: 117.04 | EO13: 349.93 | EP13: 206.92 | EQ13: 340.41 | ER13: 95.61 | ES13: 125.98 | ET13: 206.73 | EU13: 97.07 | EV13: 299.03 | EW13: 81.95 | EX13: 116.39 | EY13: 253.27 | EZ13: 358.87 | FA13: 184.54 | FB13: 119.64 | FC13: 107.92 | FD13: 247.21 | FE13: 564.50 | FF13: 236.14 | FG13: 205.42 | FH13: 201.21 | FI13: 125.93 | FJ13: 101.88 | FK13: 199.85 | FL13: 210.74 | FM13: 228.60 | FN13: 173.41 | FO13: 368.04 | FP13: 179.95 | FQ13: 173.17 | FR13: 168.11 | FS13: 269.61 | FT13: 202.83 | FU13: 216.21 | FV13: 358.92 | FW13: 241.37 | FX13: 277.58 | FY13: 276.18 | FZ13: 335.38 | GA13: 193.74 | GB13: 191.64 | GC13: 243.39 | GD13: 201.79 | GE13: 246.12 | GF13: 257.79 | GG13: 193.81 | GH13: 229.72 | GI13: 187.98 | GJ13: 229.73 | GK13: 68.06 | GL13: 233.79 | GM13: 293.21 | GN13: 385.86 | GO13: 103.35 | GP13: 223.11 | GQ13: 144.42 | GR13: 305.94 | GS13: 193.46 | GT13: 253.18
A14: 9 | B14: -0.77 | C14: -2.75 | D14: -1.76 | E14: 1.15 | F14: 0.79 | G14: 0.07 | H14: -0.88 | I14: -1.01 | J14: -1.38 | K14: -0.66 | L14: -1.72 | M14: 0.78 | N14: 0.66 | O14: -0.39 | P14: -0.08 | Q14: 0.23 | R14: -0.21 | S14: 1.05 | T14: 0.98 | U14: -0.14 | V14: -0.90 | W14: -1.32 | X14: 2.54 | Y14: 1.06 | Z14: 0.61 | AA14: 0.74 | AB14: -1.66 | AC14: -0.34 | AD14: -0.21 | AE14: -0.31 | AF14: -0.59 | AG14: -0.38 | AH14: 1.46 | AI14: 1.26 | AJ14: -1.00 | AK14: 0.34 | AL14: 0.31 | AM14: -0.40 | AN14: 1.04 | AO14: 0.21 | AP14: -0.61 | AQ14: -0.90 | AR14: -1.27 | AS14: -1.37 | AT14: -0.39 | AU14: -1.14 | AV14: 1.45 | AW14: -1.28 | AX14: -0.08 | AY14: -0.28 | AZ14: -2.29 | BA14: -1.35 | BB14: -0.87 | BC14: 1.24 | BD14: -0.80 | BE14: -1.14 | BF14: 1.07 | BG14: -0.10 | BH14: -1.39 | BI14: 1.70 | BJ14: 0.06 | BK14: 0.13 | BL14: 0.93 | BM14: 0.72 | BN14: 0.74 | BO14: 0.10 | BP14: 0.14 | BQ14: 2.01 | BR14: -0.20 | BS14: -1.46 | BT14: -0.40 | BU14: 1.01 | BV14: 1.77 | BW14: 0.21 | BX14: 1.00 | BY14: -1.39 | BZ14: 0.42 | CA14: -0.24 | CB14: -3.26 | CC14: -0.26 | CD14: -0.81 | CE14: 0.32 | CF14: 0.64 | CG14: -1.17 | CH14: 1.20 | CI14: -1.43 | CJ14: 1.72 | CK14: 0.72 | CL14: -2.15 | CM14: 0.40 | CN14: 0.93 | CO14: 0.78 | CP14: 1.01 | CQ14: -0.38 | CR14: 0.67 | CS14: -0.53 | CT14: -0.17 | CU14: -1.18 | CV14: 1.37 | CW14: -1.20 | CX14: 8 | CY14: 444.84 | CZ14: 142.64 | DA14: 187.36 | DB14: 267.63 | DC14: 74.86 | DD14: 78.54 | DE14: 92.49 | DF14: 171.76 | DG14: 239.34 | DH14: 168.94 | DI14: 309.27 | DJ14: 131.52 | DK14: 174.10 | DL14: 285.93 | DM14: 115.48 | DN14: 224.51 | DO14: 260.15 | DP14: 403.48 | DQ14: 273.28 | DR14: 174.35 | DS14: 138.08 | DT14: 170.95 | DU14: 219.23 | DV14: 133.00 | DW14: 593.44 | DX14: 206.18 | DY14: 218.75 | DZ14: 352.43 | EA14: 208.07 | EB14: 133.19 | EC14: 96.56 | ED14: 119.50 | EE14: 265.42 | EF14: 184.96 | EG14: 301.54 | EH14: 141.80 | EI14: 111.35 | EJ14: 139.78 | EK14: 155.22 | EL14: 124.84 | EM14: 86.62 | EN14: 124.79 | EO14: 463.27 | EP14: 197.95 | EQ14: 303.26 | ER14: 90.54 | ES14: 162.93 | ET14: 230.42 | EU14: 118.74 | EV14: 420.14 | EW14: 86.77 | EX14: 157.73 | EY14: 276.82 | EZ14: 405.92 | FA14: 144.84 | FB14: 142.29 | FC14: 92.93 | FD14: 231.86 | FE14: 647.69 | FF14: 350.77 | FG14: 268.82 | FH14: 279.40 | FI14: 175.19 | FJ14: 106.07 | FK14: 208.75 | FL14: 206.85 | FM14: 229.07 | FN14: 150.23 | FO14: 363.10 | FP14: 226.20 | FQ14: 147.66 | FR14: 223.39 | FS14: 237.10 | FT14: 270.47 | FU14: 212.02 | FV14: 421.33 | FW14: 298.49 | FX14: 285.95 | FY14: 335.14 | FZ14: 387.40 | GA14: 184.74 | GB14: 240.21 | GC14: 223.72 | GD14: 187.99 | GE14: 195.82 | GF14: 343.33 | GG14: 195.58 | GH14: 269.87 | GI14: 172.82 | GJ14: 265.01 | GK14: 64.41 | GL14: 213.72 | GM14: 385.98 | GN14: 430.38 | GO14: 115.10 | GP14: 223.34 | GQ14: 155.56 | GR14: 369.01 | GS14: 173.65 | GT14: 329.83
A15: 10 | B15: 0.92 | C15: -1.45 | D15: 0.93 | E15: 0.62 | F15: -1.84 | G15: -1.62 | H15: 0.52 | I15: 0.55 | J15: -1.11 | K15: -1.32 | L15: -0.75 | M15: -1.12 | N15: 1.98 | O15: 0.93 | P15: -0.08 | Q15: -0.11 | R15: 0.77 | S15: -0.42 | T15: -0.25 | U15: 0.03 | V15: -0.74 | W15: 0.08 | X15: 2.04 | Y15: 2.05 | Z15: -0.80 | AA15: 0.01 | AB15: -1.25 | AC15: -1.61 | AD15: 1.23 | AE15: 2.17 | AF15: -0.14 | AG15: 0.42 | AH15: -0.75 | AI15: -0.33 | AJ15: -0.07 | AK15: 1.56 | AL15: 0.39 | AM15: -0.37 | AN15: 0.38 | AO15: -0.52 | AP15: 2.40 | AQ15: 0.66 | AR15: -0.94 | AS15: 1.01 | AT15: -0.33 | AU15: -0.21 | AV15: -0.94 | AW15: -0.24 | AX15: -0.91 | AY15: -1.94 | AZ15: 0.66 | BA15: -2.03 | BB15: 0.84 | BC15: -0.18 | BD15: 0.78 | BE15: -1.32 | BF15: -0.68 | BG15: -0.26 | BH15: 2.05 | BI15: -1.93 | BJ15: -0.29 | BK15: 0.35 | BL15: 1.23 | BM15: 0.34 | BN15: 0.95 | BO15: 0.36 | BP15: 0.01 | BQ15: -1.46 | BR15: -0.65 | BS15: -0.23 | BT15: -0.89 | BU15: 0.28 | BV15: -0.68 | BW15: 0.20 | BX15: -0.15 | BY15: 2.41 | BZ15: -0.55 | CA15: 2.07 | CB15: -0.34 | CC15: 0.51 | CD15: -0.97 | CE15: -1.04 | CF15: -0.78 | CG15: 1.00 | CH15: -0.48 | CI15: 1.00 | CJ15: -2.80 | CK15: -1.47 | CL15: -0.36 | CM15: -1.41 | CN15: -0.04 | CO15: -1.15 | CP15: -0.11 | CQ15: 0.62 | CR15: 0.07 | CS15: -0.10 | CT15: 0.26 | CU15: -0.78 | CV15: -0.95 | CW15: 0.35 | CX15: 9 | CY15: 433.39 | CZ15: 103.16 | DA15: 157.16 | DB15: 347.77 | DC15: 92.14 | DD15: 86.71 | DE15: 88.53 | DF15: 161.25 | DG15: 212.66 | DH15: 167.20 | DI15: 261.14 | DJ15: 161.48 | DK15: 210.02 | DL15: 294.54 | DM15: 124.77 | DN15: 254.13 | DO15: 275.56 | DP15: 516.47 | DQ15: 345.73 | DR15: 186.56 | DS15: 131.85 | DT15: 153.23 | DU15: 350.45 | DV15: 170.46 | DW15: 710.95 | DX15: 251.73 | DY15: 186.31 | DZ15: 365.75 | EA15: 220.37 | EB15: 138.86 | EC15: 96.63 | ED15: 123.41 | EE15: 360.83 | EF15: 244.26 | EG15: 283.55 | EH15: 163.10 | EI15: 127.38 | EJ15: 143.91 | EK15: 198.25 | EL15: 140.70 | EM15: 86.43 | EN15: 119.11 | EO15: 418.18 | EP15: 176.04 | EQ15: 312.78 | ER15: 83.35 | ES15: 221.41 | ET15: 207.68 | EU15: 128.14 | EV15: 440.18 | EW15: 67.29 | EX15: 140.74 | EY15: 265.42 | EZ15: 534.28 | FA15: 140.34 | FB15: 131.01 | FC15: 119.20 | FD15: 249.74 | FE15: 574.34 | FF15: 495.01 | FG15: 296.60 | FH15: 311.55 | FI15: 219.95 | FJ15: 129.13 | FK15: 254.73 | FL15: 229.39 | FM15: 255.73 | FN15: 221.94 | FO15: 385.31 | FP15: 198.62 | FQ15: 151.95 | FR15: 284.00 | FS15: 337.68 | FT15: 304.83 | FU15: 269.07 | FV15: 373.85 | FW15: 347.50 | FX15: 301.64 | FY15: 224.46 | FZ15: 407.39 | GA15: 178.90 | GB15: 275.22 | GC15: 269.24 | GD15: 172.48 | GE15: 256.01 | GF15: 302.64 | GG15: 276.65 | GH15: 328.68 | GI15: 136.86 | GJ15: 307.40 | GK15: 80.93 | GL15: 262.45 | GM15: 490.87 | GN15: 444.14 | GO15: 139.02 | GP15: 225.57 | GQ15: 165.81 | GR15: 338.04 | GS15: 233.10 | GT15: 301.26
A16: 11 | B16: 0.21 | C16: -0.57 | D16: -0.39 | E16: 0.79 | F16: 0.50 | G16: -0.07 | H16: 0.41 | I16: 1.50 | J16: 1.27 | K16: -0.67 | L16: -1.37 | M16: -0.12 | N16: 0.25 | O16: -0.34 | P16: -1.37 | Q16: -0.15 | R16: 0.35 | S16: -0.20 | T16: 1.52 | U16: -0.61 | V16: 0.59 | W16: -0.67 | X16: 0.73 | Y16: -0.99 | Z16: 1.31 | AA16: -1.34 | AB16: -1.00 | AC16: 1.91 | AD16: -0.54 | AE16: -1.31 | AF16: 0.67 | AG16: -1.70 | AH16: 0.33 | AI16: -0.81 | AJ16: 0.52 | AK16: -0.29 | AL16: 1.30 | AM16: 1.64 | AN16: -0.03 | AO16: 1.50 | AP16: 0.39 | AQ16: -1.15 | AR16: 1.30 | AS16: -0.79 | AT16: -1.16 | AU16: -3.13 | AV16: 0.36 | AW16: -0.93 | AX16: 1.40 | AY16: 1.96 | AZ16: -0.22 | BA16: -0.12 | BB16: -0.51 | BC16: -0.62 | BD16: -3.16 | BE16: 1.06 | BF16: 0.96 | BG16: 0.46 | BH16: -1.15 | BI16: -0.23 | BJ16: -0.14 | BK16: 1.38 | BL16: 0.12 | BM16: 0.30 | BN16: 0.50 | BO16: 0.17 | BP16: -0.45 | BQ16: -0.31 | BR16: -0.74 | BS16: -0.85 | BT16: 0.30 | BU16: -0.98 | BV16: -0.58 | BW16: 0.38 | BX16: 1.41 | BY16: 1.42 | BZ16: -0.97 | CA16: -1.98 | CB16: -0.82 | CC16: -0.43 | CD16: 0.22 | CE16: -0.09 | CF16: 0.81 | CG16: 0.78 | CH16: 1.03 | CI16: -1.05 | CJ16: -0.26 | CK16: 0.96 | CL16: 0.28 | CM16: 0.31 | CN16: -0.55 | CO16: -0.22 | CP16: -0.34 | CQ16: 2.19 | CR16: 1.34 | CS16: 0.22 | CT16: -0.44 | CU16: 1.31 | CV16: 1.11 | CW16: -1.12 | CX16: 10 | CY16: 543.88 | CZ16: 90.67 | DA16: 197.32 | DB16: 416.88 | DC16: 76.40 | DD16: 74.28 | DE16: 104.63 | DF16: 191.31 | DG16: 196.84 | DH16: 149.79 | DI16: 255.09 | DJ16: 149.20 | DK16: 308.79 | DL16: 370.33 | DM16: 134.73 | DN16: 273.09 | DO16: 338.15 | DP16: 529.94 | DQ16: 363.96 | DR16: 204.92 | DS16: 128.89 | DT16: 169.40 | DU16: 520.09 | DV16: 253.18 | DW16: 689.07 | DX16: 275.39 | DY16: 168.77 | DZ16: 314.02 | EA16: 289.51 | EB16: 210.19 | EC16: 103.44 | ED16: 143.56 | EE16: 352.50 | EF16: 253.95 | EG16: 306.43 | EH16: 225.15 | EI16: 147.51 | EJ16: 148.78 | EK16: 229.31 | EL16: 142.23 | EM16: 135.34 | EN16: 143.66 | EO16: 397.16 | EP16: 224.01 | EQ16: 325.53 | ER16: 88.28 | ES16: 210.20 | ET16: 218.95 | EU16: 122.09 | EV16: 359.52 | EW16: 81.16 | EX16: 113.40 | EY16: 329.03 | EZ16: 568.27 | FA16: 172.48 | FB16: 117.40 | FC16: 117.70 | FD16: 262.43 | FE16: 853.31 | FF16: 405.18 | FG16: 310.46 | FH16: 358.83 | FI16: 289.22 | FJ16: 148.57 | FK16: 321.21 | FL16: 264.53 | FM16: 279.88 | FN16: 194.90 | FO16: 382.07 | FP16: 209.66 | FQ16: 145.27 | FR16: 323.60 | FS16: 333.09 | FT16: 343.34 | FU16: 287.65 | FV16: 586.38 | FW16: 349.45 | FX16: 449.92 | FY16: 233.05 | FZ16: 480.59 | GA16: 169.02 | GB16: 257.25 | GC16: 261.79 | GD16: 219.14 | GE16: 260.15 | GF16: 384.37 | GG16: 198.79 | GH16: 288.25 | GI16: 141.65 | GJ16: 271.80 | GK16: 87.93 | GL16: 241.44 | GM16: 527.36 | GN16: 533.04 | GO16: 153.50 | GP16: 242.85 | GQ16: 188.32 | GR16: 328.70 | GS16: 220.84 | GT16: 346.81
A17: 12 | B17: 0.89 | C17: -1.54 | D17: 0.76 | E17: 0.54 | F17: 0.86 | G17: -1.99 | H17: 0.75 | I17: 1.43 | J17: 1.47 | K17: -1.49 | L17: -1.06 | M17: -1.38 | N17: -0.38 | O17: -2.32 | P17: 1.82 | Q17: 1.00 | R17: 1.20 | S17: 0.14 | T17: -0.86 | U17: 0.31 | V17: 1.23 | W17: -0.81 | X17: -1.54 | Y17: -1.80 | Z17: -1.00 | AA17: -0.63 | AB17: -0.82 | AC17: -1.40 | AD17: -0.24 | AE17: 1.37 | AF17: -0.07 | AG17: -0.19 | AH17: 0.17 | AI17: -1.78 | AJ17: 0.58 | AK17: 0.10 | AL17: 0.05 | AM17: 0.30 | AN17: 0.33 | AO17: 1.92 | AP17: -0.24 | AQ17: -0.20 | AR17: 0.99 | AS17: 0.04 | AT17: -0.83 | AU17: 1.21 | AV17: -0.36 | AW17: 0.26 | AX17: 0.58 | AY17: 0.93 | AZ17: 0.43 | BA17: 0.42 | BB17: 0.29 | BC17: 1.16 | BD17: -0.35 | BE17: 0.63 | BF17: 0.51 | BG17: -0.35 | BH17: 1.00 | BI17: -1.09 | BJ17: -1.72 | BK17: -0.12 | BL17: 0.95 | BM17: -0.15 | BN17: -0.88 | BO17: -0.58 | BP17: -0.74 | BQ17: 0.16 | BR17: 2.78 | BS17: 1.60 | BT17: -0.92 | BU17: -0.74 | BV17: -0.36 | BW17: -2.01 | BX17: 0.55 | BY17: 0.32 | BZ17: -0.21 | CA17: 0.07 | CB17: 1.44 | CC17: -0.10 | CD17: -0.15 | CE17: 1.49 | CF17: -1.23 | CG17: -0.52 | CH17: -3.84 | CI17: -0.76 | CJ17: 0.41 | CK17: -0.31 | CL17: 0.36 | CM17: 0.14 | CN17: -0.68 | CO17: 0.55 | CP17: 0.41 | CQ17: 0.08 | CR17: -0.99 | CS17: 0.75 | CT17: -0.98 | CU17: 0.25 | CV17: -1.14 | CW17: 0.17 | CX17: 11 | CY17: 613.34 | CZ17: 90.91 | DA17: 203.38 | DB17: 512.74 | DC17: 90.05 | DD17: 80.30 | DE17: 121.57 | DF17: 261.64 | DG17: 260.39 | DH17: 148.11 | DI17: 227.01 | DJ17: 160.19 | DK17: 350.40 | DL17: 384.66 | DM17: 119.83 | DN17: 291.61 | DO17: 389.62 | DP17: 562.22 | DQ17: 499.50 | DR17: 204.28 | DS17: 153.85 | DT17: 167.32 | DU17: 633.72 | DV17: 238.67 | DW17: 916.93 | DX17: 246.24 | DY17: 158.85 | DZ17: 456.83 | EA17: 291.80 | EB17: 188.64 | EC17: 125.00 | ED17: 121.55 | EE17: 405.02 | EF17: 245.59 | EG17: 361.83 | EH17: 235.52 | EI17: 195.78 | EJ17: 207.82 | EK17: 249.31 | EL17: 194.51 | EM17: 156.81 | EN17: 132.07 | EO17: 527.31 | EP17: 217.48 | EQ17: 299.12 | ER17: 60.36 | ES17: 242.32 | ET17: 208.27 | EU17: 164.62 | EV17: 527.09 | EW17: 85.77 | EX17: 121.67 | EY17: 332.87 | EZ17: 566.01 | FA17: 117.36 | FB17: 150.47 | FC17: 148.58 | FD17: 307.37 | FE17: 784.91 | FF17: 427.47 | FG17: 332.28 | FH17: 482.32 | FI17: 321.85 | FJ17: 169.91 | FK17: 378.22 | FL17: 296.57 | FM17: 286.06 | FN17: 203.21 | FO17: 373.77 | FP17: 201.78 | FQ17: 166.05 | FR17: 305.39 | FS17: 333.91 | FT17: 396.97 | FU17: 388.59 | FV17: 793.41 | FW17: 330.03 | FX17: 365.35 | FY17: 225.26 | FZ17: 492.14 | GA17: 190.91 | GB17: 277.41 | GC17: 323.02 | GD17: 269.40 | GE17: 331.88 | GF17: 358.89 | GG17: 208.92 | GH17: 363.98 | GI17: 161.32 | GJ17: 311.36 | GK17: 88.54 | GL17: 255.15 | GM17: 547.63 | GN17: 809.37 | GO17: 205.13 | GP17: 274.24 | GQ17: 192.79 | GR17: 436.98 | GS17: 285.04 | GT17: 320.27
A18: 13 | B18: -1.28 | C18: 0.47 | D18: 0.40 | E18: -0.64 | F18: -0.41 | G18: -0.06 | H18: -0.81 | I18: -0.51 | J18: 0.11 | K18: 0.05 | L18: -1.04 | M18: -0.83 | N18: 1.39 | O18: 0.04 | P18: 1.08 | Q18: 0.79 | R18: 0.11 | S18: 2.68 | T18: 1.56 | U18: -0.74 | V18: -0.17 | W18: 0.75 | X18: 1.26 | Y18: 0.36 | Z18: 1.60 | AA18: -0.49 | AB18: -0.77 | AC18: -0.22 | AD18: 0.67 | AE18: -0.09 | AF18: -0.64 | AG18: -0.66 | AH18: 1.87 | AI18: 0.41 | AJ18: 0.89 | AK18: -1.74 | AL18: 0.49 | AM18: -1.76 | AN18: 0.90 | AO18: -0.35 | AP18: -0.19 | AQ18: 0.27 | AR18: -1.65 | AS18: -1.87 | AT18: 0.87 | AU18: 1.17 | AV18: -0.58 | AW18: -0.61 | AX18: -1.89 | AY18: -1.24 | AZ18: 0.63 | BA18: 1.88 | BB18: -0.54 | BC18: 0.25 | BD18: -0.58 | BE18: 0.50 | BF18: 1.18 | BG18: -1.18 | BH18: -0.57 | BI18: 0.73 | BJ18: 2.18 | BK18: 2.60 | BL18: 0.02 | BM18: -0.71 | BN18: -1.99 | BO18: 1.08 | BP18: 1.62 | BQ18: 1.62 | BR18: 0.01 | BS18: 0.31 | BT18: -1.69 | BU18: 0.03 | BV18: -0.96 | BW18: 0.50 | BX18: -0.95 | BY18: 0.13 | BZ18: 0.09 | CA18: 1.80 | CB18: 0.75 | CC18: 0.92 | CD18: 0.04 | CE18: 0.31 | CF18: -1.28 | CG18: 0.46 | CH18: -0.74 | CI18: -0.62 | CJ18: 1.47 | CK18: 0.07 | CL18: 0.58 | CM18: -0.17 | CN18: -0.94 | CO18: 0.37 | CP18: 0.52 | CQ18: 1.95 | CR18: 0.79 | CS18: -1.79 | CT18: 1.83 | CU18: -0.18 | CV18: 1.16 | CW18: 0.72 | CX18: 12 | CY18: 765.59 | CZ18: 78.86 | DA18: 249.16 | DB18: 607.61 | DC18: 112.02 | DD18: 65.15 | DE18: 148.78 | DF18: 354.45 | DG18: 354.95 | DH18: 129.34 | DI18: 211.47 | DJ18: 142.25 | DK18: 361.66 | DL18: 296.70 | DM18: 172.08 | DN18: 370.19 | DO18: 509.62 | DP18: 627.74 | DQ18: 479.88 | DR18: 233.92 | DS18: 202.18 | DT18: 162.01 | DU18: 549.29 | DV18: 199.01 | DW18: 862.09 | DX18: 244.65 | DY18: 153.55 | DZ18: 404.37 | EA18: 307.58 | EB18: 253.28 | EC18: 135.10 | ED18: 129.09 | EE18: 453.79 | EF18: 205.42 | EG18: 431.27 | EH18: 261.41 | EI18: 215.46 | EJ18: 237.50 | EK18: 286.20 | EL18: 283.69 | EM18: 165.27 | EN18: 139.97 | EO18: 668.22 | EP18: 239.13 | EQ18: 288.76 | ER18: 79.10 | ES18: 250.84 | ET18: 236.82 | EU18: 196.20 | EV18: 662.38 | EW18: 99.92 | EX18: 141.69 | EY18: 380.08 | EZ18: 736.48 | FA18: 121.64 | FB18: 180.84 | FC18: 175.37 | FD18: 318.63 | FE18: 996.73 | FF18: 396.87 | FG18: 280.42 | FH18: 517.97 | FI18: 405.60 | FJ18: 181.65 | FK18: 362.30 | FL18: 296.89 | FM18: 279.74 | FN18: 227.36 | FO18: 620.15 | FP18: 280.43 | FQ18: 158.13 | FR18: 298.68 | FS18: 345.62 | FT18: 321.04 | FU18: 461.34 | FV18: 909.21 | FW18: 349.57 | FX18: 403.40 | FY18: 305.48 | FZ18: 529.90 | GA18: 203.93 | GB18: 378.90 | GC18: 293.39 | GD18: 272.30 | GE18: 203.83 | GF18: 349.71 | GG18: 242.62 | GH18: 379.75 | GI18: 186.12 | GJ18: 347.61 | GK18: 87.43 | GL18: 302.67 | GM18: 636.02 | GN18: 894.63 | GO18: 193.29 | GP18: 335.29 | GQ18: 181.87 | GR18: 495.87 | GS18: 262.50 | GT18: 358.83
A19: 14 | B19: 0.49 | C19: 0.81 | D19: -0.15 | E19: -0.33 | F19: -0.93 | G19: 0.95 | H19: 0.25 | I19: 0.75 | J19: -0.46 | K19: -0.30 | L19: 0.70 | M19: -0.24 | N19: -0.39 | O19: 0.70 | P19: 0.30 | Q19: 1.00 | R19: -2.06 | S19: 0.47 | T19: -0.25 | U19: 0.59 | V19: -2.62 | W19: 1.20 | X19: -0.75 | Y19: -0.66 | Z19: -0.01 | AA19: 0.98 | AB19: -1.87 | AC19: -1.50 | AD19: 0.77 | AE19: 0.43 | AF19: 1.68 | AG19: 0.49 | AH19: 1.37 | AI19: 0.76 | AJ19: 0.20 | AK19: -0.11 | AL19: -1.14 | AM19: -0.73 | AN19: 1.53 | AO19: -1.19 | AP19: -0.99 | AQ19: -0.25 | AR19: 0.51 | AS19: 1.28 | AT19: -1.04 | AU19: 1.26 | AV19: -0.22 | AW19: -0.36 | AX19: -0.73 | AY19: -0.27 | AZ19: -0.55 | BA19: 0.66 | BB19: 0.13 | BC19: -0.61 | BD19: -0.46 | BE19: -0.76 | BF19: 0.70 | BG19: 0.45 | BH19: -0.77 | BI19: 0.41 | BJ19: 0.62 | BK19: -1.97 | BL19: -1.53 | BM19: -0.49 | BN19: 0.35 | BO19: -0.11 | BP19: -1.53 | BQ19: -0.83 | BR19: 2.12 | BS19: -0.60 | BT19: -0.44 | BU19: -0.24 | BV19: 0.95 | BW19: 1.50 | BX19: -1.44 | BY19: -1.37 | BZ19: 0.93 | CA19: 0.17 | CB19: -1.13 | CC19: 0.07 | CD19: -0.79 | CE19: 0.28 | CF19: -0.77 | CG19: 2.23 | CH19: -0.10 | CI19: 0.08 | CJ19: 1.13 | CK19: 0.20 | CL19: 0.40 | CM19: -0.72 | CN19: -0.36 | CO19: -1.69 | CP19: -0.34 | CQ19: -1.18 | CR19: 0.31 | CS19: 0.36 | CT19: -1.29 | CU19: -0.34 | CV19: 0.09 | CW19: 1.61 | CX19: 13 | CY19: 690.84 | CZ19: 92.53 | DA19: 289.06 | DB19: 603.32 | DC19: 115.18 | DD19: 70.59 | DE19: 143.93 | DF19: 358.87 | DG19: 394.62 | DH19: 142.38 | DI19: 197.75 | DJ19: 137.24 | DK19: 487.21 | DL19: 326.41 | DM19: 221.11 | DN19: 455.31 | DO19: 566.37 | DP19: 1025.28 | DQ19: 662.41 | DR19: 228.93 | DS19: 215.47 | DT19: 198.13 | DU19: 725.59 | DV19: 229.45 | DW19: 1197.17 | DX19: 248.30 | DY19: 149.42 | DZ19: 427.71 | EA19: 371.55 | EB19: 272.99 | EC19: 134.06 | ED19: 127.82 | EE19: 656.41 | EF19: 238.60 | EG19: 538.89 | EH19: 219.99 | EI19: 253.23 | EJ19: 199.37 | EK19: 357.97 | EL19: 294.36 | EM19: 175.46 | EN19: 159.32 | EO19: 569.82 | EP19: 197.50 | EQ19: 359.30 | ER19: 102.96 | ES19: 251.46 | ET19: 236.10 | EU19: 161.53 | EV19: 601.16 | EW19: 120.02 | EX19: 205.16 | EY19: 383.12 | EZ19: 834.99 | FA19: 121.83 | FB19: 213.06 | FC19: 228.63 | FD19: 291.58 | FE19: 1000.50 | FF19: 483.97 | FG19: 425.16 | FH19: 835.68 | FI19: 444.73 | FJ19: 178.58 | FK19: 293.84 | FL19: 381.27 | FM19: 389.84 | FN19: 316.58 | FO19: 678.60 | FP19: 321.02 | FQ19: 134.09 | FR19: 328.09 | FS19: 326.94 | FT19: 378.11 | FU19: 437.48 | FV19: 1012.58 | FW19: 387.35 | FX19: 577.46 | FY19: 373.49 | FZ19: 664.67 | GA19: 224.22 | GB19: 433.78 | GC19: 264.48 | GD19: 318.80 | GE19: 199.28 | GF19: 348.21 | GG19: 330.62 | GH19: 419.58 | GI19: 222.04 | GJ19: 370.12 | GK19: 82.95 | GL19: 349.44 | GM19: 751.77 | GN19: 1310.49 | GO19: 237.76 | GP19: 280.03 | GQ19: 261.34 | GR19: 527.41 | GS19: 341.21 | GT19: 437.05
A20: 15 | B20: 2.11 | C20: -0.06 | D20: -0.12 | E20: 1.14 | F20: 1.18 | G20: 0.15 | H20: -0.21 | I20: 0.38 | J20: 0.16 | K20: -0.09 | L20: 1.65 | M20: -1.57 | N20: -1.30 | O20: -0.84 | P20: 1.00 | Q20: 0.62 | R20: -1.18 | S20: 0.77 | T20: 0.87 | U20: 0.69 | V20: -1.11 | W20: 1.44 | X20: -0.05 | Y20: -0.33 | Z20: 0.03 | AA20: 0.57 | AB20: 0.18 | AC20: -1.36 | AD20: -0.48 | AE20: 0.53 | AF20: 0.42 | AG20: 1.47 | AH20: 0.38 | AI20: 0.05 | AJ20: 0.02 | AK20: -1.02 | AL20: 0.41 | AM20: 0.04 | AN20: -0.60 | AO20: -0.90 | AP20: 0.95 | AQ20: -0.18 | AR20: 0.23 | AS20: -1.54 | AT20: 0.78 | AU20: 0.48 | AV20: 0.98 | AW20: -0.93 | AX20: -0.90 | AY20: -0.61 | AZ20: 0.26 | BA20: 0.22 | BB20: 1.46 | BC20: 0.85 | BD20: 0.40 | BE20: 0.47 | BF20: -0.60 | BG20: 0.63 | BH20: -0.27 | BI20: -0.09 | BJ20: -1.38 | BK20: -0.49 | BL20: -1.06 | BM20: -0.53 | BN20: 0.80 | BO20: -0.69 | BP20: -0.73 | BQ20: -0.55 | BR20: -0.58 | BS20: 0.48 | BT20: -0.73 | BU20: -0.87 | BV20: -0.32 | BW20: -0.09 | BX20: -0.56 | BY20: -1.57 | BZ20: 1.86 | CA20: -0.72 | CB20: 1.44 | CC20: -0.19 | CD20: 0.26 | CE20: -0.20 | CF20: -0.65 | CG20: -0.45 | CH20: 0.11 | CI20: 0.22 | CJ20: 2.14 | CK20: 1.46 | CL20: -1.67 | CM20: -0.63 | CN20: -1.29 | CO20: -3.33 | CP20: 2.33 | CQ20: 0.54 | CR20: 0.56 | CS20: -1.21 | CT20: -0.04 | CU20: 0.38 | CV20: 1.22 | CW20: 0.62 | CX20: 14 | CY20: 812.48 | CZ20: 114.26 | DA20: 308.94 | DB20: 627.16 | DC20: 109.50 | DD20: 88.95 | DE20: 163.25 | DF20: 438.73 | DG20: 402.59 | DH20: 148.81 | DI20: 239.97 | DJ20: 144.70 | DK20: 502.13 | DL20: 396.35 | DM20: 252.88 | DN20: 578.19 | DO20: 454.56 | DP20: 1202.88 | DQ20: 697.73 | DR20: 273.26 | DS20: 159.06 | DT20: 259.13 | DU20: 708.75 | DV20: 227.12 | DW20: 1305.71 | DX20: 314.43 | DY20: 123.28 | DZ20: 372.95 | EA20: 456.01 | EB20: 318.04 | EC20: 188.46 | ED20: 150.29 | EE20: 880.47 | EF20: 292.24 | EG20: 606.56 | EH20: 236.43 | EI20: 233.40 | EJ20: 195.31 | EK20: 492.08 | EL20: 269.02 | EM20: 165.32 | EN20: 167.58 | EO20: 672.25 | EP20: 261.55 | EQ20: 335.90 | ER20: 135.96 | ES20: 265.83 | ET20: 244.33 | EU20: 158.24 | EV20: 630.85 | EW20: 120.86 | EX20: 247.71 | EY20: 426.86 | EZ20: 832.12 | FA20: 124.33 | FB20: 207.83 | FC20: 277.42 | FD20: 341.04 | FE20: 973.63 | FF20: 562.10 | FG20: 509.77 | FH20: 679.80 | FI20: 386.29 | FJ20: 181.25 | FK20: 338.66 | FL20: 409.65 | FM20: 338.77 | FN20: 305.36 | FO20: 1019.11 | FP20: 320.46 | FQ20: 137.24 | FR20: 346.05 | FS20: 411.72 | FT20: 517.39 | FU20: 385.15 | FV20: 900.51 | FW20: 486.94 | FX20: 647.50 | FY20: 344.57 | FZ20: 733.99 | GA20: 217.78 | GB20: 494.52 | GC20: 257.49 | GD20: 486.90 | GE20: 214.68 | GF20: 385.36 | GG20: 428.19 | GH20: 472.57 | GI20: 257.55 | GJ20: 363.08 | GK20: 85.83 | GL20: 296.37 | GM20: 780.45 | GN20: 1199.10 | GO20: 272.02 | GP20: 323.02 | GQ20: 235.46 | GR20: 547.37 | GS20: 377.78 | GT20: 607.96
A21: 16 | B21: 0.39 | C21: 0.29 | D21: 1.28 | E21: -1.39 | F21: -0.74 | G21: 0.62 | H21: 0.92 | I21: 1.97 | J21: -1.16 | K21: 0.51 | L21: 1.06 | M21: -0.05 | N21: 0.26 | O21: 0.85 | P21: -0.51 | Q21: 0.32 | R21: -0.59 | S21: 0.38 | T21: 0.23 | U21: 1.92 | V21: -0.00 | W21: 0.09 | X21: -0.76 | Y21: -0.47 | Z21: -0.27 | AA21: -1.74 | AB21: -1.11 | AC21: -0.44 | AD21: -1.28 | AE21: 1.17 | AF21: -0.58 | AG21: -0.42 | AH21: -0.12 | AI21: 0.01 | AJ21: 1.46 | AK21: -0.99 | AL21: 0.54 | AM21: 0.11 | AN21: -0.02 | AO21: -1.06 | AP21: 0.00 | AQ21: 0.13 | AR21: -0.25 | AS21: -0.64 | AT21: 0.49 | AU21: -1.07 | AV21: 0.88 | AW21: 0.10 | AX21: -0.85 | AY21: -2.03 | AZ21: 0.37 | BA21: 0.20 | BB21: 0.21 | BC21: 1.58 | BD21: 1.01 | BE21: -0.10 | BF21: -0.15 | BG21: -1.08 | BH21: -0.85 | BI21: 0.91 | BJ21: -0.56 | BK21: -0.70 | BL21: 0.63 | BM21: -0.34 | BN21: -1.05 | BO21: -0.79 | BP21: 2.33 | BQ21: 0.39 | BR21: -0.26 | BS21: -0.33 | BT21: -1.06 | BU21: -0.51 | BV21: -1.10 | BW21: 1.64 | BX21: -0.31 | BY21: 0.22 | BZ21: 0.39 | CA21: -0.44 | CB21: -0.34 | CC21: 0.10 | CD21: -0.98 | CE21: -0.29 | CF21: -0.43 | CG21: -0.19 | CH21: 0.09 | CI21: -1.81 | CJ21: 0.14 | CK21: 1.09 | CL21: -1.59 | CM21: -0.06 | CN21: 0.62 | CO21: -0.38 | CP21: 2.01 | CQ21: -0.84 | CR21: -1.22 | CS21: -0.03 | CT21: 2.05 | CU21: -0.65 | CV21: 0.83 | CW21: 0.47 | CX21: 15 | CY21: 1218.22 | CZ21: 123.68 | DA21: 331.74 | DB21: 813.36 | DC21: 142.75 | DD21: 99.44 | DE21: 172.92 | DF21: 507.64 | DG21: 450.38 | DH21: 160.39 | DI21: 336.10 | DJ21: 124.87 | DK21: 451.31 | DL21: 381.81 | DM21: 320.85 | DN21: 693.32 | DO21: 416.03 | DP21: 1476.44 | DQ21: 868.56 | DR21: 331.09 | DS21: 147.25 | DT21: 351.43 | DU21: 768.92 | DV21: 236.21 | DW21: 1432.74 | DX21: 374.01 | DY21: 138.41 | DZ21: 332.31 | EA21: 463.45 | EB21: 376.20 | EC21: 219.22 | ED21: 204.67 | EE21: 1019.22 | EF21: 321.75 | EG21: 664.95 | EH21: 221.64 | EI21: 271.10 | EJ21: 214.56 | EK21: 491.69 | EL21: 256.92 | EM21: 208.32 | EN21: 178.22 | EO21: 759.87 | EP21: 226.77 | EQ21: 412.94 | ER21: 159.56 | ES21: 336.53 | ET21: 232.36 | EU21: 151.12 | EV21: 629.06 | EW21: 137.32 | EX21: 279.91 | EY21: 580.26 | EZ21: 1033.32 | FA21: 144.33 | FB21: 243.66 | FC21: 277.11 | FD21: 409.67 | FE21: 1022.20 | FF21: 606.38 | FG21: 453.06 | FH21: 690.35 | FI21: 359.91 | FJ21: 183.02 | FK21: 417.21 | FL21: 403.92 | FM21: 331.63 | FN21: 307.15 | FO21: 1020.87 | FP21: 376.12 | FQ21: 134.33 | FR21: 332.12 | FS21: 428.85 | FT21: 557.94 | FU21: 386.91 | FV21: 778.17 | FW21: 703.79 | FX21: 635.40 | FY21: 467.61 | FZ21: 779.42 | GA21: 247.60 | GB21: 524.31 | GC21: 255.25 | GD21: 497.72 | GE21: 238.49 | GF21: 435.19 | GG21: 645.05 | GH21: 642.76 | GI21: 219.01 | GJ21: 360.97 | GK21: 77.32 | GL21: 196.40 | GM21: 1208.96 | GN21: 1420.68 | GO21: 323.52 | GP21: 294.24 | GQ21: 255.65 | GR21: 633.53 | GS21: 496.10 | GT21: 729.52
A22: 17 | B22: -0.94 | C22: 1.00 | D22: -1.07 | E22: 0.25 | F22: 1.01 | G22: 0.51 | H22: 0.32 | I22: -0.89 | J22: 0.14 | K22: -0.24 | L22: -1.29 | M22: -0.02 | N22: 0.88 | O22: -1.34 | P22: 1.18 | Q22: -1.40 | R22: 1.12 | S22: 0.04 | T22: 0.00 | U22: -0.32 | V22: 1.58 | W22: -0.92 | X22: 0.24 | Y22: 0.28 | Z22: -0.32 | AA22: -0.32 | AB22: 0.85 | AC22: 0.76 | AD22: 2.06 | AE22: 0.87 | AF22: -1.36 | AG22: -0.59 | AH22: -0.85 | AI22: 0.64 | AJ22: -0.29 | AK22: 0.20 | AL22: -0.77 | AM22: -0.70 | AN22: -2.29 | AO22: 0.50 | AP22: 0.70 | AQ22: 0.16 | AR22: 0.43 | AS22: 0.45 | AT22: 0.13 | AU22: -1.14 | AV22: 0.11 | AW22: -1.79 | AX22: -0.31 | AY22: -0.67 | AZ22: -0.41 | BA22: -0.67 | BB22: 0.23 | BC22: -1.75 | BD22: 0.44 | BE22: -0.92 | BF22: 1.97 | BG22: 0.11 | BH22: 0.62 | BI22: 0.56 | BJ22: 1.69 | BK22: 0.48 | BL22: 0.33 | BM22: -0.31 | BN22: 1.28 | BO22: -2.93 | BP22: -0.51 | BQ22: -0.83 | BR22: 0.38 | BS22: 0.56 | BT22: -0.14 | BU22: 0.35 | BV22: 1.21 | BW22: -1.00 | BX22: -0.64 | BY22: 0.74 | BZ22: 0.23 | CA22: -1.02 | CB22: 0.27 | CC22: 0.47 | CD22: -1.07 | CE22: -0.66 | CF22: -0.62 | CG22: -1.03 | CH22: -0.61 | CI22: -0.00 | CJ22: 1.18 | CK22: 0.13 | CL22: 0.12 | CM22: 0.34 | CN22: -0.37 | CO22: -0.91 | CP22: -0.02 | CQ22: -0.32 | CR22: -0.74 | CS22: 0.95 | CT22: -2.97 | CU22: 0.60 | CV22: 1.11 | CW22: 0.97 | CX22: 16 | CY22: 1411.19 | CZ22: 141.08 | DA22: 439.38 | DB22: 721.07 | DC22: 139.59 | DD22: 119.21 | DE22: 216.81 | DF22: 745.84 | DG22: 413.74 | DH22: 189.28 | DI22: 430.37 | DJ22: 135.50 | DK22: 512.97 | DL22: 473.67 | DM22: 324.92 | DN22: 795.16 | DO22: 415.83 | DP22: 1709.20 | DQ22: 983.21 | DR22: 482.50 | DS22: 160.92 | DT22: 389.22 | DU22: 750.11 | DV22: 240.67 | DW22: 1504.06 | DX22: 315.01 | DY22: 128.10 | DZ22: 339.89 | EA22: 418.13 | EB22: 489.74 | EC22: 219.60 | ED22: 210.14 | EE22: 1093.65 | EF22: 352.10 | EG22: 904.03 | EH22: 208.88 | EI22: 321.26 | EJ22: 238.31 | EK22: 536.09 | EL22: 239.49 | EM22: 227.76 | EN22: 198.56 | EO22: 800.13 | EP22: 225.29 | EQ22: 485.98 | ER22: 148.55 | ES22: 419.57 | ET22: 257.94 | EU22: 145.39 | EV22: 507.03 | EW22: 158.68 | EX22: 315.36 | EY22: 654.89 | EZ22: 1430.96 | FA22: 183.44 | FB22: 262.32 | FC22: 296.19 | FD22: 380.69 | FE22: 984.03 | FF22: 759.28 | FG22: 455.54 | FH22: 678.91 | FI22: 432.09 | FJ22: 190.15 | FK22: 389.27 | FL22: 392.04 | FM22: 513.98 | FN22: 356.10 | FO22: 1072.18 | FP22: 391.17 | FQ22: 125.27 | FR22: 336.05 | FS22: 397.44 | FT22: 779.73 | FU22: 403.61 | FV22: 879.57 | FW22: 815.05 | FX22: 649.96 | FY22: 485.40 | FZ22: 864.44 | GA22: 233.62 | GB22: 548.88 | GC22: 261.45 | GD22: 528.50 | GE22: 264.21 | GF22: 362.36 | GG22: 720.24 | GH22: 827.37 | GI22: 188.43 | GJ22: 390.89 | GK22: 92.80 | GL22: 202.68 | GM22: 1786.20 | GN22: 1368.61 | GO22: 294.46 | GP22: 320.26 | GQ22: 380.18 | GR22: 628.32 | GS22: 613.97 | GT22: 855.49
A23: 18 | B23: -0.58 | C23: 1.14 | D23: 1.06 | E23: -0.07 | F23: 1.06 | G23: 0.53 | H23: 0.24 | I23: 1.14 | J23: 1.33 | K23: -0.05 | L23: -0.28 | M23: -0.49 | N23: 0.05 | O23: 0.53 | P23: -2.09 | Q23: -1.07 | R23: -1.86 | S23: 0.40 | T23: -0.93 | U23: -1.14 | V23: -1.03 | W23: 0.63 | X23: 0.40 | Y23: -0.05 | Z23: 1.77 | AA23: -2.10 | AB23: 0.58 | AC23: -0.31 | AD23: 0.00 | AE23: -0.97 | AF23: 0.14 | AG23: -0.70 | AH23: -1.55 | AI23: -1.02 | AJ23: -0.79 | AK23: 0.13 | AL23: 1.08 | AM23: 1.08 | AN23: 1.45 | AO23: -0.06 | AP23: -0.65 | AQ23: -1.44 | AR23: -0.71 | AS23: -1.11 | AT23: -1.04 | AU23: 1.44 | AV23: 1.02 | AW23: 0.52 | AX23: 0.53 | AY23: -0.61 | AZ23: 0.09 | BA23: -0.81 | BB23: -1.19 | BC23: -1.32 | BD23: -1.04 | BE23: -0.51 | BF23: 0.04 | BG23: -0.24 | BH23: 1.77 | BI23: 0.48 | BJ23: 0.47 | BK23: 0.61 | BL23: -0.24 | BM23: 0.26 | BN23: 0.56 | BO23: 0.36 | BP23: 0.04 | BQ23: -1.13 | BR23: -0.31 | BS23: -0.11 | BT23: -1.82 | BU23: -0.04 | BV23: -0.88 | BW23: 0.15 | BX23: 0.09 | BY23: -0.66 | BZ23: 1.68 | CA23: -0.24 | CB23: 0.11 | CC23: 0.52 | CD23: 1.26 | CE23: 0.68 | CF23: 1.97 | CG23: -2.29 | CH23: -1.55 | CI23: -1.24 | CJ23: 1.21 | CK23: 0.71 | CL23: -1.33 | CM23: 2.53 | CN23: 1.06 | CO23: -0.50 | CP23: -1.29 | CQ23: 2.05 | CR23: 1.84 | CS23: -0.00 | CT23: 0.63 | CU23: -1.47 | CV23: 0.81 | CW23: -0.33 | CX23: 17 | CY23: 1339.77 | CZ23: 179.11 | DA23: 409.10 | DB23: 818.01 | DC23: 177.49 | DD23: 140.54 | DE23: 248.40 | DF23: 713.30 | DG23: 461.84 | DH23: 199.42 | DI23: 387.78 | DJ23: 147.55 | DK23: 639.44 | DL23: 423.28 | DM23: 423.67 | DN23: 704.66 | DO23: 537.52 | DP23: 1880.08 | DQ23: 1074.72 | DR23: 502.59 | DS23: 223.02 | DT23: 370.76 | DU23: 849.98 | DV23: 274.23 | DW23: 1567.60 | DX23: 328.25 | DY23: 159.09 | DZ23: 416.50 | EA23: 621.93 | EB23: 609.46 | EC23: 195.59 | ED23: 210.07 | EE23: 1051.46 | EF23: 423.45 | EG23: 946.02 | EH23: 235.21 | EI23: 312.87 | EJ23: 234.49 | EK23: 415.41 | EL23: 281.90 | EM23: 276.38 | EN23: 222.11 | EO23: 933.07 | EP23: 263.32 | EQ23: 541.89 | ER23: 136.83 | ES23: 465.95 | ET23: 215.52 | EU23: 151.64 | EV23: 501.16 | EW23: 162.95 | EX23: 311.57 | EY23: 741.26 | EZ23: 1202.18 | FA23: 214.30 | FB23: 249.78 | FC23: 435.17 | FD23: 422.74 | FE23: 1180.35 | FF23: 902.66 | FG23: 641.10 | FH23: 797.46 | FI23: 496.33 | FJ23: 198.27 | FK23: 515.44 | FL23: 275.94 | FM23: 520.65 | FN23: 343.61 | FO23: 1239.80 | FP23: 464.76 | FQ23: 134.01 | FR23: 387.01 | FS23: 520.52 | FT23: 733.07 | FU23: 400.41 | FV23: 1074.12 | FW23: 922.60 | FX23: 609.57 | FY23: 552.31 | FZ23: 1014.01 | GA23: 217.36 | GB23: 543.50 | GC23: 260.52 | GD23: 494.83 | GE23: 263.60 | GF23: 395.83 | GG23: 940.05 | GH23: 922.18 | GI23: 209.80 | GJ23: 449.50 | GK23: 95.89 | GL23: 193.35 | GM23: 1945.57 | GN23: 1426.11 | GO23: 288.03 | GP23: 403.31 | GQ23: 265.91 | GR23: 751.78 | GS23: 792.09 | GT23: 1081.72
A24: 19 | B24: -0.99 | C24: -0.08 | D24: -0.73 | E24: -0.82 | F24: -2.01 | G24: -0.79 | H24: 0.50 | I24: 0.49 | J24: -1.11 | K24: 0.82 | L24: -0.18 | M24: -0.19 | N24: -2.35 | O24: -0.96 | P24: 0.10 | Q24: 0.38 | R24: 1.19 | S24: -0.42 | T24: -0.13 | U24: -0.35 | V24: -0.26 | W24: 1.21 | X24: -0.46 | Y24: 0.59 | Z24: 0.25 | AA24: 0.35 | AB24: -0.44 | AC24: 1.40 | AD24: -0.21 | AE24: 1.01 | AF24: -1.29 | AG24: -0.40 | AH24: -0.66 | AI24: -1.90 | AJ24: -0.33 | AK24: -0.37 | AL24: 1.09 | AM24: 1.95 | AN24: -1.04 | AO24: -0.35 | AP24: -0.93 | AQ24: 1.18 | AR24: -0.37 | AS24: 0.19 | AT24: -0.79 | AU24: -0.68 | AV24: -0.53 | AW24: -1.06 | AX24: 0.71 | AY24: -0.02 | AZ24: 1.55 | BA24: -1.93 | BB24: 1.47 | BC24: 1.04 | BD24: -0.45 | BE24: -0.52 | BF24: -0.50 | BG24: 0.21 | BH24: -1.23 | BI24: -0.65 | BJ24: 0.93 | BK24: -2.31 | BL24: 0.07 | BM24: -1.85 | BN24: 1.90 | BO24: -0.17 | BP24: 0.90 | BQ24: -1.61 | BR24: 0.24 | BS24: -0.17 | BT24: -0.29 | BU24: -1.28 | BV24: 1.00 | BW24: 0.32 | BX24: 0.56 | BY24: -0.71 | BZ24: -0.08 | CA24: -0.34 | CB24: -0.35 | CC24: -0.18 | CD24: -1.01 | CE24: -0.14 | CF24: -2.48 | CG24: -1.42 | CH24: 1.83 | CI24: -0.51 | CJ24: 1.06 | CK24: -0.46 | CL24: 0.33 | CM24: 1.02 | CN24: -0.11 | CO24: -0.48 | CP24: 0.84 | CQ24: -0.58 | CR24: -0.83 | CS24: -0.49 | CT24: 1.38 | CU24: -1.15 | CV24: -0.04 | CW24: 0.95 | CX24: 18 | CY24: 1341.40 | CZ24: 232.24 | DA24: 524.41 | DB24: 884.95 | DC24: 227.47 | DD24: 166.31 | DE24: 281.46 | DF24: 925.05 | DG24: 615.88 | DH24: 216.37 | DI24: 406.09 | DJ24: 149.86 | DK24: 703.74 | DL24: 501.09 | DM24: 338.43 | DN24: 656.25 | DO24: 444.22 | DP24: 2183.15 | DQ24: 1021.52 | DR24: 463.08 | DS24: 208.78 | DT24: 445.21 | DU24: 985.98 | DV24: 297.39 | DW24: 2234.75 | DX24: 261.75 | DY24: 189.66 | DZ24: 434.43 | EA24: 679.95 | EB24: 576.17 | EC24: 218.42 | ED24: 206.75 | EE24: 911.00 | EF24: 397.23 | EG24: 918.49 | EH24: 262.04 | EI24: 402.33 | EJ24: 301.49 | EK24: 564.06 | EL24: 305.44 | EM24: 274.16 | EN24: 195.57 | EO24: 916.24 | EP24: 243.67 | EQ24: 506.54 | ER24: 185.53 | ES24: 593.27 | ET24: 254.69 | EU24: 179.43 | EV24: 499.71 | EW24: 180.54 | EX24: 301.73 | EY24: 677.18 | EZ24: 1077.53 | FA24: 200.37 | FB24: 252.73 | FC24: 478.69 | FD24: 445.95 | FE24: 1683.16 | FF24: 1060.16 | FG24: 751.34 | FH24: 955.21 | FI24: 523.34 | FJ24: 225.38 | FK24: 612.56 | FL24: 318.25 | FM24: 572.77 | FN24: 316.79 | FO24: 1292.87 | FP24: 499.57 | FQ24: 111.44 | FR24: 420.62 | FS24: 498.56 | FT24: 819.29 | FU24: 443.43 | FV24: 1062.89 | FW24: 1296.45 | FX24: 643.06 | FY24: 613.17 | FZ24: 1197.78 | GA24: 287.10 | GB24: 657.69 | GC24: 382.76 | GD24: 383.74 | GE24: 228.36 | GF24: 359.30 | GG24: 1231.78 | GH24: 1120.82 | GI24: 187.67 | GJ24: 717.71 | GK24: 122.77 | GL24: 196.15 | GM24: 1751.04 | GN24: 2119.20 | GO24: 414.90 | GP24: 440.67 | GQ24: 319.49 | GR24: 659.22 | GS24: 978.05 | GT24: 1124.59
A25: 20 | B25: 1.22 | C25: 0.98 | D25: 1.28 | E25: 0.36 | F25: -0.92 | G25: -1.07 | H25: -0.23 | I25: 1.46 | J25: 0.03 | K25: 0.17 | L25: 1.15 | M25: -0.41 | N25: 0.87 | O25: -0.79 | P25: 0.92 | Q25: -0.68 | R25: 0.16 | S25: -0.46 | T25: 1.46 | U25: 1.98 | V25: -0.66 | W25: 0.30 | X25: -1.61 | Y25: -0.53 | Z25: 1.92 | AA25: -2.03 | AB25: -0.59 | AC25: 2.00 | AD25: 1.89 | AE25: 0.56 | AF25: 0.88 | AG25: 0.29 | AH25: -0.88 | AI25: -1.33 | AJ25: -0.74 | AK25: 0.31 | AL25: 0.04 | AM25: 0.51 | AN25: 1.27 | AO25: 0.12 | AP25: 1.07 | AQ25: 0.10 | AR25: 2.64 | AS25: 0.31 | AT25: 0.65 | AU25: 2.40 | AV25: -1.35 | AW25: 0.45 | AX25: 0.16 | AY25: 0.36 | AZ25: 0.25 | BA25: -0.37 | BB25: -1.07 | BC25: -0.69 | BD25: -1.21 | BE25: 0.93 | BF25: 0.69 | BG25: -0.67 | BH25: 1.50 | BI25: 0.59 | BJ25: -0.53 | BK25: 1.64 | BL25: 0.72 | BM25: 0.68 | BN25: 0.61 | BO25: 0.70 | BP25: 1.62 | BQ25: 0.22 | BR25: -0.10 | BS25: 0.55 | BT25: -1.03 | BU25: -0.20 | BV25: 0.87 | BW25: 0.35 | BX25: 1.48 | BY25: 1.38 | BZ25: -0.64 | CA25: -1.23 | CB25: -1.71 | CC25: 1.26 | CD25: 0.22 | CE25: 0.38 | CF25: 1.63 | CG25: -0.09 | CH25: 0.13 | CI25: -0.74 | CJ25: -0.32 | CK25: 1.33 | CL25: -0.43 | CM25: 0.39 | CN25: -0.28 | CO25: -1.06 | CP25: -0.41 | CQ25: 0.70 | CR25: 1.03 | CS25: 2.21 | CT25: 0.05 | CU25: -1.62 | CV25: 0.38 | CW25: 3.01 | CX25: 19 | CY25: 1264.47 | CZ25: 250.66 | DA25: 513.87 | DB25: 855.35 | DC25: 183.97 | DD25: 161.36 | DE25: 331.61 | DF25: 1088.77 | DG25: 570.01 | DH25: 267.23 | DI25: 431.87 | DJ25: 159.23 | DK25: 540.24 | DL25: 474.25 | DM25: 375.18 | DN25: 759.14 | DO25: 580.24 | DP25: 2239.30 | DQ25: 1094.10 | DR25: 480.02 | DS25: 219.36 | DT25: 583.62 | DU25: 1005.84 | DV25: 355.27 | DW25: 2536.32 | DX25: 301.64 | DY25: 193.92 | DZ25: 585.66 | EA25: 720.41 | EB25: 732.53 | EC25: 196.72 | ED25: 212.85 | EE25: 901.32 | EF25: 326.38 | EG25: 954.62 | EH25: 270.89 | EI25: 517.79 | EJ25: 441.33 | EK25: 527.74 | EL25: 316.63 | EM25: 260.42 | EN25: 255.10 | EO25: 947.71 | EP25: 273.78 | EQ25: 491.65 | ER25: 182.99 | ES25: 599.01 | ET25: 237.32 | EU25: 218.12 | EV25: 544.32 | EW25: 248.90 | EX25: 246.83 | EY25: 922.92 | EZ25: 1375.95 | FA25: 204.73 | FB25: 255.34 | FC25: 485.37 | FD25: 502.80 | FE25: 1528.61 | FF25: 1050.60 | FG25: 943.81 | FH25: 737.91 | FI25: 577.99 | FJ25: 186.57 | FK25: 890.59 | FL25: 338.97 | FM25: 716.76 | FN25: 272.03 | FO25: 1464.74 | FP25: 532.18 | FQ25: 116.52 | FR25: 379.61 | FS25: 633.00 | FT25: 939.90 | FU25: 527.19 | FV25: 1044.48 | FW25: 1400.34 | FX25: 667.95 | FY25: 636.28 | FZ25: 1274.53 | GA25: 269.61 | GB25: 703.32 | GC25: 288.33 | GD25: 339.15 | GE25: 328.45 | GF25: 363.46 | GG25: 1577.52 | GH25: 1142.80 | GI25: 215.64 | GJ25: 913.81 | GK25: 131.99 | GL25: 199.39 | GM25: 2169.85 | GN25: 2123.03 | GO25: 400.24 | GP25: 447.62 | GQ25: 429.50 | GR25: 606.13 | GS25: 1062.56 | GT25: 1417.54
A26: 21 | B26: 1.28 | C26: 0.72 | D26: 0.47 | E26: -0.64 | F26: -0.13 | G26: 1.09 | H26: 1.34 | I26: 0.78 | J26: 1.63 | K26: -1.52 | L26: -0.12 | M26: 1.11 | N26: -1.88 | O26: -0.29 | P26: -1.32 | Q26: -0.83 | R26: -2.61 | S26: -0.75 | T26: -1.19 | U26: 2.02 | V26: 0.48 | W26: 0.14 | X26: 1.25 | Y26: 0.70 | Z26: 0.94 | AA26: -0.81 | AB26: -1.31 | AC26: -0.07 | AD26: -0.38 | AE26: 1.04 | AF26: 1.77 | AG26: -0.81 | AH26: -2.41 | AI26: 0.25 | AJ26: 0.06 | AK26: -0.82 | AL26: 0.35 | AM26: 1.16 | AN26: -0.86 | AO26: 0.48 | AP26: 0.45 | AQ26: 0.01 | AR26: 0.29 | AS26: 1.56 | AT26: -1.40 | AU26: 0.15 | AV26: -0.92 | AW26: -0.28 | AX26: -0.47 | AY26: -1.58 | AZ26: -1.06 | BA26: 1.11 | BB26: 0.15 | BC26: 1.66 | BD26: 0.60 | BE26: 1.97 | BF26: 0.72 | BG26: 0.07 | BH26: -1.49 | BI26: 0.72 | BJ26: 0.84 | BK26: 0.46 | BL26: 0.13 | BM26: -0.03 | BN26: -0.71 | BO26: -1.26 | BP26: -0.65 | BQ26: 0.79 | BR26: -2.12 | BS26: -2.65 | BT26: -1.38 | BU26: 2.15 | BV26: 0.21 | BW26: -0.71 | BX26: -0.36 | BY26: 1.18 | BZ26: 0.52 | CA26: 0.07 | CB26: -0.30 | CC26: 0.65 | CD26: 0.21 | CE26: 0.49 | CF26: 0.82 | CG26: 0.89 | CH26: -0.02 | CI26: -0.03 | CJ26: -0.88 | CK26: -1.20 | CL26: -0.15 | CM26: -1.25 | CN26: 1.09 | CO26: 0.95 | CP26: -0.79 | CQ26: 0.59 | CR26: -1.24 | CS26: -2.48 | CT26: -0.46 | CU26: -0.44 | CV26: 2.02 | CW26: 1.60 | CX26: 20 | CY26: 1658.42 | CZ26: 317.36 | DA26: 679.93 | DB26: 986.35 | DC26: 175.13 | DD26: 150.21 | DE26: 350.35 | DF26: 1480.88 | DG26: 625.27 | DH26: 299.56 | DI26: 560.54 | DJ26: 163.61 | DK26: 673.08 | DL26: 460.50 | DM26: 470.79 | DN26: 749.19 | DO26: 649.92 | DP26: 2283.82 | DQ26: 1488.43 | DR26: 705.72 | DS26: 216.96 | DT26: 667.14 | DU26: 863.59 | DV26: 358.69 | DW26: 3699.14 | DX26: 243.02 | DY26: 193.87 | DZ26: 864.47 | EA26: 1044.93 | EB26: 870.06 | EC26: 245.30 | ED26: 243.07 | EE26: 863.40 | EF26: 292.15 | EG26: 934.08 | EH26: 309.92 | EI26: 569.04 | EJ26: 520.67 | EK26: 697.58 | EL26: 352.42 | EM26: 333.90 | EN26: 283.04 | EO26: 1539.91 | EP26: 313.20 | EQ26: 592.41 | ER26: 286.72 | ES26: 534.73 | ET26: 277.40 | EU26: 244.30 | EV26: 627.94 | EW26: 282.31 | EX26: 255.25 | EY26: 859.40 | EZ26: 1355.52 | FA26: 186.46 | FB26: 320.70 | FC26: 588.14 | FD26: 497.07 | FE26: 2093.16 | FF26: 1253.57 | FG26: 952.16 | FH26: 1031.65 | FI26: 703.96 | FJ26: 225.84 | FK26: 1067.06 | FL26: 411.46 | FM26: 998.52 | FN26: 307.43 | FO26: 1575.80 | FP26: 631.67 | FQ26: 109.06 | FR26: 402.30 | FS26: 788.51 | FT26: 1082.26 | FU26: 719.11 | FV26: 1403.32 | FW26: 1390.03 | FX26: 607.28 | FY26: 538.00 | FZ26: 1682.77 | GA26: 304.41 | GB26: 813.41 | GC26: 402.24 | GD26: 365.60 | GE26: 365.76 | GF26: 355.24 | GG26: 1643.59 | GH26: 1523.75 | GI26: 221.03 | GJ26: 1058.87 | GK26: 138.36 | GL26: 185.97 | GM26: 2229.64 | GN26: 2577.01 | GO26: 510.76 | GP26: 681.35 | GQ26: 472.92 | GR26: 519.82 | GS26: 1228.98 | GT26: 2432.61
A27: 22 | B27: -2.13 | C27: -0.79 | D27: 1.27 | E27: 1.74 | F27: -1.26 | G27: -0.73 | H27: -1.69 | I27: 1.05 | J27: 0.35 | K27: -0.53 | L27: 1.35 | M27: 1.19 | N27: -0.92 | O27: -0.69 | P27: 1.51 | Q27: -0.10 | R27: 0.83 | S27: -0.08 | T27: 0.33 | U27: -0.24 | V27: -0.20 | W27: -0.05 | X27: -1.27 | Y27: -1.75 | Z27: 0.64 | AA27: 0.94 | AB27: -0.37 | AC27: 1.00 | AD27: -0.60 | AE27: -0.05 | AF27: -0.45 | AG27: -1.87 | AH27: 1.00 | AI27: -1.07 | AJ27: 2.76 | AK27: 0.80 | AL27: 1.62 | AM27: 0.25 | AN27: 0.17 | AO27: -0.16 | AP27: -0.22 | AQ27: 0.12 | AR27: -2.55 | AS27: -0.39 | AT27: 0.68 | AU27: -2.16 | AV27: 1.82 | AW27: 1.08 | AX27: 0.19 | AY27: 1.05 | AZ27: -0.20 | BA27: 2.09 | BB27: 0.16 | BC27: -0.39 | BD27: 1.62 | BE27: -0.94 | BF27: -0.57 | BG27: -0.03 | BH27: -1.64 | BI27: 2.06 | BJ27: -0.27 | BK27: 1.38 | BL27: -0.10 | BM27: 0.83 | BN27: -0.06 | BO27: -1.45 | BP27: 0.73 | BQ27: 0.14 | BR27: -1.24 | BS27: 0.30 | BT27: -0.40 | BU27: 0.27 | BV27: -0.42 | BW27: 0.25 | BX27: 1.52 | BY27: 0.17 | BZ27: -0.68 | CA27: -0.16 | CB27: 0.91 | CC27: -0.08 | CD27: 0.52 | CE27: -0.66 | CF27: 1.80 | CG27: 1.17 | CH27: 2.67 | CI27: 0.16 | CJ27: -1.37 | CK27: -0.22 | CL27: 0.13 | CM27: 1.09 | CN27: 2.04 | CO27: -0.49 | CP27: -0.66 | CQ27: -1.00 | CR27: -1.39 | CS27: -0.24 | CT27: 0.51 | CU27: 1.65 | CV27: 0.33 | CW27: -0.65 | CX27: 21 | CY27: 2194.67 | CZ27: 386.46 | DA27: 796.95 | DB27: 979.39 | DC27: 187.63 | DD27: 193.19 | DE27: 467.79 | DF27: 1820.06 | DG27: 873.17 | DH27: 260.63 | DI27: 601.81 | DJ27: 211.26 | DK27: 555.07 | DL27: 481.94 | DM27: 422.02 | DN27: 723.21 | DO27: 480.26 | DP27: 2231.17 | DQ27: 1361.05 | DR27: 1043.40 | DS27: 254.90 | DT27: 744.35 | DU27: 1138.67 | DV27: 435.54 | DW27: 4657.30 | DX27: 235.12 | DY27: 174.19 | DZ27: 934.19 | EA27: 1078.48 | EB27: 1110.60 | EC27: 349.41 | ED27: 235.38 | EE27: 657.38 | EF27: 331.44 | EG27: 1030.16 | EH27: 299.37 | EI27: 655.04 | EJ27: 677.48 | EK27: 670.27 | EL27: 413.74 | EM27: 390.32 | EN27: 309.93 | EO27: 1758.30 | EP27: 432.82 | EQ27: 524.44 | ER27: 320.58 | ES27: 509.07 | ET27: 290.77 | EU27: 248.73 | EV27: 541.13 | EW27: 263.19 | EX27: 329.55 | EY27: 960.47 | EZ27: 1901.09 | FA27: 222.81 | FB27: 470.85 | FC27: 715.97 | FD27: 549.24 | FE27: 1829.62 | FF27: 1525.04 | FG27: 1179.51 | FH27: 1208.25 | FI27: 784.05 | FJ27: 245.75 | FK27: 1047.73 | FL27: 372.03 | FM27: 989.11 | FN27: 378.40 | FO27: 1252.40 | FP27: 463.90 | FQ27: 96.86 | FR27: 606.87 | FS27: 888.80 | FT27: 1063.79 | FU27: 744.42 | FV27: 1830.14 | FW27: 1643.30 | FX27: 670.33 | FY27: 562.06 | FZ27: 2027.07 | GA27: 343.54 | GB27: 956.27 | GC27: 497.27 | GD27: 456.37 | GE27: 398.46 | GF27: 386.61 | GG27: 1573.94 | GH27: 1391.76 | GI27: 236.05 | GJ27: 959.59 | GK27: 177.99 | GL27: 234.34 | GM27: 2164.58 | GN27: 3077.65 | GO27: 463.34 | GP27: 513.50 | GQ27: 482.16 | GR27: 531.39 | GS27: 1818.80 | GT27: 3379.68
A28: 23 | B28: 1.05 | C28: 0.59 | D28: -0.42 | E28: 0.68 | F28: 0.01 | G28: -0.16 | H28: -2.65 | I28: 1.26 | J28: 1.17 | K28: -1.25 | L28: 1.68 | M28: -1.03 | N28: 0.97 | O28: 1.60 | P28: 0.51 | Q28: -1.69 | R28: -1.11 | S28: -1.09 | T28: 0.63 | U28: -0.38 | V28: -2.06 | W28: 0.71 | X28: 1.73 | Y28: 0.34 | Z28: 0.58 | AA28: 1.17 | AB28: -0.21 | AC28: -0.21 | AD28: -1.74 | AE28: -0.32 | AF28: -1.86 | AG28: 0.80 | AH28: 0.65 | AI28: -0.01 | AJ28: -1.99 | AK28: 0.43 | AL28: 0.77 | AM28: 0.51 | AN28: 0.11 | AO28: 0.19 | AP28: -1.05 | AQ28: 0.75 | AR28: -0.34 | AS28: -0.92 | AT28: -0.21 | AU28: 1.05 | AV28: -1.43 | AW28: -0.43 | AX28: 0.44 | AY28: -0.72 | AZ28: 0.39 | BA28: 2.07 | BB28: 1.65 | BC28: 0.37 | BD28: 0.98 | BE28: 0.38 | BF28: 1.42 | BG28: 1.33 | BH28: -0.75 | BI28: 0.89 | BJ28: 1.04 | BK28: 0.26 | BL28: -0.11 | BM28: 1.71 | BN28: 0.27 | BO28: 0.49 | BP28: -0.19 | BQ28: 0.12 | BR28: 0.90 | BS28: 0.46 | BT28: 1.40 | BU28: 0.72 | BV28: 0.95 | BW28: -0.39 | BX28: 0.20 | BY28: -0.76 | BZ28: 0.44 | CA28: 0.16 | CB28: 0.28 | CC28: -0.01 | CD28: 0.20 | CE28: -0.90 | CF28: -1.20 | CG28: 0.54 | CH28: -0.29 | CI28: 0.37 | CJ28: -0.01 | CK28: 1.82 | CL28: -0.55 | CM28: -0.72 | CN28: 0.83 | CO28: 1.84 | CP28: -0.72 | CQ28: 0.11 | CR28: -0.21 | CS28: -0.07 | CT28: 0.16 | CU28: -0.86 | CV28: -1.34 | CW28: -2.58 | CX28: 22 | CY28: 1741.18 | CZ28: 375.24 | DA28: 1054.02 | DB28: 1388.62 | DC28: 169.65 | DD28: 189.10 | DE28: 396.83 | DF28: 2329.29 | DG28: 1004.92 | DH28: 263.15 | DI28: 804.99 | DJ28: 276.10 | DK28: 528.13 | DL28: 474.93 | DM28: 578.77 | DN28: 778.39 | DO28: 594.68 | DP28: 2410.58 | DQ28: 1563.85 | DR28: 1100.70 | DS28: 270.45 | DT28: 807.22 | DU28: 1028.41 | DV28: 366.07 | DW28: 5599.12 | DX28: 296.02 | DY28: 180.08 | DZ28: 1186.77 | EA28: 1077.57 | EB28: 1203.88 | EC28: 356.66 | ED28: 194.29 | EE28: 834.17 | EF28: 308.53 | EG28: 1701.99 | EH28: 368.66 | EI28: 913.37 | EJ28: 768.73 | EK28: 751.16 | EL28: 441.17 | EM28: 412.54 | EN28: 344.81 | EO28: 1310.17 | EP28: 445.84 | EQ28: 635.07 | ER28: 253.31 | ES28: 731.28 | ET28: 373.50 | EU28: 279.53 | EV28: 692.11 | EW28: 279.17 | EX28: 492.78 | EY28: 1075.14 | EZ28: 1958.95 | FA28: 310.27 | FB28: 446.94 | FC28: 718.01 | FD28: 597.79 | FE28: 1564.43 | FF28: 2268.57 | FG28: 1237.97 | FH28: 1623.36 | FI28: 844.11 | FJ28: 304.16 | FK28: 1134.87 | FL28: 326.94 | FM28: 1206.05 | FN28: 422.26 | FO28: 1136.00 | FP28: 530.38 | FQ28: 99.71 | FR28: 690.19 | FS28: 912.53 | FT28: 1206.94 | FU28: 1021.75 | FV28: 2053.17 | FW28: 1620.91 | FX28: 715.27 | FY28: 703.82 | FZ28: 2189.58 | GA28: 406.03 | GB28: 946.31 | GC28: 711.71 | GD28: 594.59 | GE28: 649.72 | GF28: 432.80 | GG28: 1400.24 | GH28: 1472.22 | GI28: 262.95 | GJ28: 1235.67 | GK28: 264.17 | GL28: 237.85 | GM28: 2143.32 | GN28: 2893.28 | GO28: 410.93 | GP28: 540.98 | GQ28: 568.41 | GR28: 743.84 | GS28: 2087.95 | GT28: 3347.91
A29: 24 | B29: -1.71 | C29: -0.45 | D29: 0.07 | E29: 0.07 | F29: 2.43 | G29: 1.28 | H29: 0.39 | I29: -0.33 | J29: 0.24 | K29: -0.47 | L29: 0.93 | M29: -0.82 | N29: -1.18 | O29: -0.11 | P29: 1.55 | Q29: -0.43 | R29: -1.03 | S29: 0.10 | T29: 1.02 | U29: -1.27 | V29: 0.05 | W29: 3.23 | X29: 1.67 | Y29: 0.43 | Z29: -1.35 | AA29: 0.74 | AB29: -0.10 | AC29: 1.66 | AD29: -2.28 | AE29: -1.43 | AF29: -1.30 | AG29: -1.66 | AH29: 0.47 | AI29: -0.65 | AJ29: 0.81 | AK29: 0.97 | AL29: 1.99 | AM29: 0.36 | AN29: -0.96 | AO29: -1.23 | AP29: 2.08 | AQ29: -2.28 | AR29: -0.60 | AS29: -1.95 | AT29: 0.96 | AU29: 0.49 | AV29: -0.08 | AW29: -1.38 | AX29: 1.02 | AY29: 0.70 | AZ29: 0.95 | BA29: -0.05 | BB29: 0.26 | BC29: 0.00 | BD29: -1.68 | BE29: -1.27 | BF29: -1.37 | BG29: 0.01 | BH29: -1.01 | BI29: 1.41 | BJ29: 0.33 | BK29: 0.11 | BL29: -1.59 | BM29: -1.31 | BN29: 0.59 | BO29: 0.61 | BP29: -0.94 | BQ29: 0.14 | BR29: -0.24 | BS29: 1.69 | BT29: -0.68 | BU29: -0.44 | BV29: -0.28 | BW29: -0.86 | BX29: 0.14 | BY29: -0.16 | BZ29: 0.08 | CA29: 0.44 | CB29: 0.20 | CC29: 0.19 | CD29: 1.09 | CE29: -0.25 | CF29: -0.20 | CG29: -0.18 | CH29: 0.82 | CI29: -0.85 | CJ29: 1.76 | CK29: 1.14 | CL29: 0.48 | CM29: 0.33 | CN29: -1.19 | CO29: 0.87 | CP29: -0.31 | CQ29: 1.88 | CR29: -1.24 | CS29: 1.91 | CT29: 1.57 | CU29: 0.42 | CV29: -0.98 | CW29: -0.06 | CX29: 23 | CY29: 2228.20 | CZ29: 447.81 | DA29: 1080.81 | DB29: 1679.44 | DC29: 185.69 | DD29: 201.66 | DE29: 291.32 | DF29: 3073.57 | DG29: 1308.26 | DH29: 238.38 | DI29: 1132.03 | DJ29: 258.66 | DK29: 667.09 | DL29: 659.88 | DM29: 682.44 | DN29: 660.30 | DO29: 549.93 | DP29: 2237.56 | DQ29: 1879.23 | DR29: 1135.70 | DS29: 216.96 | DT29: 980.55 | DU29: 1457.67 | DV29: 420.86 | DW29: 6673.22 | DX29: 385.50 | DY29: 190.73 | DZ29: 1257.23 | EA29: 907.34 | EB29: 1254.12 | EC29: 294.71 | ED29: 239.42 | EE29: 1004.70 | EF29: 336.69 | EG29: 1380.95 | EH29: 429.48 | EI29: 1120.19 | EJ29: 907.34 | EK29: 834.50 | EL29: 496.06 | EM29: 384.85 | EN29: 421.76 | EO29: 1360.12 | EP29: 424.38 | EQ29: 672.08 | ER29: 324.27 | ES29: 645.27 | ET29: 382.45 | EU29: 326.08 | EV29: 679.37 | EW29: 323.58 | EX29: 734.09 | EY29: 1505.61 | EZ29: 2264.54 | FA29: 392.96 | FB29: 516.92 | FC29: 971.50 | FD29: 798.03 | FE29: 1526.95 | FF29: 2832.49 | FG29: 1581.57 | FH29: 1844.13 | FI29: 907.55 | FJ29: 429.70 | FK29: 1291.24 | FL29: 384.43 | FM29: 1281.50 | FN29: 469.87 | FO29: 1419.89 | FP29: 620.81 | FQ29: 134.42 | FR29: 840.73 | FS29: 1150.55 | FT29: 1244.88 | FU29: 1150.97 | FV29: 2002.60 | FW29: 1890.96 | FX29: 801.12 | FY29: 802.26 | FZ29: 2390.28 | GA29: 457.05 | GB29: 903.01 | GC29: 649.90 | GD29: 704.68 | GE29: 680.00 | GF29: 500.23 | GG29: 1527.81 | GH29: 2113.68 | GI29: 264.42 | GJ29: 1211.58 | GK29: 327.01 | GL29: 342.63 | GM29: 2102.51 | GN29: 3215.05 | GO29: 435.38 | GP29: 584.97 | GQ29: 636.20 | GR29: 714.61 | GS29: 1866.67 | GT29: 2486.23
A30: 25 | B30: -0.89 | C30: -0.33 | D30: 0.10 | E30: -0.42 | F30: -0.95 | G30: -1.39 | H30: -0.55 | I30: 0.92 | J30: -0.46 | K30: -0.37 | L30: 0.47 | M30: 0.96 | N30: -0.35 | O30: -0.81 | P30: 0.32 | Q30: -0.91 | R30: 0.38 | S30: 0.51 | T30: -1.21 | U30: 2.11 | V30: -1.19 | W30: 0.47 | X30: 1.98 | Y30: 1.63 | Z30: -0.01 | AA30: 1.16 | AB30: 1.47 | AC30: 1.32 | AD30: 1.28 | AE30: 0.35 | AF30: -0.59 | AG30: -0.57 | AH30: 0.02 | AI30: 0.21 | AJ30: -0.76 | AK30: 0.99 | AL30: -0.12 | AM30: 0.09 | AN30: -1.12 | AO30: -0.08 | AP30: 0.22 | AQ30: 1.00 | AR30: 0.55 | AS30: -0.55 | AT30: -0.52 | AU30: 0.24 | AV30: -0.06 | AW30: 1.17 | AX30: 2.27 | AY30: 0.73 | AZ30: -0.13 | BA30: 1.00 | BB30: -0.23 | BC30: 1.06 | BD30: -0.24 | BE30: 0.22 | BF30: 0.02 | BG30: 1.61 | BH30: 0.58 | BI30: 0.10 | BJ30: 1.50 | BK30: 1.19 | BL30: -1.45 | BM30: 0.18 | BN30: 0.96 | BO30: -0.16 | BP30: -2.18 | BQ30: 1.61 | BR30: -1.08 | BS30: -1.42 | BT30: 0.71 | BU30: 0.18 | BV30: 2.27 | BW30: -0.27 | BX30: -1.10 | BY30: 0.82 | BZ30: -0.25 | CA30: 0.28 | CB30: -1.67 | CC30: 0.18 | CD30: 1.43 | CE30: -0.42 | CF30: -0.14 | CG30: -0.63 | CH30: -0.37 | CI30: 2.84 | CJ30: -1.26 | CK30: 1.13 | CL30: -0.78 | CM30: -2.08 | CN30: -0.77 | CO30: 1.35 | CP30: -0.97 | CQ30: -0.55 | CR30: -1.12 | CS30: 0.99 | CT30: 1.36 | CU30: 1.46 | CV30: -1.02 | CW30: -0.91 | CX30: 24 | CY30: 1885.32 | CZ30: 457.68 | DA30: 1192.79 | DB30: 1854.94 | DC30: 292.19 | DD30: 266.83 | DE30: 337.52 | DF30: 3197.47 | DG30: 1482.54 | DH30: 242.71 | DI30: 1422.03 | DJ30: 249.78 | DK30: 611.15 | DL30: 708.90 | DM30: 940.72 | DN30: 676.93 | DO30: 514.62 | DP30: 2480.33 | DQ30: 2392.35 | DR30: 1026.58 | DS30: 239.00 | DT30: 1740.56 | DU30: 2047.48 | DV30: 490.62 | DW30: 5958.75 | DX30: 470.78 | DY30: 205.30 | DZ30: 1763.65 | EA30: 704.63 | EB30: 1106.42 | EC30: 264.99 | ED30: 203.87 | EE30: 1178.33 | EF30: 333.69 | EG30: 1704.70 | EH30: 542.55 | EI30: 1649.45 | EJ30: 1046.86 | EK30: 789.24 | EL30: 450.47 | EM30: 574.55 | EN30: 327.33 | EO30: 1359.03 | EP30: 346.35 | EQ30: 848.24 | ER30: 381.24 | ES30: 696.84 | ET30: 339.86 | EU30: 415.55 | EV30: 824.81 | EW30: 407.80 | EX30: 796.66 | EY30: 1710.04 | EZ30: 2476.17 | FA30: 333.62 | FB30: 467.19 | FC30: 864.92 | FD30: 873.87 | FE30: 1434.77 | FF30: 3823.52 | FG30: 1815.88 | FH30: 2049.93 | FI30: 780.84 | FJ30: 385.95 | FK30: 1541.04 | FL30: 460.46 | FM30: 1216.59 | FN30: 524.25 | FO30: 1497.59 | FP30: 874.28 | FQ30: 132.55 | FR30: 860.27 | FS30: 1206.15 | FT30: 1196.58 | FU30: 1285.14 | FV30: 2136.89 | FW30: 2092.07 | FX30: 935.71 | FY30: 903.53 | FZ30: 2685.80 | GA30: 588.47 | GB30: 949.91 | GC30: 689.08 | GD30: 749.89 | GE30: 840.90 | GF30: 480.97 | GG30: 2174.58 | GH30: 2741.64 | GI30: 310.30 | GJ30: 1391.66 | GK30: 298.81 | GL30: 426.50 | GM30: 2191.71 | GN30: 4657.65 | GO30: 395.32 | GP30: 850.89 | GQ30: 879.67 | GR30: 832.24 | GS30: 1760.23 | GT30: 2692.20
A31: 26 | B31: 1.46 | C31: 1.21 | D31: 1.28 | E31: -0.72 | F31: -0.08 | G31: -0.19 | H31: 1.76 | I31: 0.21 | J31: -0.93 | K31: 2.03 | L31: -0.17 | M31: -0.82 | N31: 1.02 | O31: -0.04 | P31: -1.23 | Q31: -0.06 | R31: 0.10 | S31: 0.30 | T31: 0.86 | U31: 1.06 | V31: 0.56 | W31: -1.36 | X31: 0.50 | Y31: -0.07 | Z31: -0.01 | AA31: -0.25 | AB31: -1.52 | AC31: -0.02 | AD31: 0.77 | AE31: -0.77 | AF31: -0.20 | AG31: -0.08 | AH31: -0.56 | AI31: 0.83 | AJ31: -0.55 | AK31: -0.08 | AL31: -0.66 | AM31: 0.01 | AN31: 0.58 | AO31: -0.48 | AP31: 1.40 | AQ31: -1.46 | AR31: 0.72 | AS31: 0.37 | AT31: -0.19 | AU31: -0.15 | AV31: 2.16 | AW31: -1.23 | AX31: -0.46 | AY31: 1.16 | AZ31: -0.62 | BA31: 0.00 | BB31: -0.37 | BC31: -0.52 | BD31: 1.54 | BE31: -1.42 | BF31: 0.27 | BG31: -0.20 | BH31: 0.05 | BI31: 1.03 | BJ31: 0.66 | BK31: 0.34 | BL31: -1.21 | BM31: -1.09 | BN31: -0.08 | BO31: -0.54 | BP31: 0.57 | BQ31: -0.90 | BR31: 1.06 | BS31: -0.34 | BT31: -0.07 | BU31: -1.66 | BV31: 0.54 | BW31: 1.40 | BX31: -0.83 | BY31: 0.40 | BZ31: 0.28 | CA31: 0.27 | CB31: -1.07 | CC31: -0.87 | CD31: 1.04 | CE31: 0.24 | CF31: -0.55 | CG31: 0.46 | CH31: 0.83 | CI31: 1.91 | CJ31: -0.57 | CK31: 2.31 | CL31: 1.82 | CM31: -0.83 | CN31: -0.93 | CO31: -1.16 | CP31: -0.25 | CQ31: 0.32 | CR31: -1.45 | CS31: 1.50 | CT31: 0.03 | CU31: 0.09 | CV31: 2.08 | CW31: -0.84 | CX31: 25 | CY31: 1803.90 | CZ31: 476.25 | DA31: 1322.53 | DB31: 1904.18 | DC31: 276.98 | DD31: 236.77 | DE31: 339.63 | DF31: 4010.74 | DG31: 1513.10 | DH31: 250.87 | DI31: 1666.97 | DJ31: 315.24 | DK31: 634.03 | DL31: 686.31 | DM31: 1077.99 | DN31: 645.65 | DO31: 595.40 | DP31: 2927.92 | DQ31: 2179.12 | DR31: 1540.21 | DS31: 218.44 | DT31: 2042.02 | DU31: 3010.90 | DV31: 684.81 | DW31: 6500.16 | DX31: 612.02 | DY31: 279.51 | DZ31: 2350.83 | EA31: 932.71 | EB31: 1274.93 | EC31: 265.17 | ED31: 204.38 | EE31: 1291.16 | EF31: 376.37 | EG31: 1662.34 | EH31: 687.97 | EI31: 1769.81 | EJ31: 1159.52 | EK31: 728.96 | EL31: 486.29 | EM31: 649.27 | EN31: 415.88 | EO31: 1612.70 | EP31: 348.57 | EQ31: 857.05 | ER31: 431.58 | ES31: 755.01 | ET31: 442.90 | EU31: 637.97 | EV31: 1006.31 | EW31: 436.84 | EX31: 1011.35 | EY31: 1804.09 | EZ31: 3170.55 | FA31: 351.68 | FB31: 527.63 | FC31: 948.03 | FD31: 1216.57 | FE31: 1711.50 | FF31: 4240.71 | FG31: 2486.98 | FH31: 2679.24 | FI31: 686.37 | FJ31: 433.09 | FK31: 1946.25 | FL31: 490.95 | FM31: 959.35 | FN31: 729.90 | FO31: 1391.59 | FP31: 771.99 | FQ31: 161.18 | FR31: 966.08 | FS31: 1851.72 | FT31: 1255.36 | FU31: 1190.33 | FV31: 2640.74 | FW31: 2201.84 | FX31: 1066.45 | FY31: 768.12 | FZ31: 3013.18 | GA31: 797.19 | GB31: 974.66 | GC31: 736.96 | GD31: 745.90 | GE31: 868.69 | GF31: 805.24 | GG31: 1967.28 | GH31: 3549.17 | GI31: 301.80 | GJ31: 1113.68 | GK31: 290.74 | GL31: 570.42 | GM31: 2070.03 | GN31: 4683.82 | GO31: 364.97 | GP31: 1078.17 | GQ31: 1179.29 | GR31: 1132.57 | GS31: 1651.88 | GT31: 2565.72
A32: 27 | B32: -1.59 | C32: 1.26 | D32: 0.90 | E32: -0.69 | F32: -0.30 | G32: -0.82 | H32: 1.56 | I32: 1.35 | J32: 0.36 | K32: 0.07 | L32: -0.89 | M32: -0.95 | N32: -1.66 | O32: -0.70 | P32: 0.52 | Q32: -1.02 | R32: 1.79 | S32: 0.15 | T32: 0.24 | U32: 1.16 | V32: 0.89 | W32: -0.62 | X32: 0.65 | Y32: -0.15 | Z32: 0.30 | AA32: 0.98 | AB32: 0.44 | AC32: 2.58 | AD32: -0.74 | AE32: -0.48 | AF32: 1.49 | AG32: -0.69 | AH32: 1.47 | AI32: -1.12 | AJ32: 1.15 | AK32: 0.77 | AL32: 0.24 | AM32: -0.60 | AN32: -0.83 | AO32: 2.27 | AP32: -1.94 | AQ32: 1.32 | AR32: -0.68 | AS32: 1.24 | AT32: 0.31 | AU32: 1.70 | AV32: -0.39 | AW32: 0.29 | AX32: -1.50 | AY32: 0.47 | AZ32: -0.65 | BA32: 0.89 | BB32: -0.91 | BC32: 0.77 | BD32: 1.67 | BE32: 0.97 | BF32: 0.15 | BG32: -1.74 | BH32: 0.84 | BI32: 1.16 | BJ32: -0.78 | BK32: -1.31 | BL32: -0.16 | BM32: 1.70 | BN32: 0.93 | BO32: -0.60 | BP32: -0.50 | BQ32: 1.46 | BR32: 0.69 | BS32: -1.16 | BT32: -0.70 | BU32: -0.33 | BV32: 0.17 | BW32: 0.28 | BX32: 2.41 | BY32: 0.28 | BZ32: -1.59 | CA32: 0.05 | CB32: -1.15 | CC32: 0.37 | CD32: 0.25 | CE32: -1.20 | CF32: -0.85 | CG32: -0.58 | CH32: 1.14 | CI32: 0.17 | CJ32: 0.21 | CK32: -0.70 | CL32: 0.41 | CM32: -0.90 | CN32: 1.26 | CO32: 0.09 | CP32: 1.05 | CQ32: 2.36 | CR32: -0.25 | CS32: 1.11 | CT32: -0.33 | CU32: 0.44 | CV32: -0.51 | CW32: -0.32 | CX32: 26 | CY32: 2453.30 | CZ32: 623.70 | DA32: 1750.36 | DB32: 1868.45 | DC32: 299.13 | DD32: 251.30 | DE32: 483.41 | DF32: 4525.85 | DG32: 1438.66 | DH32: 371.86 | DI32: 1775.88 | DJ32: 304.43 | DK32: 806.89 | DL32: 745.08 | DM32: 978.96 | DN32: 699.76 | DO32: 660.07 | DP32: 3346.60 | DQ32: 2708.04 | DR32: 1972.67 | DS32: 259.66 | DT32: 1820.47 | DU32: 3548.35 | DV32: 740.45 | DW32: 7092.14 | DX32: 644.26 | DY32: 243.23 | DZ32: 2562.45 | EA32: 1144.57 | EB32: 1242.18 | EC32: 281.02 | ED32: 220.61 | EE32: 1296.60 | EF32: 465.54 | EG32: 1672.39 | EH32: 742.99 | EI32: 1752.08 | EJ32: 1269.47 | EK32: 868.79 | EL32: 494.73 | EM32: 875.89 | EN32: 365.00 | EO32: 1963.05 | EP32: 402.86 | EQ32: 909.64 | ER32: 461.28 | ES32: 1141.36 | ET32: 402.22 | EU32: 650.63 | EV32: 1308.38 | EW32: 435.28 | EX32: 1105.66 | EY32: 1865.23 | EZ32: 3206.45 | FA32: 484.01 | FB32: 465.73 | FC32: 1079.37 | FD32: 1290.12 | FE32: 1885.13 | FF32: 5407.63 | FG32: 2999.52 | FH32: 3078.88 | FI32: 625.33 | FJ32: 402.01 | FK32: 2102.84 | FL32: 495.13 | FM32: 1141.53 | FN32: 696.47 | FO32: 1782.08 | FP32: 801.96 | FQ32: 174.25 | FR32: 823.41 | FS32: 2193.02 | FT32: 1691.99 | FU32: 1147.98 | FV32: 3066.44 | FW32: 2508.76 | FX32: 1213.43 | FY32: 715.14 | FZ32: 2890.39 | GA32: 1018.27 | GB32: 1103.49 | GC32: 742.02 | GD32: 873.03 | GE32: 1075.09 | GF32: 1171.72 | GG32: 1974.03 | GH32: 5486.72 | GI32: 433.07 | GJ32: 1075.27 | GK32: 276.49 | GL32: 523.45 | GM32: 2177.49 | GN32: 5372.51 | GO32: 320.76 | GP32: 1474.64 | GQ32: 1294.53 | GR32: 1254.12 | GS32: 2467.60 | GT32: 2471.29
A33: 28 | B33: -1.52 | C33: -0.24 | D33: -0.39 | E33: -0.12 | F33: -0.42 | G33: 0.39 | H33: 0.30 | I33: 2.21 | J33: 0.31 | K33: -0.31 | L33: 1.65 | M33: 0.63 | N33: -0.44 | O33: 0.82 | P33: 1.12 | Q33: -0.98 | R33: -0.05 | S33: -1.22 | T33: -0.17 | U33: 0.01 | V33: 0.33 | W33: -0.37 | X33: 1.41 | Y33: -0.44 | Z33: -0.52 | AA33: 0.75 | AB33: 0.71 | AC33: -0.19 | AD33: -0.03 | AE33: 0.99 | AF33: 0.22 | AG33: -0.82 | AH33: -0.00 | AI33: -0.16 | AJ33: 0.99 | AK33: 0.06 | AL33: 0.52 | AM33: -0.81 | AN33: 1.05 | AO33: -1.37 | AP33: -0.33 | AQ33: 0.33 | AR33: 0.75 | AS33: -0.56 | AT33: -0.48 | AU33: 0.85 | AV33: -0.65 | AW33: 0.70 | AX33: -0.33 | AY33: 0.13 | AZ33: -0.43 | BA33: -0.31 | BB33: -0.05 | BC33: 0.90 | BD33: -0.34 | BE33: -1.76 | BF33: -0.01 | BG33: 1.14 | BH33: -0.04 | BI33: 2.12 | BJ33: -0.34 | BK33: -0.15 | BL33: -0.26 | BM33: 1.43 | BN33: 0.93 | BO33: -0.93 | BP33: -1.57 | BQ33: 0.83 | BR33: -0.55 | BS33: 0.28 | BT33: 1.68 | BU33: -0.30 | BV33: -1.11 | BW33: -1.83 | BX33: 0.19 | BY33: 0.26 | BZ33: 1.24 | CA33: -0.28 | CB33: 1.17 | CC33: 0.72 | CD33: 0.52 | CE33: 0.49 | CF33: -1.02 | CG33: 0.03 | CH33: -0.05 | CI33: 1.86 | CJ33: -0.65 | CK33: 0.96 | CL33: -0.98 | CM33: -0.33 | CN33: 0.15 | CO33: 0.83 | CP33: -0.04 | CQ33: -0.53 | CR33: 0.07 | CS33: -0.18 | CT33: 0.19 | CU33: -0.66 | CV33: -0.28 | CW33: -0.32 | CX33: 27 | CY33: 2112.85 | CZ33: 823.60 | DA33: 2187.81 | DB33: 1841.84 | DC33: 312.73 | DD33: 242.79 | DE33: 667.59 | DF33: 6059.35 | DG33: 1658.38 | DH33: 410.40 | DI33: 1696.89 | DJ33: 288.49 | DK33: 687.08 | DL33: 733.24 | DM33: 1157.38 | DN33: 656.44 | DO33: 944.01 | DP33: 3737.98 | DQ33: 3066.51 | DR33: 2565.41 | DS33: 324.41 | DT33: 1812.39 | DU33: 4272.41 | DV33: 791.08 | DW33: 8112.62 | DX33: 814.98 | DY33: 283.81 | DZ33: 4123.38 | EA33: 1118.72 | EB33: 1262.76 | EC33: 383.86 | ED33: 217.53 | EE33: 1765.68 | EF33: 430.34 | EG33: 2171.41 | EH33: 911.45 | EI33: 1985.43 | EJ33: 1267.94 | EK33: 837.97 | EL33: 760.45 | EM33: 715.18 | EN33: 486.34 | EO33: 1935.85 | EP33: 530.22 | EQ33: 1040.97 | ER33: 650.30 | ES33: 1176.45 | ET33: 459.30 | EU33: 567.88 | EV33: 1533.91 | EW33: 431.24 | EX33: 1381.18 | EY33: 1777.13 | EZ33: 3932.01 | FA33: 679.13 | FB33: 588.56 | FC33: 1206.62 | FD33: 1085.81 | FE33: 2336.96 | FF33: 7029.98 | FG33: 2914.09 | FH33: 2764.00 | FI33: 667.41 | FJ33: 567.24 | FK33: 2641.40 | FL33: 494.15 | FM33: 1157.47 | FN33: 946.75 | FO33: 2161.10 | FP33: 736.46 | FQ33: 171.55 | FR33: 856.54 | FS33: 2457.68 | FT33: 1927.89 | FU33: 1802.12 | FV33: 3495.38 | FW33: 2160.35 | FX33: 1335.54 | FY33: 657.80 | FZ33: 3339.93 | GA33: 1155.14 | GB33: 1006.89 | GC33: 713.39 | GD33: 874.42 | GE33: 1393.33 | GF33: 1312.70 | GG33: 2224.85 | GH33: 5394.76 | GI33: 503.02 | GJ33: 1025.98 | GK33: 365.06 | GL33: 579.45 | GM33: 2787.00 | GN33: 8360.88 | GO33: 337.82 | GP33: 1903.83 | GQ33: 1347.14 | GR33: 1464.83 | GS33: 2498.77 | GT33: 2572.19
A34: 29 | B34: -1.84 | C34: -0.41 | D34: 0.56 | E34: 0.69 | F34: 0.05 | G34: 3.38 | H34: -0.32 | I34: 1.26 | J34: 0.46 | K34: 1.67 | L34: 0.78 | M34: -0.57 | N34: -0.26 | O34: 1.80 | P34: 0.80 | Q34: -0.06 | R34: -0.84 | S34: -0.31 | T34: -1.02 | U34: -0.55 | V34: 0.87 | W34: -2.33 | X34: -1.99 | Y34: -1.82 | Z34: 0.24 | AA34: -0.27 | AB34: -0.55 | AC34: -1.90 | AD34: -1.38 | AE34: 1.61 | AF34: -0.69 | AG34: -0.59 | AH34: -1.14 | AI34: -1.66 | AJ34: -0.12 | AK34: -0.03 | AL34: 1.46 | AM34: 0.25 | AN34: -0.82 | AO34: -0.58 | AP34: 0.16 | AQ34: -1.64 | AR34: 0.12 | AS34: 0.95 | AT34: -0.93 | AU34: -0.02 | AV34: -0.98 | AW34: 0.63 | AX34: -0.05 | AY34: 0.73 | AZ34: -1.10 | BA34: -0.23 | BB34: 0.55 | BC34: -0.89 | BD34: 1.50 | BE34: 0.72 | BF34: 0.64 | BG34: 1.08 | BH34: 0.06 | BI34: -0.15 | BJ34: -0.13 | BK34: -0.88 | BL34: -1.50 | BM34: -0.19 | BN34: -1.56 | BO34: 0.07 | BP34: -2.03 | BQ34: -0.60 | BR34: 0.07 | BS34: 0.13 | BT34: -1.03 | BU34: 0.79 | BV34: 0.62 | BW34: -0.27 | BX34: -0.57 | BY34: -0.46 | BZ34: 0.09 | CA34: -1.79 | CB34: -0.72 | CC34: 0.42 | CD34: -0.15 | CE34: -2.24 | CF34: 0.94 | CG34: 0.20 | CH34: 1.52 | CI34: 1.65 | CJ34: -0.31 | CK34: 1.77 | CL34: -0.72 | CM34: 2.24 | CN34: 0.29 | CO34: 0.78 | CP34: 0.15 | CQ34: 0.19 | CR34: -0.45 | CS34: 0.37 | CT34: 0.24 | CU34: 0.62 | CV34: 0.87 | CW34: -0.80 | CX34: 28 | CY34: 1837.84 | CZ34: 868.66 | DA34: 2255.85 | DB34: 1975.85 | DC34: 321.04 | DD34: 281.39 | DE34: 763.14 | DF34: 9218.44 | DG34: 1899.60 | DH34: 427.94 | DI34: 2374.17 | DJ34: 346.61 | DK34: 702.99 | DL34: 905.64 | DM34: 1495.43 | DN34: 619.72 | DO34: 1023.41 | DP34: 3400.55 | DQ34: 3264.72 | DR34: 2808.67 | DS34: 372.72 | DT34: 1874.95 | DU34: 5769.57 | DV34: 809.89 | DW34: 8196.61 | DX34: 997.03 | DY34: 345.22 | DZ34: 4380.49 | EA34: 1217.22 | EB34: 1600.46 | EC34: 433.29 | ED34: 210.20 | EE34: 1929.03 | EF34: 458.92 | EG34: 2751.14 | EH34: 1005.37 | EI34: 2347.14 | EJ34: 1227.26 | EK34: 1071.23 | EL34: 676.94 | EM34: 744.13 | EN34: 558.62 | EO34: 2367.55 | EP34: 532.67 | EQ34: 1059.13 | ER34: 807.54 | ES34: 1165.36 | ET34: 557.78 | EU34: 590.50 | EV34: 1709.93 | EW34: 441.82 | EX34: 1439.92 | EY34: 1926.22 | EZ34: 4919.79 | FA34: 705.24 | FB34: 493.72 | FC34: 1316.96 | FD34: 1407.87 | FE34: 2536.83 | FF34: 10558.69 | FG34: 3025.79 | FH34: 2953.11 | FI34: 701.94 | FJ34: 768.31 | FK34: 3316.31 | FL34: 469.82 | FM34: 999.56 | FN34: 1171.48 | FO34: 2174.43 | FP34: 839.38 | FQ34: 241.23 | FR34: 894.87 | FS34: 2273.76 | FT34: 1600.31 | FU34: 2027.38 | FV34: 3973.42 | FW34: 2845.16 | FX34: 1399.25 | FY34: 856.46 | FZ34: 4064.24 | GA34: 1364.71 | GB34: 1183.68 | GC34: 669.12 | GD34: 960.14 | GE34: 1511.62 | GF34: 1897.43 | GG34: 2206.53 | GH34: 6809.92 | GI34: 474.81 | GJ34: 1067.30 | GK34: 408.02 | GL34: 717.67 | GM34: 3025.87 | GN34: 8442.21 | GO34: 373.29 | GP34: 2024.95 | GQ34: 1515.26 | GR34: 1449.31 | GS34: 2619.10 | GT34: 2679.53
A35: 30 | B35: -0.58 | C35: -0.70 | D35: -0.47 | E35: -0.42 | F35: 0.37 | G35: 1.06 | H35: 0.35 | I35: -1.37 | J35: 0.68 | K35: -2.14 | L35: 2.97 | M35: 0.12 | N35: -0.01 | O35: -1.05 | P35: -0.32 | Q35: 0.25 | R35: -0.43 | S35: -2.16 | T35: -0.04 | U35: 0.03 | V35: 0.48 | W35: -0.76 | X35: -0.10 | Y35: 0.22 | Z35: -1.38 | AA35: -0.37 | AB35: 0.08 | AC35: 0.45 | AD35: 0.75 | AE35: 0.77 | AF35: 0.60 | AG35: 0.86 | AH35: 1.40 | AI35: 0.55 | AJ35: 0.99 | AK35: 0.74 | AL35: -1.73 | AM35: -0.11 | AN35: 0.75 | AO35: 1.04 | AP35: 1.19 | AQ35: 0.02 | AR35: -0.08 | AS35: 0.17 | AT35: -0.46 | AU35: -0.36 | AV35: -0.10 | AW35: 0.46 | AX35: 0.08 | AY35: 0.66 | AZ35: -0.24 | BA35: -0.83 | BB35: 1.92 | BC35: -0.93 | BD35: 0.00 | BE35: 0.78 | BF35: -0.08 | BG35: -0.18 | BH35: -0.77 | BI35: -1.04 | BJ35: 1.48 | BK35: 1.51 | BL35: -0.77 | BM35: 1.80 | BN35: 1.83 | BO35: 0.37 | BP35: 1.22 | BQ35: 0.95 | BR35: 1.61 | BS35: -0.29 | BT35: -0.24 | BU35: 0.68 | BV35: 0.72 | BW35: -0.70 | BX35: 0.53 | BY35: 0.94 | BZ35: 1.27 | CA35: 2.96 | CB35: -0.53 | CC35: -0.17 | CD35: 1.55 | CE35: -1.00 | CF35: -0.47 | CG35: 0.61 | CH35: -0.65 | CI35: 0.25 | CJ35: 0.56 | CK35: 0.56 | CL35: 1.55 | CM35: -0.36 | CN35: 1.71 | CO35: 0.31 | CP35: 0.44 | CQ35: 0.31 | CR35: -0.61 | CS35: -2.60 | CT35: 0.58 | CU35: -0.26 | CV35: 0.43 | CW35: -0.98 | CX35: 29 | CY35: 1523.57 | CZ35: 893.23 | DA35: 2681.71 | DB35: 2394.26 | DC35: 353.58 | DD35: 510.34 | DE35: 794.40 | DF35: 12169.27 | DG35: 2222.88 | DH35: 601.04 | DI35: 2917.09 | DJ35: 347.52 | DK35: 738.45 | DL35: 1297.16 | DM35: 1842.75 | DN35: 671.01 | DO35: 985.74 | DP35: 3548.24 | DQ35: 3059.68 | DR35: 2828.00 | DS35: 463.88 | DT35: 1444.48 | DU35: 4676.59 | DV35: 673.99 | DW35: 9281.60 | DX35: 1046.41 | DY35: 347.17 | DZ35: 3599.43 | EA35: 1081.54 | EB35: 2226.43 | EC35: 427.09 | ED35: 210.15 | EE35: 1777.49 | EF35: 390.87 | EG35: 2951.31 | EH35: 1093.85 | EI35: 3190.62 | EJ35: 1391.65 | EK35: 1035.28 | EL35: 678.48 | EM35: 832.57 | EN35: 477.06 | EO35: 2634.59 | EP35: 671.73 | EQ35: 1007.34 | ER35: 880.19 | ES35: 1099.07 | ET35: 669.45 | EU35: 640.25 | EV35: 2085.38 | EW35: 409.49 | EX35: 1520.60 | EY35: 2285.91 | EZ35: 4700.97 | FA35: 964.71 | FB35: 600.85 | FC35: 1583.53 | FD35: 1808.56 | FE35: 2798.89 | FF35: 11279.28 | FG35: 3244.94 | FH35: 2828.54 | FI35: 612.63 | FJ35: 815.60 | FK35: 2868.56 | FL35: 518.66 | FM35: 805.22 | FN35: 1170.47 | FO35: 2401.46 | FP35: 935.21 | FQ35: 226.00 | FR35: 1101.06 | FS35: 2726.25 | FT35: 1679.99 | FU35: 2034.92 | FV35: 4053.04 | FW35: 3153.34 | FX35: 1169.41 | FY35: 840.48 | FZ35: 4731.99 | GA35: 1459.24 | GB35: 924.51 | GC35: 842.10 | GD35: 1080.74 | GE35: 2073.92 | GF35: 2656.77 | GG35: 2302.75 | GH35: 9698.55 | GI35: 465.61 | GJ35: 1631.22 | GK35: 465.40 | GL35: 881.95 | GM35: 3383.51 | GN35: 9496.27 | GO35: 381.54 | GP35: 2338.53 | GQ35: 1715.37 | GR35: 1739.27 | GS35: 3259.90 | GT35: 2598.45
A36: 31 | B36: 0.42 | C36: 1.93 | D36: 0.70 | E36: -0.43 | F36: -2.08 | G36: 0.28 | H36: 0.77 | I36: -0.48 | J36: -0.09 | K36: 0.16 | L36: 0.32 | M36: 1.17 | N36: 0.67 | O36: 1.55 | P36: -0.12 | Q36: 0.52 | R36: 2.24 | S36: -0.22 | T36: 0.23 | U36: -1.16 | V36: 0.03 | W36: -0.35 | X36: -0.41 | Y36: 0.12 | Z36: 1.20 | AA36: -0.21 | AB36: -0.29 | AC36: 0.39 | AD36: -0.64 | AE36: 1.95 | AF36: -0.26 | AG36: -0.45 | AH36: 0.75 | AI36: 0.58 | AJ36: 0.28 | AK36: 0.12 | AL36: -1.67 | AM36: 0.40 | AN36: 0.89 | AO36: 1.63 | AP36: 0.14 | AQ36: 0.57 | AR36: 0.60 | AS36: -0.14 | AT36: 1.46 | AU36: -0.21 | AV36: -1.72 | AW36: 0.28 | AX36: 1.21 | AY36: 0.50 | AZ36: -0.94 | BA36: -0.97 | BB36: 2.07 | BC36: -0.48 | BD36: -3.28 | BE36: -0.59 | BF36: 0.66 | BG36: -1.52 | BH36: 0.27 | BI36: -1.88 | BJ36: -0.11 | BK36: -1.77 | BL36: -0.37 | BM36: 0.78 | BN36: -1.04 | BO36: -0.61 | BP36: -0.68 | BQ36: 0.67 | BR36: -1.82 | BS36: -1.38 | BT36: 1.68 | BU36: 0.09 | BV36: 2.14 | BW36: -0.62 | BX36: -0.26 | BY36: 1.74 | BZ36: -0.73 | CA36: 0.21 | CB36: -0.32 | CC36: 1.20 | CD36: 1.77 | CE36: 0.41 | CF36: -2.06 | CG36: -0.25 | CH36: 1.37 | CI36: 0.66 | CJ36: 0.26 | CK36: -1.37 | CL36: 0.53 | CM36: -0.12 | CN36: 0.01 | CO36: 0.47 | CP36: 1.58 | CQ36: 1.33 | CR36: 0.94 | CS36: 1.25 | CT36: 1.50 | CU36: -0.16 | CV36: 0.03 | CW36: 0.51 | CX36: 30 | CY36: 1525.30 | CZ36: 879.20 | DA36: 2729.30 | DB36: 2455.41 | DC36: 408.45 | DD36: 653.71 | DE36: 914.78 | DF36: 10835.14 | DG36: 2691.85 | DH36: 476.14 | DI36: 4980.78 | DJ36: 386.39 | DK36: 805.49 | DL36: 1210.93 | DM36: 1919.47 | DN36: 761.33 | DO36: 1009.97 | DP36: 2802.71 | DQ36: 3325.21 | DR36: 3103.34 | DS36: 545.13 | DT36: 1409.31 | DU36: 5030.85 | DV36: 760.94 | DW36: 8243.84 | DX36: 1081.28 | DY36: 384.21 | DZ36: 4205.47 | EA36: 1323.28 | EB36: 2732.26 | EC36: 510.39 | ED36: 261.36 | EE36: 2396.67 | EF36: 463.94 | EG36: 3744.31 | EH36: 1335.37 | EI36: 2687.98 | EJ36: 1496.88 | EK36: 1266.66 | EL36: 866.10 | EM36: 1087.09 | EN36: 522.68 | EO36: 2846.27 | EP36: 753.28 | EQ36: 1028.06 | ER36: 911.55 | ES36: 1183.36 | ET36: 784.42 | EU36: 708.15 | EV36: 2514.80 | EW36: 431.50 | EX36: 1466.38 | EY36: 3331.26 | EZ36: 4467.24 | FA36: 1054.91 | FB36: 738.20 | FC36: 1708.77 | FD36: 1923.82 | FE36: 2724.59 | FF36: 10548.63 | FG36: 4428.95 | FH36: 3876.24 | FI36: 596.15 | FJ36: 1167.72 | FK36: 4122.90 | FL36: 599.03 | FM36: 1056.88 | FN36: 1475.61 | FO36: 3338.90 | FP36: 977.97 | FQ36: 238.07 | FR36: 1332.37 | FS36: 3318.67 | FT36: 1652.90 | FU36: 2407.44 | FV36: 5096.13 | FW36: 4168.47 | FX36: 1991.14 | FY36: 847.82 | FZ36: 5040.38 | GA36: 2012.97 | GB36: 870.10 | GC36: 858.18 | GD36: 1294.90 | GE36: 2056.12 | GF36: 3015.96 | GG36: 2737.51 | GH36: 11529.77 | GI36: 642.03 | GJ36: 1688.98 | GK36: 656.94 | GL36: 1010.28 | GM36: 3951.75 | GN36: 10864.24 | GO36: 380.38 | GP36: 1729.25 | GQ36: 2045.80 | GR36: 1827.57 | GS36: 3797.31 | GT36: 2451.92
A37: 32 | B37: 1.57 | C37: -0.68 | D37: -0.32 | E37: 0.82 | F37: 0.99 | G37: -0.88 | H37: 2.08 | I37: 0.43 | J37: -0.85 | K37: -1.36 | L37: 0.69 | M37: 1.00 | N37: 0.00 | O37: 0.53 | P37: -0.75 | Q37: 0.81 | R37: 0.44 | S37: 0.98 | T37: 0.97 | U37: -1.08 | V37: -0.03 | W37: 0.33 | X37: -0.92 | Y37: 0.10 | Z37: -1.03 | AA37: 0.14 | AB37: -1.09 | AC37: 1.54 | AD37: 0.15 | AE37: -0.92 | AF37: 0.69 | AG37: 0.15 | AH37: 0.04 | AI37: -0.98 | AJ37: -0.56 | AK37: -0.38 | AL37: -0.00 | AM37: 0.28 | AN37: -0.40 | AO37: -0.82 | AP37: -1.10 | AQ37: -0.74 | AR37: 0.06 | AS37: 0.54 | AT37: -1.43 | AU37: -0.35 | AV37: -0.21 | AW37: 0.55 | AX37: -0.30 | AY37: -0.17 | AZ37: -0.20 | BA37: 0.05 | BB37: -1.17 | BC37: 0.85 | BD37: -0.62 | BE37: 1.75 | BF37: -0.57 | BG37: 0.30 | BH37: 0.38 | BI37: -1.31 | BJ37: 0.62 | BK37: 0.30 | BL37: 1.14 | BM37: 1.36 | BN37: -0.57 | BO37: 0.00 | BP37: 1.45 | BQ37: 0.63 | BR37: 0.30 | BS37: 0.90 | BT37: 1.22 | BU37: 0.33 | BV37: -1.04 | BW37: 1.86 | BX37: -1.56 | BY37: 0.28 | BZ37: 0.09 | CA37: -0.42 | CB37: 0.68 | CC37: 1.50 | CD37: 1.90 | CE37: -1.90 | CF37: -1.18 | CG37: -0.81 | CH37: 1.26 | CI37: -0.43 | CJ37: 1.51 | CK37: 0.50 | CL37: -0.44 | CM37: -0.31 | CN37: 0.66 | CO37: -0.13 | CP37: -0.13 | CQ37: -1.86 | CR37: -0.56 | CS37: 0.64 | CT37: 0.14 | CU37: 0.22 | CV37: 0.17 | CW37: -0.28 | CX37: 31 | CY37: 1774.24 | CZ37: 1283.52 | DA37: 3314.48 | DB37: 2516.44 | DC37: 326.50 | DD37: 745.05 | DE37: 1121.35 | DF37: 11021.88 | DG37: 2903.11 | DH37: 533.06 | DI37: 5713.35 | DJ37: 502.98 | DK37: 972.84 | DL37: 1669.35 | DM37: 2059.32 | DN37: 898.90 | DO37: 1544.48 | DP37: 2964.88 | DQ37: 3763.56 | DR37: 2849.42 | DS37: 598.76 | DT37: 1461.96 | DU37: 5166.57 | DV37: 846.22 | DW37: 10789.34 | DX37: 1145.32 | DY37: 401.94 | DZ37: 4869.62 | EA37: 1314.36 | EB37: 3998.02 | EC37: 536.77 | ED37: 267.12 | EE37: 2930.95 | EF37: 552.91 | EG37: 4264.36 | EH37: 1485.72 | EI37: 2287.27 | EJ37: 1738.20 | EK37: 1582.01 | EL37: 1209.23 | EM37: 1213.50 | EN37: 622.06 | EO37: 3402.11 | EP37: 805.72 | EQ37: 1397.70 | ER37: 965.46 | ES37: 998.93 | ET37: 894.07 | EU37: 927.45 | EV37: 2961.07 | EW37: 409.50 | EX37: 1385.14 | EY37: 4967.38 | EZ37: 4543.53 | FA37: 704.84 | FB37: 738.72 | FC37: 2060.76 | FD37: 1672.62 | FE37: 3099.72 | FF37: 8692.76 | FG37: 4759.11 | FH37: 3247.35 | FI37: 616.11 | FJ37: 1434.24 | FK37: 3852.48 | FL37: 597.27 | FM37: 1043.62 | FN37: 1781.78 | FO37: 2775.63 | FP37: 868.96 | FQ37: 334.60 | FR37: 1475.28 | FS37: 4996.04 | FT37: 1645.33 | FU37: 2530.19 | FV37: 7230.76 | FW37: 4081.85 | FX37: 2246.74 | FY37: 882.83 | FZ37: 6595.17 | GA37: 2868.88 | GB37: 1010.62 | GC37: 688.04 | GD37: 1362.20 | GE37: 2760.41 | GF37: 3637.42 | GG37: 3108.54 | GH37: 10264.25 | GI37: 759.27 | GJ37: 1812.04 | GK37: 718.54 | GL37: 1183.95 | GM37: 5474.65 | GN37: 14485.71 | GO37: 478.62 | GP37: 2279.50 | GQ37: 2801.57 | GR37: 1949.95 | GS37: 4168.08 | GT37: 2892.15
A38: 33 | B38: -1.12 | C38: -0.71 | D38: 0.10 | E38: -0.26 | F38: -1.22 | G38: 1.41 | H38: 0.71 | I38: 0.25 | J38: -2.19 | K38: -0.05 | L38: 1.41 | M38: 0.37 | N38: -1.11 | O38: 0.79 | P38: 0.57 | Q38: -1.28 | R38: -0.28 | S38: 0.64 | T38: 1.16 | U38: 1.28 | V38: -1.54 | W38: 0.77 | X38: 1.02 | Y38: 2.41 | Z38: 2.04 | AA38: 1.02 | AB38: 1.66 | AC38: -0.19 | AD38: -0.22 | AE38: -0.25 | AF38: 0.03 | AG38: 0.40 | AH38: -0.65 | AI38: -0.04 | AJ38: 0.73 | AK38: -0.32 | AL38: 0.48 | AM38: -0.36 | AN38: -1.54 | AO38: 0.28 | AP38: 1.42 | AQ38: 0.85 | AR38: -1.07 | AS38: -0.15 | AT38: -0.39 | AU38: 0.02 | AV38: -1.94 | AW38: 2.32 | AX38: -0.09 | AY38: 0.51 | AZ38: -0.46 | BA38: -1.05 | BB38: -1.99 | BC38: -0.19 | BD38: -0.25 | BE38: 0.32 | BF38: 1.16 | BG38: 0.40 | BH38: -0.38 | BI38: 0.71 | BJ38: 0.63 | BK38: 0.22 | BL38: -1.35 | BM38: 0.78 | BN38: -0.00 | BO38: -0.54 | BP38: 0.15 | BQ38: 0.93 | BR38: -0.51 | BS38: -0.81 | BT38: -0.17 | BU38: 0.01 | BV38: 1.71 | BW38: -0.08 | BX38: -0.97 | BY38: -0.50 | BZ38: 1.15 | CA38: 0.43 | CB38: 1.29 | CC38: 0.20 | CD38: -0.66 | CE38: -1.89 | CF38: -1.89 | CG38: -0.23 | CH38: 0.12 | CI38: 0.16 | CJ38: 1.26 | CK38: -1.03 | CL38: 2.01 | CM38: -0.84 | CN38: 0.02 | CO38: 1.64 | CP38: -0.96 | CQ38: -0.16 | CR38: 0.43 | CS38: 1.45 | CT38: 0.34 | CU38: 0.22 | CV38: -0.15 | CW38: -0.19 | CX38: 32 | CY38: 2454.66 | CZ38: 1266.50 | DA38: 3452.72 | DB38: 3109.79 | DC38: 414.17 | DD38: 713.69 | DE38: 1674.24 | DF38: 12838.73 | DG38: 2791.30 | DH38: 475.22 | DI38: 6922.82 | DJ38: 638.57 | DK38: 1063.90 | DL38: 1974.48 | DM38: 2009.79 | DN38: 1108.92 | DO38: 1803.38 | DP38: 3750.81 | DQ38: 4754.47 | DR38: 2648.39 | DS38: 651.38 | DT38: 1678.49 | DU38: 4916.27 | DV38: 938.78 | DW38: 10097.36 | DX38: 1278.89 | DY38: 373.27 | DZ38: 6707.02 | EA38: 1468.54 | EB38: 3808.20 | EC38: 650.75 | ED38: 298.45 | EE38: 3223.34 | EF38: 521.67 | EG38: 4281.59 | EH38: 1532.87 | EI38: 2498.98 | EJ38: 1981.89 | EK38: 1628.38 | EL38: 1167.74 | EM38: 1124.99 | EN38: 608.14 | EO38: 3753.81 | EP38: 954.96 | EQ38: 1232.97 | ER38: 1000.45 | ES38: 1058.08 | ET38: 1061.14 | EU38: 969.53 | EV38: 3152.39 | EW38: 434.32 | EX38: 1525.14 | EY38: 4554.85 | EZ38: 5640.93 | FA38: 701.67 | FB38: 1049.25 | FC38: 2067.44 | FD38: 1912.05 | FE38: 3588.00 | FF38: 7799.50 | FG38: 5710.64 | FH38: 3714.42 | FI38: 798.81 | FJ38: 1923.04 | FK38: 3866.28 | FL38: 652.92 | FM38: 1418.15 | FN38: 2141.59 | FO38: 3172.49 | FP38: 1086.21 | FQ38: 438.83 | FR38: 1694.72 | FS38: 4668.63 | FT38: 2375.77 | FU38: 2188.83 | FV38: 8246.14 | FW38: 4522.95 | FX38: 2304.92 | FY38: 1069.15 | FZ38: 9023.28 | GA38: 4171.30 | GB38: 831.00 | GC38: 630.25 | GD38: 1318.99 | GE38: 3644.11 | GF38: 3726.34 | GG38: 4261.02 | GH38: 12097.37 | GI38: 777.25 | GJ38: 1889.62 | GK38: 866.97 | GL38: 1268.71 | GM38: 5869.79 | GN38: 11972.00 | GO38: 480.67 | GP38: 2743.52 | GQ38: 3125.34 | GR38: 2201.63 | GS38: 4672.82 | GT38: 3031.82
A39: 34 | B39: -0.84 | C39: -1.57 | D39: -0.35 | E39: -1.87 | F39: -1.34 | G39: 0.86 | H39: -0.60 | I39: 0.39 | J39: 0.70 | K39: -0.30 | L39: -0.78 | M39: -0.05 | N39: -0.91 | O39: 0.61 | P39: -0.56 | Q39: -1.56 | R39: 0.68 | S39: -1.19 | T39: 0.99 | U39: -0.57 | V39: -0.26 | W39: -0.30 | X39: 1.80 | Y39: 0.24 | Z39: -1.05 | AA39: 1.31 | AB39: 0.36 | AC39: -1.03 | AD39: 0.58 | AE39: -0.20 | AF39: -0.07 | AG39: -0.63 | AH39: -0.33 | AI39: -1.06 | AJ39: -0.28 | AK39: 1.08 | AL39: 0.21 | AM39: -0.57 | AN39: -0.57 | AO39: -0.56 | AP39: 0.92 | AQ39: -0.15 | AR39: 1.24 | AS39: -0.81 | AT39: 1.68 | AU39: 1.55 | AV39: 1.42 | AW39: 1.23 | AX39: 0.06 | AY39: 0.38 | AZ39: 0.76 | BA39: 0.35 | BB39: 0.09 | BC39: -0.65 | BD39: 0.84 | BE39: 0.55 | BF39: 1.20 | BG39: 0.24 | BH39: -0.16 | BI39: -0.19 | BJ39: -1.24 | BK39: -2.10 | BL39: -0.73 | BM39: 0.93 | BN39: 0.26 | BO39: -0.34 | BP39: -1.47 | BQ39: 0.15 | BR39: 1.93 | BS39: 0.12 | BT39: 0.10 | BU39: -0.19 | BV39: 0.44 | BW39: -0.62 | BX39: 1.10 | BY39: -0.89 | BZ39: 0.12 | CA39: 1.72 | CB39: -0.58 | CC39: -1.34 | CD39: 0.10 | CE39: -0.29 | CF39: -0.57 | CG39: 0.64 | CH39: -1.48 | CI39: -1.76 | CJ39: 0.33 | CK39: 0.55 | CL39: -0.31 | CM39: 0.75 | CN39: 0.04 | CO39: 0.32 | CP39: -0.21 | CQ39: 0.70 | CR39: 1.03 | CS39: -3.74 | CT39: -0.11 | CU39: -0.60 | CV39: 2.59 | CW39: 0.27 | CX39: 33 | CY39: =+CY38*EXP(0.1-((0.15^2)/2)+0.15*B38) -> 2267.63 | CZ39: =+CZ38*EXP(0.1-((0.15^2)/2)+0.15*C38) -> 1244.93 | DA39: =+DA38*EXP(0.1-((0.15^2)/2)+0.15*D38) -> 3832.63 | DB39: =+DB38*EXP(0.1-((0.15^2)/2)+0.15*E38) -> 3269.90 | DC39: =+DC38*EXP(0.1-((0.15^2)/2)+0.15*F38) -> 376.74 | DD39: =+DD38*EXP(0.1-((0.15^2)/2)+0.15*G38) -> 964.12 | DE39: =+DE38*EXP(0.1-((0.15^2)/2)+0.15*H38) -> 2034.23 | DF39: =+DF38*EXP(0.1-((0.15^2)/2)+0.15*I38) -> 14566.93 | DG39: =+DG38*EXP(0.1-((0.15^2)/2)+0.15*J38) -> 2196.45 | DH39: =+DH38*EXP(0.1-((0.15^2)/2)+0.15*K38) -> 515.54 | DI39: =+DI38*EXP(0.1-((0.15^2)/2)+0.15*L38) -> 9353.41 | DJ39: =+DJ38*EXP(0.1-((0.15^2)/2)+0.15*M38) -> 738.21 | DK39: =+DK38*EXP(0.1-((0.15^2)/2)+0.15*N38) -> 983.66 | DL39: =+DL38*EXP(0.1-((0.15^2)/2)+0.15*O38) -> 2428.21 | DM39: =+DM38*EXP(0.1-((0.15^2)/2)+0.15*P38) -> 2392.33 | DN39: =+DN38*EXP(0.1-((0.15^2)/2)+0.15*Q38) -> 1000.64 | DO39: =+DO38*EXP(0.1-((0.15^2)/2)+0.15*R38) -> 1890.31 | DP39: =+DP38*EXP(0.1-((0.15^2)/2)+0.15*S38) -> 4512.74 | DQ39: =+DQ38*EXP(0.1-((0.15^2)/2)+0.15*T38) -> 6183.76 | DR39: =+DR38*EXP(0.1-((0.15^2)/2)+0.15*U38) -> 3506.40 | DS39: =+DS38*EXP(0.1-((0.15^2)/2)+0.15*V38) -> 564.60 | DT39: =+DT38*EXP(0.1-((0.15^2)/2)+0.15*W38) -> 2058.65 | DU39: =+DU38*EXP(0.1-((0.15^2)/2)+0.15*X38) -> 6262.28 | DV39: =+DV38*EXP(0.1-((0.15^2)/2)+0.15*Y38) -> 1472.47 | DW39: =+DW38*EXP(0.1-((0.15^2)/2)+0.15*Z38) -> 14985.26 | DX39: =+DX38*EXP(0.1-((0.15^2)/2)+0.15*AA38) -> 1629.57 | DY39: =+DY38*EXP(0.1-((0.15^2)/2)+0.15*AB38) -> 523.20 | DZ39: =+DZ38*EXP(0.1-((0.15^2)/2)+0.15*AC38) -> 7124.65 | EA39: =+EA38*EXP(0.1-((0.15^2)/2)+0.15*AD38) -> 1553.74 | EB39: =+EB38*EXP(0.1-((0.15^2)/2)+0.15*AE38) -> 4009.59 | EC39: =+EC38*EXP(0.1-((0.15^2)/2)+0.15*AF38) -> 713.97 | ED39: =+ED38*EXP(0.1-((0.15^2)/2)+0.15*AG38) -> 346.36 | EE39: =+EE38*EXP(0.1-((0.15^2)/2)+0.15*AH38) -> 3196.40 | EF39: =+EF38*EXP(0.1-((0.15^2)/2)+0.15*AI38) -> 566.41 | EG39: =+EG38*EXP(0.1-((0.15^2)/2)+0.15*AJ38) -> 5221.08 | EH39: =+EH38*EXP(0.1-((0.15^2)/2)+0.15*AK38) -> 1595.74 | EI39: =+EI38*EXP(0.1-((0.15^2)/2)+0.15*AL38) -> 2932.66 | EJ39: =+EJ38*EXP(0.1-((0.15^2)/2)+0.15*AM38) -> 2051.82 | EK39: =+EK38*EXP(0.1-((0.15^2)/2)+0.15*AN38) -> 1412.55 | EL39: =+EL38*EXP(0.1-((0.15^2)/2)+0.15*AO38) -> 1331.76 | EM39: =+EM38*EXP(0.1-((0.15^2)/2)+0.15*AP38) -> 1521.78 | EN39: =+EN38*EXP(0.1-((0.15^2)/2)+0.15*AQ38) -> 755.17 | EO39: =+EO38*EXP(0.1-((0.15^2)/2)+0.15*AR38) -> 3492.70 | EP39: =+EP38*EXP(0.1-((0.15^2)/2)+0.15*AS38) -> 1019.72 | EQ39: =+EQ38*EXP(0.1-((0.15^2)/2)+0.15*AT38) -> 1269.95 | ER39: =+ER38*EXP(0.1-((0.15^2)/2)+0.15*AU38) -> 1096.60 | ES39: =+ES38*EXP(0.1-((0.15^2)/2)+0.15*AV38) -> 864.71 | ET39: =+ET38*EXP(0.1-((0.15^2)/2)+0.15*AW38) -> 1642.93 | EU39: =+EU38*EXP(0.1-((0.15^2)/2)+0.15*AX38) -> 1044.85 | EV39: =+EV38*EXP(0.1-((0.15^2)/2)+0.15*AY38) -> 3718.05 | EW39: =+EW38*EXP(0.1-((0.15^2)/2)+0.15*AZ38) -> 442.92 | EX39: =+EX38*EXP(0.1-((0.15^2)/2)+0.15*BA38) -> 1423.67 | EY39: =+EY38*EXP(0.1-((0.15^2)/2)+0.15*BB38) -> 3692.91 | EZ39: =+EZ38*EXP(0.1-((0.15^2)/2)+0.15*BC38) -> 5987.35 | FA39: =+FA38*EXP(0.1-((0.15^2)/2)+0.15*BD38) -> 739.04 | FB39: =+FB38*EXP(0.1-((0.15^2)/2)+0.15*BE38) -> 1202.73 | FC39: =+FC38*EXP(0.1-((0.15^2)/2)+0.15*BF38) -> 2688.90 | FD39: =+FD38*EXP(0.1-((0.15^2)/2)+0.15*BG38) -> 2218.26 | FE39: =+FE38*EXP(0.1-((0.15^2)/2)+0.15*BH38) -> 3704.97 | FF39: =+FF38*EXP(0.1-((0.15^2)/2)+0.15*BI38) -> 9484.20 | FG39: =+FG38*EXP(0.1-((0.15^2)/2)+0.15*BJ38) -> 6858.26 | FH39: =+FH38*EXP(0.1-((0.15^2)/2)+0.15*BK38) -> 4196.06 | FI39: =+FI38*EXP(0.1-((0.15^2)/2)+0.15*BL38) -> 713.17 | FJ39: =+FJ38*EXP(0.1-((0.15^2)/2)+0.15*BM38) -> 2362.14 | FK39: =+FK38*EXP(0.1-((0.15^2)/2)+0.15*BN38) -> 4223.04 | FL39: =+FL38*EXP(0.1-((0.15^2)/2)+0.15*BO38) -> 658.24 | FM39: =+FM38*EXP(0.1-((0.15^2)/2)+0.15*BP38) -> 1584.96 | FN39: =+FN38*EXP(0.1-((0.15^2)/2)+0.15*BQ38) -> 2690.36 | FO39: =+FO38*EXP(0.1-((0.15^2)/2)+0.15*BR38) -> 3211.77 | FP39: =+FP38*EXP(0.1-((0.15^2)/2)+0.15*BS38) -> 1051.96 | FQ39: =+FQ38*EXP(0.1-((0.15^2)/2)+0.15*BT38) -> 467.20 | FR39: =+FR38*EXP(0.1-((0.15^2)/2)+0.15*BU38) -> 1854.37 | FS39: =+FS38*EXP(0.1-((0.15^2)/2)+0.15*BV38) -> 6590.68 | FT39: =+FT38*EXP(0.1-((0.15^2)/2)+0.15*BW38) -> 2567.04 | FU39: =+FU38*EXP(0.1-((0.15^2)/2)+0.15*BX38) -> 2067.73 | FV39: =+FV38*EXP(0.1-((0.15^2)/2)+0.15*BY38) -> 8354.67 | FW39: =+FW38*EXP(0.1-((0.15^2)/2)+0.15*BZ38) -> 5871.36 | FX39: =+FX38*EXP(0.1-((0.15^2)/2)+0.15*CA38) -> 2687.03 | FY39: =+FY38*EXP(0.1-((0.15^2)/2)+0.15*CB38) -> 1417.04 | FZ39: =+FZ38*EXP(0.1-((0.15^2)/2)+0.15*CC38) -> 10165.10 | GA39: =+GA38*EXP(0.1-((0.15^2)/2)+0.15*CD38) -> 4126.26 | GB39: =+GB38*EXP(0.1-((0.15^2)/2)+0.15*CE38) -> 683.54 | GC39: =+GC38*EXP(0.1-((0.15^2)/2)+0.15*CF38) -> 519.01 | GD39: =+GD38*EXP(0.1-((0.15^2)/2)+0.15*CG38) -> 1391.49 | GE39: =+GE38*EXP(0.1-((0.15^2)/2)+0.15*CH38) -> 4056.78 | GF39: =+GF38*EXP(0.1-((0.15^2)/2)+0.15*CI38) -> 4173.30 | GG39: =+GG38*EXP(0.1-((0.15^2)/2)+0.15*CJ38) -> 5626.41 | GH39: =+GH38*EXP(0.1-((0.15^2)/2)+0.15*CK38) -> 11329.24 | GI39: =+GI38*EXP(0.1-((0.15^2)/2)+0.15*CL38) -> 1148.46 | GJ39: =+GJ38*EXP(0.1-((0.15^2)/2)+0.15*CM38) -> 1819.39 | GK39: =+GK38*EXP(0.1-((0.15^2)/2)+0.15*CN38) -> 950.11 | GL39: =+GL38*EXP(0.1-((0.15^2)/2)+0.15*CO38) -> 1773.75 | GM39: =+GM38*EXP(0.1-((0.15^2)/2)+0.15*CP38) -> 5554.27 | GN39: =+GN38*EXP(0.1-((0.15^2)/2)+0.15*CQ38) -> 12779.39 | GO39: =+GO38*EXP(0.1-((0.15^2)/2)+0.15*CR38) -> 560.43 | GP39: =+GP38*EXP(0.1-((0.15^2)/2)+0.15*CS38) -> 3726.75 | GQ39: =+GQ38*EXP(0.1-((0.15^2)/2)+0.15*CT38) -> 3592.66 | GR39: =+GR38*EXP(0.1-((0.15^2)/2)+0.15*CU38) -> 2485.94 | GS39: =+GS38*EXP(0.1-((0.15^2)/2)+0.15*CV38) -> 4996.07 | GT39: =+GT38*EXP(0.1-((0.15^2)/2)+0.15*CW38) -> 3221.92
A40: 35 | B40: -1.41 | C40: -0.31 | D40: 1.37 | E40: 0.47 | F40: 0.49 | G40: 1.78 | H40: -1.24 | I40: 0.65 | J40: -0.72 | K40: -0.71 | L40: -0.67 | M40: -0.65 | N40: -0.64 | O40: -0.82 | P40: 1.86 | Q40: -2.16 | R40: 1.75 | S40: -1.29 | T40: 0.23 | U40: -0.20 | V40: -0.25 | W40: -0.36 | X40: -0.35 | Y40: 0.08 | Z40: 0.13 | AA40: -0.95 | AB40: 1.81 | AC40: -1.30 | AD40: -0.57 | AE40: -1.41 | AF40: 0.79 | AG40: -0.30 | AH40: -3.06 | AI40: 0.62 | AJ40: 0.91 | AK40: -1.32 | AL40: -1.69 | AM40: -0.61 | AN40: 0.32 | AO40: -1.23 | AP40: 0.14 | AQ40: -0.27 | AR40: -0.68 | AS40: -0.26 | AT40: 1.39 | AU40: 0.38 | AV40: -0.08 | AW40: 0.86 | AX40: -0.13 | AY40: 1.75 | AZ40: -0.36 | BA40: -1.43 | BB40: 0.04 | BC40: 1.47 | BD40: 0.00 | BE40: 0.97 | BF40: 0.54 | BG40: 1.62 | BH40: 0.72 | BI40: 0.91 | BJ40: -0.79 | BK40: 0.38 | BL40: -1.31 | BM40: -0.91 | BN40: -1.16 | BO40: 0.56 | BP40: -0.88 | BQ40: -1.35 | BR40: 0.49 | BS40: 0.25 | BT40: -0.10 | BU40: -0.18 | BV40: -0.41 | BW40: -0.87 | BX40: -0.79 | BY40: 1.39 | BZ40: 0.08 | CA40: 1.33 | CB40: -0.13 | CC40: -0.39 | CD40: -1.59 | CE40: -0.51 | CF40: -1.09 | CG40: -0.50 | CH40: -1.59 | CI40: 0.57 | CJ40: -0.04 | CK40: -1.17 | CL40: -0.42 | CM40: 1.52 | CN40: 1.73 | CO40: -0.58 | CP40: -1.02 | CQ40: -0.01 | CR40: 0.28 | CS40: -0.86 | CT40: -1.24 | CU40: 0.18 | CV40: -0.01 | CW40: 0.02 | CX40: 34 | CY40: 2184.21 | CZ40: 1075.80 | DA40: 3976.29 | DB40: 2700.53 | DC40: 336.92 | DD40: 1198.13 | DE40: 2033.01 | DF40: 16889.96 | DG40: 2666.76 | DH40: 538.98 | DI40: 9099.48 | DJ40: 801.22 | DK40: 938.47 | DL40: 2908.89 | DM40: 2405.06 | DN40: 865.94 | DO40: 2287.12 | DP40: 4126.76 | DQ40: 7844.28 | DR40: 3516.77 | DS40: 593.56 | DT40: 2149.63 | DU40: 8958.66 | DV40: 1667.95 | DW40: 13990.44 | DX40: 2166.14 | DY40: 603.53 | DZ40: 6671.74 | EA40: 1853.51 | EB40: 4251.19 | EC40: 771.79 | ED40: 344.16 | EE40: 3324.00 | EF40: 528.15 | EG40: 5474.52 | EH40: 2049.36 | EI40: 3307.95 | EJ40: 2058.80 | EK40: 1417.84 | EL40: 1337.76 | EM40: 1910.35 | EN40: 806.47 | EO40: 4597.56 | EP40: 987.55 | EQ40: 1785.54 | ER40: 1512.21 | ES40: 1169.11 | ET40: 2158.97 | EU40: 1152.00 | EV40: 4303.41 | EW40: 542.81 | EX40: 1640.50 | EY40: 4090.24 | EZ40: 5931.08 | FA40: 916.63 | FB40: 1427.06 | FC40: 3517.50 | FD40: 2512.63 | FE40: 3953.92 | FF40: 10080.17 | FG40: 6220.69 | FH40: 3345.96 | FI40: 698.90 | FJ40: 2965.96 | FK40: 4795.24 | FL40: 683.28 | FM40: 1390.00 | FN40: 3005.38 | FO40: 4686.68 | FP40: 1169.76 | FQ40: 518.28 | FR40: 1968.30 | FS40: 7695.30 | FT40: 2556.46 | FU40: 2664.34 | FV40: 7993.84 | FW40: 6536.77 | FX40: 3799.88 | FY40: 1419.89 | FZ40: 9089.34 | GA40: 4579.34 | GB40: 714.89 | GC40: 520.82 | GD40: 1673.71 | GE40: 3550.53 | GF40: 3501.57 | GG40: 6460.02 | GH40: 13447.27 | GI40: 1197.55 | GJ40: 2224.03 | GK40: 1043.95 | GL40: 2034.29 | GM40: 5879.64 | GN40: 15501.64 | GO40: 714.81 | GP40: 2323.44 | GQ40: 3862.75 | GR40: 2482.82 | GS40: 8049.85 | GT40: 3664.87
A41: 36 | B41: -0.40 | C41: -2.53 | D41: 0.45 | E41: 0.67 | F41: 0.53 | G41: 0.14 | H41: 0.34 | I41: 0.35 | J41: 1.32 | K41: 0.97 | L41: 0.29 | M41: 0.83 | N41: 0.22 | O41: 1.93 | P41: 0.42 | Q41: -0.97 | R41: -1.06 | S41: 0.28 | T41: 1.23 | U41: 1.27 | V41: -0.83 | W41: -1.10 | X41: 0.81 | Y41: -3.00 | Z41: 0.82 | AA41: 0.88 | AB41: -1.68 | AC41: 0.07 | AD41: 1.27 | AE41: 0.62 | AF41: 0.66 | AG41: 0.26 | AH41: 0.08 | AI41: -0.81 | AJ41: -0.34 | AK41: -1.99 | AL41: -2.06 | AM41: 0.18 | AN41: 0.03 | AO41: 0.77 | AP41: 0.30 | AQ41: 1.48 | AR41: 0.51 | AS41: -0.84 | AT41: -1.12 | AU41: 1.72 | AV41: -0.84 | AW41: -1.31 | AX41: 0.48 | AY41: -1.02 | AZ41: -0.41 | BA41: 0.18 | BB41: -0.43 | BC41: 0.54 | BD41: -1.81 | BE41: 1.32 | BF41: 0.27 | BG41: -0.20 | BH41: -1.03 | BI41: -0.90 | BJ41: 0.59 | BK41: 0.72 | BL41: -0.10 | BM41: -2.12 | BN41: 0.09 | BO41: 0.21 | BP41: 0.44 | BQ41: -1.23 | BR41: 1.92 | BS41: -0.09 | BT41: -0.29 | BU41: 1.87 | BV41: -1.83 | BW41: -0.35 | BX41: -0.12 | BY41: 0.07 | BZ41: -1.64 | CA41: -0.23 | CB41: 0.13 | CC41: 1.65 | CD41: -0.36 | CE41: 0.13 | CF41: -0.06 | CG41: -0.12 | CH41: -1.80 | CI41: 1.79 | CJ41: 3.11 | CK41: -0.44 | CL41: 1.02 | CM41: 0.90 | CN41: 0.53 | CO41: -1.39 | CP41: -1.37 | CQ41: -0.25 | CR41: 0.56 | CS41: 0.90 | CT41: -0.17 | CU41: -1.02 | CV41: 0.66 | CW41: 0.75 | CX41: 35 | CY41: 1930.55 | CZ41: 1122.97 | DA41: 5339.56 | DB41: 3168.86 | DC41: 396.45 | DD41: 1710.51 | DE41: 1843.93 | DF41: 20353.74 | DG41: 2615.21 | DH41: 529.29 | DI41: 8993.50 | DJ41: 794.29 | DK41: 931.15 | DL41: 2810.29 | DM41: 3473.46 | DN41: 684.56 | DO41: 3247.35 | DP41: 3715.72 | DQ41: 8872.48 | DR41: 3730.69 | DS41: 624.74 | DT41: 2224.77 | DU41: 9285.29 | DV41: 1845.22 | DW41: 15596.39 | DX41: 2051.60 | DY41: 865.67 | DZ41: 5995.56 | EA41: 1860.43 | EB41: 3760.30 | EC41: 949.65 | ED41: 359.72 | EE41: 2294.69 | EF41: 633.76 | EG41: 6859.04 | EH41: 1836.51 | EI41: 2804.09 | EJ41: 2053.58 | EK41: 1626.53 | EL41: 1216.02 | EM41: 2133.17 | EN41: 846.43 | EO41: 4534.91 | EP41: 1037.70 | EQ41: 2403.58 | ER41: 1750.11 | ES41: 1261.54 | ET41: 2683.36 | EU41: 1234.21 | EV41: 6112.72 | EW41: 561.85 | EX41: 1446.37 | EY41: 4493.79 | EZ41: 8076.23 | FA41: 1002.02 | FB41: 1802.73 | FC41: 4166.23 | FD41: 3502.92 | FE41: 4813.67 | FF41: 12622.91 | FG41: 6038.24 | FH41: 3868.82 | FI41: 627.85 | FJ41: 2827.84 | FK41: 4402.19 | FL41: 811.60 | FM41: 1331.43 | FN41: 2682.16 | FO41: 5511.15 | FP41: 1327.24 | FQ41: 557.93 | FR41: 2094.60 | FS41: 7913.47 | FT41: 2452.20 | FU41: 2586.96 | FV41: 10760.79 | FW41: 7233.66 | FX41: 5069.48 | FY41: 1521.33 | FZ41: 9368.65 | GA41: 3942.58 | GB41: 723.77 | GC41: 483.18 | GD41: 1697.98 | GE41: 3055.33 | GF41: 4168.77 | GG41: 7013.89 | GH41: 12336.10 | GI41: 1229.36 | GJ41: 3052.34 | GK41: 1478.78 | GL41: 2036.44 | GM41: 5514.95 | GN41: 16927.19 | GO41: 814.80 | GP41: 2232.59 | GQ41: 3502.17 | GR41: 2787.70 | GS41: 8789.52 | GT41: 4018.65
A42: 37 | B42: 0.03 | C42: 0.35 | D42: -0.43 | E42: -0.68 | F42: -0.54 | G42: 1.62 | H42: 0.48 | I42: 0.35 | J42: 2.47 | K42: 0.34 | L42: -1.75 | M42: 2.65 | N42: 0.33 | O42: 0.41 | P42: 1.97 | Q42: 0.70 | R42: 1.31 | S42: -0.31 | T42: 0.05 | U42: -2.38 | V42: 0.12 | W42: -1.05 | X42: 0.02 | Y42: -1.76 | Z42: 0.76 | AA42: 0.05 | AB42: -1.32 | AC42: -0.09 | AD42: -1.44 | AE42: 0.28 | AF42: 0.79 | AG42: 0.50 | AH42: 1.12 | AI42: 0.35 | AJ42: 1.71 | AK42: -1.63 | AL42: -0.46 | AM42: -1.00 | AN42: -0.79 | AO42: -0.49 | AP42: 1.22 | AQ42: -1.30 | AR42: 0.08 | AS42: 1.28 | AT42: 0.65 | AU42: 2.27 | AV42: 0.12 | AW42: 0.29 | AX42: 0.90 | AY42: 0.19 | AZ42: 1.78 | BA42: -1.35 | BB42: 0.05 | BC42: -0.80 | BD42: -0.22 | BE42: 0.79 | BF42: 1.11 | BG42: -0.96 | BH42: 0.61 | BI42: 0.95 | BJ42: -1.27 | BK42: -0.53 | BL42: -2.29 | BM42: -0.16 | BN42: 0.15 | BO42: -0.97 | BP42: -0.29 | BQ42: -0.73 | BR42: 0.96 | BS42: -1.12 | BT42: 1.28 | BU42: -0.76 | BV42: 1.62 | BW42: -0.21 | BX42: -0.21 | BY42: 0.63 | BZ42: 0.60 | CA42: 0.56 | CB42: 1.47 | CC42: -1.58 | CD42: 1.44 | CE42: -0.42 | CF42: -0.74 | CG42: -1.17 | CH42: -0.33 | CI42: -0.07 | CJ42: -0.56 | CK42: 1.65 | CL42: 0.54 | CM42: 0.10 | CN42: -0.58 | CO42: -0.87 | CP42: 1.47 | CQ42: -0.82 | CR42: 0.47 | CS42: -0.01 | CT42: -0.30 | CU42: -1.36 | CV42: -0.56 | CW42: -1.72 | CX42: 36 | CY42: 1987.65 | CZ42: 839.67 | DA42: 6243.58 | DB42: 3831.14 | DC42: 468.75 | DD42: 1910.35 | DE42: 2120.83 | DF42: 23443.94 | DG42: 3484.56 | DH42: 668.80 | DI42: 10260.22 | DJ42: 982.47 | DK42: 1052.48 | DL42: 4100.22 | DM42: 4042.16 | DN42: 646.95 | DO42: 3029.16 | DP42: 4233.06 | DQ42: 11663.90 | DR42: 4936.00 | DS42: 603.16 | DT42: 2061.68 | DU42: 11453.61 | DV42: 1285.75 | DW42: 19281.30 | DX42: 2559.24 | DY42: 735.32 | DZ42: 6619.41 | EA42: 2458.71 | EB42: 4509.62 | EC42: 1145.07 | ED42: 408.49 | EE42: 2536.60 | EF42: 613.37 | EG42: 7125.16 | EH42: 1488.11 | EI42: 2250.75 | EJ42: 2304.31 | EK42: 1784.68 | EL42: 1490.50 | EM42: 2439.96 | EN42: 1155.16 | EO42: 5346.76 | EP42: 1000.10 | EQ42: 2220.87 | ER42: 2475.30 | ES42: 1215.50 | ET42: 2408.28 | EU42: 1450.45 | EV42: 5731.15 | EW42: 577.19 | EX42: 1623.50 | EY42: 4602.82 | EZ42: 9576.78 | FA42: 834.82 | FB42: 2399.89 | FC42: 4743.30 | FD42: 3714.61 | FE42: 4504.41 | FF42: 12055.27 | FG42: 7205.10 | FH42: 4712.60 | FI42: 676.13 | FJ42: 2248.22 | FK42: 4873.58 | FL42: 914.96 | FM42: 1555.06 | FN42: 2437.55 | FO42: 8034.92 | FP42: 1431.96 | FQ42: 584.10 | FR42: 3031.01 | FS42: 6574.08 | FT42: 2541.92 | FU42: 2777.34 | FV42: 11876.10 | FW42: 6181.14 | FX42: 5351.45 | FY42: 1694.16 | FZ42: 13113.21 | GA42: 4082.13 | GB42: 806.09 | GC42: 523.26 | GD42: 1821.32 | GE42: 2547.61 | GF42: 5962.36 | GG42: 12214.76 | GH42: 12616.28 | GI42: 1566.10 | GJ42: 3819.19 | GK42: 1749.15 | GL42: 1805.71 | GM42: 4903.72 | GN42: 17804.84 | GO42: 968.61 | GP42: 2792.14 | GQ42: 3728.72 | GR42: 2615.40 | GS42: 10608.07 | GT42: 4918.03
A43: 38 | B43: -0.52 | C43: 0.38 | D43: 0.33 | E43: 1.80 | F43: 0.41 | G43: -0.34 | H43: 0.29 | I43: 2.13 | J43: -0.29 | K43: 0.41 | L43: 1.25 | M43: -2.05 | N43: 0.43 | O43: 0.27 | P43: 0.69 | Q43: -1.54 | R43: -0.08 | S43: -1.69 | T43: -1.80 | U43: -1.44 | V43: 1.42 | W43: 2.38 | X43: 1.49 | Y43: -0.72 | Z43: 0.69 | AA43: 2.73 | AB43: -1.41 | AC43: -0.64 | AD43: -0.22 | AE43: -0.21 | AF43: 1.08 | AG43: -1.07 | AH43: -2.43 | AI43: -1.01 | AJ43: -0.47 | AK43: -1.98 | AL43: 0.84 | AM43: 1.20 | AN43: 0.22 | AO43: 0.08 | AP43: -0.49 | AQ43: -0.50 | AR43: -0.70 | AS43: -0.39 | AT43: 0.71 | AU43: -0.05 | AV43: -0.02 | AW43: -0.59 | AX43: 2.04 | AY43: 0.53 | AZ43: 0.23 | BA43: 0.27 | BB43: -0.16 | BC43: -1.86 | BD43: -0.24 | BE43: -1.66 | BF43: 0.15 | BG43: 2.01 | BH43: 0.06 | BI43: -1.92 | BJ43: -2.41 | BK43: -0.43 | BL43: 0.95 | BM43: 0.26 | BN43: 2.62 | BO43: 0.69 | BP43: 1.40 | BQ43: 0.84 | BR43: -0.20 | BS43: -1.62 | BT43: -0.49 | BU43: 0.45 | BV43: 1.15 | BW43: 0.84 | BX43: 0.88 | BY43: 0.81 | BZ43: -0.82 | CA43: -0.81 | CB43: 1.59 | CC43: 0.08 | CD43: 1.00 | CE43: 1.11 | CF43: 1.43 | CG43: 1.24 | CH43: -0.16 | CI43: -0.45 | CJ43: 1.67 | CK43: -1.13 | CL43: -1.25 | CM43: -1.19 | CN43: -0.35 | CO43: 3.43 | CP43: 0.88 | CQ43: -0.97 | CR43: -0.12 | CS43: 1.21 | CT43: -1.29 | CU43: -0.85 | CV43: -0.21 | CW43: 0.26 | CX43: 37 | CY43: 2181.20 | CZ43: 967.70 | DA43: 6400.70 | DB43: 3778.11 | DC43: 472.20 | DD43: 2660.54 | DE43: 2491.25 | DF43: 27016.50 | DG43: 5516.14 | DH43: 769.51 | DI43: 8622.13 | DJ43: 1598.24 | DK43: 1208.98 | DL43: 4761.54 | DM43: 5932.26 | DN43: 784.88 | DO43: 4031.82 | DP43: 4412.97 | DQ43: 12836.48 | DR43: 3774.91 | DS43: 670.67 | DT43: 1923.62 | DU43: 12555.94 | DV43: 1079.73 | DW43: 23614.22 | DX43: 2817.65 | DY43: 659.34 | DZ43: 7132.17 | EA43: 2164.69 | EB43: 5143.19 | EC43: 1408.33 | ED43: 481.10 | EE43: 3279.28 | EF43: 706.34 | EG43: 10064.03 | EH43: 1274.13 | EI43: 2296.82 | EJ43: 2168.48 | EK43: 1732.64 | EL43: 1512.73 | EM43: 3201.92 | EN43: 1039.06 | EO43: 5911.81 | EP43: 1323.69 | EQ43: 2677.43 | ER43: 3802.45 | ES43: 1351.85 | ET43: 2750.14 | EU43: 1815.39 | EV43: 6439.57 | EW43: 824.21 | EX43: 1449.52 | EY43: 5070.79 | EZ43: 9281.71 | FA43: 882.75 | FB43: 2951.74 | FC43: 6119.50 | FD43: 3512.82 | FE43: 5397.29 | FF43: 15186.55 | FG43: 6507.44 | FH43: 4753.66 | FI43: 523.93 | FJ43: 2398.98 | FK43: 5448.72 | FL43: 864.18 | FM43: 1626.79 | FN43: 2387.36 | FO43: 10138.96 | FP43: 1322.37 | FQ43: 773.64 | FR43: 2956.45 | FS43: 9160.38 | FT43: 2691.49 | FU43: 2939.21 | FV43: 14258.56 | FW43: 7392.70 | FX43: 6364.62 | FY43: 2308.38 | FZ43: 11306.65 | GA43: 5539.83 | GB43: 827.19 | GC43: 512.01 | GD43: 1670.06 | GE43: 2648.67 | GF43: 6450.17 | GG43: 12273.19 | GH43: 17651.00 | GI43: 1854.56 | GJ43: 4237.22 | GK43: 1751.66 | GL43: 1730.90 | GM43: 6683.39 | GN43: 17211.55 | GO43: 1135.52 | GP43: 3047.34 | GQ43: 3895.89 | GR43: 2330.50 | GS43: 10658.10 | GT43: 4154.02
A44: 39 | B44: 1.08 | C44: -1.19 | D44: -0.49 | E44: -1.24 | F44: -0.76 | G44: 1.47 | H44: -0.11 | I44: -2.47 | J44: -0.57 | K44: -0.83 | L44: -1.13 | M44: -2.44 | N44: 0.76 | O44: 0.33 | P44: -1.95 | Q44: -0.86 | R44: -0.25 | S44: 0.52 | T44: -0.37 | U44: -0.30 | V44: 1.50 | W44: -1.80 | X44: 2.09 | Y44: -0.56 | Z44: 0.64 | AA44: -0.26 | AB44: 0.07 | AC44: 1.19 | AD44: 1.46 | AE44: 1.27 | AF44: 0.91 | AG44: 0.34 | AH44: 0.61 | AI44: -0.05 | AJ44: 0.34 | AK44: 1.55 | AL44: -0.53 | AM44: -1.05 | AN44: -1.38 | AO44: 0.14 | AP44: 0.14 | AQ44: -2.01 | AR44: 0.27 | AS44: -0.57 | AT44: -0.57 | AU44: 0.60 | AV44: 1.46 | AW44: 0.46 | AX44: -1.34 | AY44: -1.14 | AZ44: 1.45 | BA44: -1.22 | BB44: -0.34 | BC44: -2.14 | BD44: 0.79 | BE44: 1.31 | BF44: 2.96 | BG44: 0.45 | BH44: -0.34 | BI44: 1.14 | BJ44: 1.17 | BK44: 1.45 | BL44: -0.94 | BM44: -2.06 | BN44: 1.49 | BO44: 0.51 | BP44: 1.06 | BQ44: 0.48 | BR44: 0.85 | BS44: 0.16 | BT44: 0.29 | BU44: 1.34 | BV44: 1.08 | BW44: -0.28 | BX44: -0.10 | BY44: -0.39 | BZ44: 0.41 | CA44: 0.13 | CB44: 0.50 | CC44: -0.23 | CD44: 0.09 | CE44: 0.67 | CF44: 0.03 | CG44: -1.83 | CH44: 0.02 | CI44: 2.46 | CJ44: -0.77 | CK44: 0.76 | CL44: -1.47 | CM44: 0.81 | CN44: 0.95 | CO44: 0.12 | CP44: -1.15 | CQ44: -2.52 | CR44: 0.14 | CS44: 0.77 | CT44: 0.36 | CU44: -0.05 | CV44: -1.36 | CW44: -0.66 | CX44: 38 | CY44: 2205.96 | CZ44: 1119.77 | DA44: 7345.30 | DB44: 5411.77 | DC44: 549.05 | DD44: 2764.47 | DE44: 2845.10 | DF44: 40612.94 | DG44: 5771.69 | DH44: 894.47 | DI44: 11363.46 | DJ44: 1283.34 | DK44: 1410.08 | DL44: 5422.29 | DM44: 7185.47 | DN44: 681.23 | DO44: 4355.46 | DP44: 3742.78 | DQ44: 10707.71 | DR44: 3325.53 | DS44: 907.25 | DT44: 3006.20 | DU44: 17160.53 | DV44: 1058.52 | DW44: 28636.96 | DX44: 4639.08 | DY44: 582.79 | DZ44: 7080.85 | EA44: 2287.95 | EB44: 5449.65 | EC44: 1809.01 | ED44: 448.13 | EE44: 2489.32 | EF44: 663.32 | EG44: 10242.09 | EH44: 1033.96 | EI44: 2848.76 | EJ44: 2835.58 | EK44: 1956.38 | EL44: 1672.92 | EM44: 3250.93 | EN44: 1053.63 | EO44: 5819.63 | EP44: 1364.21 | EQ44: 3256.09 | ER44: 4126.95 | ES44: 1473.77 | ET44: 2749.10 | EU44: 2694.92 | EV44: 7615.52 | EW44: 932.80 | EX44: 1649.17 | EY44: 5407.60 | EZ44: 7672.54 | FA44: 930.73 | FB44: 2515.84 | FC44: 6844.54 | FD44: 5187.84 | FE44: 5951.57 | FF44: 12451.32 | FG44: 4950.50 | FH44: 4872.12 | FI44: 660.04 | FJ44: 2723.90 | FK44: 8821.15 | FL44: 1046.63 | FM44: 2194.01 | FN44: 2961.20 | FO44: 10757.96 | FP44: 1132.91 | FQ44: 785.86 | FR44: 3455.81 | FS44: 11890.81 | FT44: 3338.00 | FU44: 3663.00 | FV44: 17599.16 | FW44: 7147.73 | FX44: 6163.73 | FY44: 3201.97 | FZ44: 12508.16 | GA44: 7030.88 | GB44: 1067.87 | GC44: 692.98 | GD44: 2199.78 | GE44: 2826.05 | GF44: 6588.56 | GG44: 17224.77 | GH44: 16291.33 | GI44: 1681.40 | GJ44: 3871.19 | GK44: 1817.63 | GL44: 3162.88 | GM44: 8331.46 | GN44: 16253.29 | GO44: 1219.52 | GP44: 3995.31 | GQ44: 3507.21 | GR44: 2240.59 | GS44: 11281.52 | GT44: 4716.65
A45: 40 | B45: -0.70 | C45: 1.52 | D45: -2.43 | E45: -0.14 | F45: -0.45 | G45: -0.89 | H45: -0.49 | I45: 0.24 | J45: 1.70 | K45: -0.97 | L45: -0.24 | M45: -0.33 | N45: -1.53 | O45: 1.03 | P45: -0.03 | Q45: -0.61 | R45: -0.68 | S45: 0.15 | T45: 0.70 | U45: 0.60 | V45: 0.59 | W45: 0.55 | X45: -0.54 | Y45: -2.38 | Z45: 0.31 | AA45: 0.05 | AB45: -1.48 | AC45: 1.02 | AD45: -0.46 | AE45: 0.52 | AF45: 1.90 | AG45: 2.02 | AH45: 1.20 | AI45: 0.50 | AJ45: -0.66 | AK45: -0.16 | AL45: -0.36 | AM45: -0.15 | AN45: -0.50 | AO45: 0.96 | AP45: -1.93 | AQ45: -0.60 | AR45: -0.87 | AS45: -0.16 | AT45: -0.61 | AU45: 1.18 | AV45: 0.71 | AW45: -0.38 | AX45: -0.68 | AY45: 1.75 | AZ45: 1.31 | BA45: -0.01 | BB45: 2.72 | BC45: 0.09 | BD45: 0.47 | BE45: 0.69 | BF45: -1.22 | BG45: 0.00 | BH45: 1.06 | BI45: -1.62 | BJ45: 0.56 | BK45: -0.30 | BL45: 0.47 | BM45: 0.22 | BN45: 0.82 | BO45: 1.30 | BP45: -0.33 | BQ45: -1.43 | BR45: 0.38 | BS45: -0.39 | BT45: -1.10 | BU45: -0.65 | BV45: -0.00 | BW45: -0.70 | BX45: -0.82 | BY45: -0.24 | BZ45: -1.76 | CA45: -0.13 | CB45: 0.75 | CC45: -0.81 | CD45: 1.80 | CE45: -1.26 | CF45: -0.85 | CG45: 0.58 | CH45: -0.76 | CI45: 0.11 | CJ45: -0.17 | CK45: 0.53 | CL45: -1.23 | CM45: 0.38 | CN45: -1.40 | CO45: -1.07 | CP45: 0.99 | CQ45: 0.55 | CR45: 1.42 | CS45: -0.79 | CT45: 0.87 | CU45: -0.51 | CV45: -0.21 | CW45: -0.10 | CX45: 39 | CY45: 2834.38 | CZ45: 1023.76 | DA45: 7460.44 | DB45: 4909.89 | DC45: 535.75 | DD45: 3767.51 | DE45: 3060.01 | DF45: 30653.11 | DG45: 5789.46 | DH45: 862.57 | DI45: 10484.49 | DJ45: 972.24 | DK45: 1725.95 | DL45: 6222.12 | DM45: 5858.49 | DN45: 654.77 | DO45: 4586.44 | DP45: 4422.30 | DQ45: 11064.70 | DR45: 3472.84 | DS45: 1242.15 | DT45: 2507.95 | DU45: 25676.37 | DV45: 1063.03 | DW45: 34455.19 | DX45: 4874.98 | DY45: 643.14 | DZ45: 9252.88 | EA45: 3112.12 | EB45: 7205.31 | EC45: 2266.59 | ED45: 515.66 | EE45: 2982.72 | EF45: 719.25 | EG45: 11780.29 | EH45: 1426.54 | EI45: 2873.66 | EJ45: 2647.92 | EK45: 1737.90 | EL45: 1867.79 | EM45: 3625.83 | EN45: 851.87 | EO45: 6622.00 | EP45: 1367.73 | EQ45: 3268.94 | ER45: 4930.99 | ES45: 2005.32 | ET45: 3220.03 | EU45: 2407.69 | EV45: 7014.51 | EW45: 1266.52 | EX45: 1500.05 | EY45: 5613.58 | EZ45: 6084.39 | FA45: 1145.54 | FB45: 3344.78 | FC45: 11664.76 | FD45: 6063.56 | FE45: 6179.10 | FF45: 16149.46 | FG45: 6444.41 | FH45: 6615.60 | FI45: 626.39 | FJ45: 2187.00 | FK45: 12047.30 | FL45: 1235.00 | FM45: 2809.26 | FN45: 3475.14 | FO45: 13364.72 | FP45: 1267.18 | FQ45: 897.01 | FR45: 4619.64 | FS45: 15286.39 | FT45: 3500.07 | FU45: 3944.52 | FV45: 18134.57 | FW45: 8300.90 | FX45: 6871.03 | FY45: 3770.43 | FZ45: 13211.04 | GA45: 7790.39 | GB45: 1289.40 | GC45: 760.67 | GD45: 1827.12 | GE45: 3098.35 | GF45: 10412.40 | GG45: 16764.93 | GH45: 19940.75 | GI45: 1474.08 | GJ45: 4779.69 | GK45: 2288.84 | GL45: 3520.94 | GM45: 7660.03 | GN45: 12179.92 | GO45: 1360.42 | GP45: 4903.25 | GQ45: 4047.50 | GR45: 2429.37 | GS45: 10049.97 | GT45: 4667.13
A46: 41 | B46: -1.02 | C46: -0.69 | D46: 3.07 | E46: -0.03 | F46: 0.78 | G46: -1.32 | H46: 0.34 | I46: 1.85 | J46: 0.08 | K46: -0.50 | L46: -0.02 | M46: -0.90 | N46: 0.30 | O46: 0.12 | P46: -0.84 | Q46: 1.63 | R46: -2.29 | S46: -1.04 | T46: 0.08 | U46: -0.98 | V46: 1.37 | W46: -0.50 | X46: 1.63 | Y46: 0.72 | Z46: -2.99 | AA46: -2.09 | AB46: 1.47 | AC46: -0.23 | AD46: 0.12 | AE46: -0.56 | AF46: -0.08 | AG46: 0.22 | AH46: -1.12 | AI46: 0.37 | AJ46: 0.37 | AK46: 0.12 | AL46: -1.49 | AM46: 0.00 | AN46: 0.48 | AO46: 0.60 | AP46: -0.85 | AQ46: -0.31 | AR46: -0.21 | AS46: -2.07 | AT46: -0.75 | AU46: 0.03 | AV46: 0.04 | AW46: 0.35 | AX46: -0.68 | AY46: 1.55 | AZ46: -0.04 | BA46: 1.09 | BB46: 0.28 | BC46: -0.03 | BD46: 0.49 | BE46: -0.06 | BF46: 0.80 | BG46: 0.86 | BH46: -0.08 | BI46: -1.21 | BJ46: -0.23 | BK46: 1.23 | BL46: 0.37 | BM46: -0.36 | BN46: -1.23 | BO46: -0.85 | BP46: -0.39 | BQ46: 1.06 | BR46: -0.45 | BS46: 0.86 | BT46: 0.29 | BU46: -0.88 | BV46: 0.70 | BW46: 0.61 | BX46: 0.20 | BY46: 1.13 | BZ46: 0.20 | CA46: 1.13 | CB46: 0.76 | CC46: -1.09 | CD46: -1.24 | CE46: 0.38 | CF46: -0.44 | CG46: 1.45 | CH46: -1.57 | CI46: 1.03 | CJ46: 0.16 | CK46: 0.62 | CL46: -1.53 | CM46: 0.58 | CN46: 0.99 | CO46: 0.49 | CP46: 0.21 | CQ46: 0.92 | CR46: -1.35 | CS46: 0.24 | CT46: 1.29 | CU46: 0.59 | CV46: 1.39 | CW46: -0.68 | CX46: 40 | CY46: 2787.45 | CZ46: 1406.27 | DA46: 5664.52 | DB46: 5251.17 | DC46: 547.56 | DD46: 3602.77 | DE46: 3107.38 | DF46: 34746.80 | DG46: 8163.77 | DH46: 815.24 | DI46: 11049.25 | DJ46: 1010.46 | DK46: 1499.64 | DL46: 7939.55 | DM46: 6373.50 | DN46: 653.22 | DO46: 4524.27 | DP46: 4940.11 | DQ46: 13428.96 | DR46: 4155.32 | DS46: 1482.55 | DT46: 2977.45 | DU46: 25869.57 | DV46: 812.66 | DW46: 39471.29 | DX46: 5364.76 | DY46: 562.63 | DZ46: 11781.43 | EA46: 3173.27 | EB46: 8516.28 | EC46: 3294.20 | ED46: 762.87 | EE46: 3904.27 | EF46: 847.27 | EG46: 11653.93 | EH46: 1521.56 | EI46: 2977.20 | EJ46: 2830.96 | EK46: 1763.04 | EL46: 2355.52 | EM46: 2965.19 | EN46: 851.00 | EO46: 6349.18 | EP46: 1459.88 | EQ46: 3258.45 | ER46: 6434.44 | ES46: 2438.94 | ET46: 3324.48 | EU46: 2377.49 | EV46: 9971.62 | EW46: 1683.95 | EX46: 1636.34 | EY46: 9229.29 | EZ46: 6742.98 | FA46: 1343.21 | FB46: 4056.09 | FC46: 10620.50 | FD46: 6629.54 | FE46: 7912.98 | FF46: 13839.80 | FG46: 7663.37 | FH46: 6911.38 | FI46: 734.89 | FJ46: 2469.31 | FK46: 14897.51 | FL46: 1641.21 | FM46: 2923.81 | FN46: 3065.47 | FO46: 15457.18 | FP46: 1305.13 | FQ46: 830.64 | FR46: 4576.29 | FS46: 16701.72 | FT46: 3445.15 | FU46: 3810.88 | FV46: 19119.10 | FW46: 6963.65 | FX46: 7361.41 | FY46: 4610.06 | FZ46: 12788.17 | GA46: 11144.09 | GB46: 1166.07 | GC46: 731.23 | GD46: 2179.23 | GE46: 3021.12 | GF46: 11563.18 | GG46: 17870.81 | GH46: 23593.73 | GI46: 1338.96 | GJ46: 5529.05 | GK46: 2027.91 | GL46: 3278.42 | GM46: 9708.58 | GN46: 14455.44 | GO46: 1840.95 | GP46: 4759.51 | GQ46: 5041.85 | GR46: 2460.16 | GS46: 10641.45 | GT46: 5023.56
A47: 42 | B47: -0.49 | C47: 2.43 | D47: 0.52 | E47: 0.75 | F47: -0.76 | G47: 0.23 | H47: 0.13 | I47: -0.53 | J47: -0.67 | K47: -1.04 | L47: 0.35 | M47: 0.59 | N47: -1.74 | O47: -0.96 | P47: 0.36 | Q47: 1.25 | R47: 1.30 | S47: 0.56 | T47: 1.12 | U47: 1.33 | V47: 1.96 | W47: 0.16 | X47: 1.12 | Y47: 1.25 | Z47: -1.88 | AA47: -0.17 | AB47: 2.03 | AC47: -2.27 | AD47: 0.25 | AE47: -0.89 | AF47: 0.48 | AG47: 1.80 | AH47: 0.15 | AI47: 0.56 | AJ47: -0.70 | AK47: 0.82 | AL47: 1.17 | AM47: -0.38 | AN47: -0.20 | AO47: -0.64 | AP47: 0.25 | AQ47: 0.09 | AR47: 0.82 | AS47: 0.16 | AT47: 0.78 | AU47: 0.12 | AV47: 0.05 | AW47: 0.54 | AX47: 0.17 | AY47: -1.65 | AZ47: 1.46 | BA47: -0.61 | BB47: 1.68 | BC47: -0.50 | BD47: 1.41 | BE47: 1.27 | BF47: -0.01 | BG47: 0.65 | BH47: 0.06 | BI47: -0.73 | BJ47: 0.18 | BK47: 0.59 | BL47: 0.06 | BM47: 0.38 | BN47: -0.30 | BO47: -0.63 | BP47: 0.24 | BQ47: -0.04 | BR47: -0.54 | BS47: 0.13 | BT47: 0.89 | BU47: -1.09 | BV47: 0.68 | BW47: 1.14 | BX47: 1.92 | BY47: 0.64 | BZ47: -0.40 | CA47: 2.63 | CB47: 0.26 | CC47: 0.56 | CD47: -0.64 | CE47: -0.02 | CF47: -1.28 | CG47: -2.57 | CH47: 0.55 | CI47: -1.46 | CJ47: 1.20 | CK47: -0.59 | CL47: 0.01 | CM47: -0.21 | CN47: 1.75 | CO47: 0.82 | CP47: -0.04 | CQ47: 0.28 | CR47: 0.95 | CS47: -0.39 | CT47: 1.18 | CU47: 0.28 | CV47: -1.17 | CW47: 1.89 | CX47: 41 | CY47: 2615.01 | CZ47: 1386.49 | DA47: 9811.56 | DB47: 5713.65 | DC47: 672.97 | DD47: 3227.51 | DE47: 3571.41 | DF47: 50134.00 | DG47: 9035.25 | DH47: 826.06 | DI47: 12031.07 | DJ47: 964.12 | DK47: 1715.22 | DL47: 8837.63 | DM47: 6142.63 | DN47: 912.20 | DO47: 3505.81 | DP47: 4621.37 | DQ47: 14854.63 | DR47: 3917.87 | DS47: 1989.56 | DT47: 3017.66 | DU47: 36085.55 | DV47: 990.00 | DW47: 27525.31 | DX47: 4281.88 | DY47: 766.90 | DZ47: 12429.25 | EA47: 3529.28 | EB47: 8551.61 | EC47: 3558.51 | ED47: 861.01 | EE47: 3608.18 | EF47: 978.51 | EG47: 13470.25 | EH47: 1691.93 | EI47: 2603.25 | EJ47: 3095.95 | EK47: 2071.40 | EL47: 2818.19 | EM47: 2853.91 | EN47: 887.27 | EO47: 6720.17 | EP47: 1169.08 | EQ47: 3183.57 | ER47: 7066.92 | ES47: 2683.02 | ET47: 3826.14 | EU47: 2346.58 | EV47: 13752.90 | EW47: 1829.23 | EX47: 2104.49 | EY47: 10517.78 | EZ47: 7334.06 | FA47: 1579.80 | FB47: 4391.82 | FC47: 13080.10 | FD47: 8237.72 | FE47: 8547.18 | FF47: 12611.71 | FG47: 8096.01 | FH47: 9083.14 | FI47: 849.08 | FJ47: 2556.62 | FK47: 13544.83 | FL47: 1578.39 | FM47: 3015.75 | FN47: 3927.39 | FO47: 15796.84 | FP47: 1622.64 | FQ47: 948.19 | FR47: 4385.46 | FS47: 20287.44 | FT47: 4126.00 | FU47: 4294.58 | FV47: 24753.18 | FW47: 7846.31 | FX47: 9526.98 | FY47: 5645.34 | FZ47: 11869.29 | GA47: 10113.10 | GB47: 1349.05 | GC47: 747.98 | GD47: 2961.29 | GE47: 2608.53 | GF47: 14753.98 | GG47: 20000.68 | GH47: 28315.38 | GI47: 1162.58 | GJ47: 6586.50 | GK47: 2571.35 | GL47: 3855.55 | GM47: 10951.88 | GN47: 18122.63 | GO47: 1643.62 | GP47: 5392.78 | GQ47: 6681.72 | GR47: 2935.77 | GS47: 14322.66 | GT47: 4958.48
A48: 43 | B48: -0.46 | C48: 1.19 | D48: 1.23 | E48: 0.53 | F48: 0.33 | G48: 0.40 | H48: 1.44 | I48: -0.74 | J48: -1.95 | K48: 1.13 | L48: -1.63 | M48: 0.42 | N48: 1.88 | O48: -0.43 | P48: 0.75 | Q48: -0.86 | R48: -0.73 | S48: -1.15 | T48: -0.90 | U48: -2.32 | V48: -0.34 | W48: 0.79 | X48: 0.15 | Y48: -1.14 | Z48: -0.62 | AA48: -0.56 | AB48: 0.08 | AC48: 0.06 | AD48: 1.48 | AE48: -0.35 | AF48: -0.74 | AG48: -0.53 | AH48: -1.30 | AI48: -0.83 | AJ48: -0.42 | AK48: -1.09 | AL48: 1.51 | AM48: -1.71 | AN48: -0.16 | AO48: 1.49 | AP48: -0.25 | AQ48: 0.50 | AR48: 0.16 | AS48: 0.58 | AT48: -0.09 | AU48: 0.02 | AV48: -0.35 | AW48: 0.96 | AX48: 0.82 | AY48: 1.31 | AZ48: 0.75 | BA48: -0.04 | BB48: -0.95 | BC48: 0.96 | BD48: 0.33 | BE48: 0.21 | BF48: -1.08 | BG48: -0.37 | BH48: -1.29 | BI48: -1.74 | BJ48: -0.88 | BK48: 0.84 | BL48: -0.38 | BM48: -0.24 | BN48: -1.93 | BO48: 0.06 | BP48: -0.31 | BQ48: -1.80 | BR48: -1.06 | BS48: 1.01 | BT48: -0.44 | BU48: 0.35 | BV48: -0.43 | BW48: -1.13 | BX48: -0.33 | BY48: -0.13 | BZ48: -0.56 | CA48: 0.31 | CB48: -0.46 | CC48: 0.90 | CD48: 1.66 | CE48: 2.59 | CF48: -1.09 | CG48: -0.02 | CH48: 0.80 | CI48: -0.87 | CJ48: -0.01 | CK48: -0.24 | CL48: 0.26 | CM48: 0.15 | CN48: 0.05 | CO48: -0.97 | CP48: -1.26 | CQ48: 1.00 | CR48: 1.74 | CS48: -1.02 | CT48: 0.87 | CU48: -2.35 | CV48: 0.70 | CW48: -0.27 | CX48: 42 | CY48: 2656.41 | CZ48: 2183.15 | DA48: 11584.85 | DB48: 6986.53 | DC48: 656.20 | DD48: 3653.53 | DE48: 3978.33 | DF48: 50568.86 | DG48: 8933.22 | DH48: 772.29 | DI48: 13861.23 | DJ48: 1151.93 | DK48: 1443.13 | DL48: 8360.44 | DM48: 7086.23 | DN48: 1202.95 | DO48: 4653.20 | DP48: 5491.08 | DQ48: 19196.79 | DR48: 5226.17 | DS48: 2918.25 | DT48: 3379.62 | DU48: 46675.89 | DV48: 1304.04 | DW48: 22679.64 | DX48: 4561.14 | DY48: 1136.07 | DZ48: 9667.04 | EA48: 4001.36 | EB48: 8178.81 | EC48: 4181.16 | ED48: 1233.45 | EE48: 4033.28 | EF48: 1162.40 | EG48: 13261.38 | EH48: 2092.21 | EI48: 3391.37 | EJ48: 3196.76 | EK48: 2195.60 | EL48: 2798.78 | EM48: 3235.58 | EN48: 982.74 | EO48: 8311.00 | EP48: 1309.23 | EQ48: 3908.50 | ER48: 7866.38 | ES48: 2954.57 | ET48: 4537.09 | EU48: 2631.24 | EV48: 11732.51 | EW48: 2489.91 | EX48: 2099.59 | EY48: 14792.18 | EZ48: 7439.96 | FA48: 2132.47 | FB48: 5808.93 | FC48: 14263.97 | FD48: 9920.35 | FE48: 9419.74 | FF48: 12360.16 | FG48: 9094.40 | FH48: 10841.08 | FI48: 935.75 | FJ48: 2957.01 | FK48: 14158.57 | FL48: 1568.73 | FM48: 3415.47 | FN48: 4264.80 | FO48: 15928.80 | FP48: 1807.06 | FQ48: 1184.16 | FR48: 4069.08 | FS48: 24535.57 | FT48: 5346.99 | FU48: 6259.41 | FV48: 29775.62 | FW48: 8073.18 | FX48: 15440.20 | FY48: 6413.46 | FZ48: 14099.78 | GA48: 10041.45 | GB48: 1470.83 | GC48: 674.70 | GD48: 2201.86 | GE48: 3095.46 | GF48: 12945.25 | GG48: 26148.69 | GH48: 28315.51 | GI48: 1272.33 | GJ48: 6975.61 | GK48: 3651.47 | GL48: 4763.97 | GM48: 11896.88 | GN48: 20640.16 | GO48: 2069.91 | GP48: 5559.12 | GQ48: 8714.94 | GR48: 3344.52 | GS48: 13140.93 | GT48: 7195.06
A49: 44 | B49: 0.05 | C49: 0.06 | D49: -0.12 | E49: -1.60 | F49: 1.76 | G49: -2.09 | H49: -0.75 | I49: 0.93 | J49: 0.77 | K49: 1.46 | L49: -1.10 | M49: 1.65 | N49: 0.10 | O49: -1.07 | P49: -0.54 | Q49: -0.72 | R49: 1.12 | S49: -0.99 | T49: 0.07 | U49: 0.69 | V49: -0.16 | W49: 0.90 | X49: -0.46 | Y49: 0.19 | Z49: 1.23 | AA49: -1.42 | AB49: 0.11 | AC49: -0.54 | AD49: -0.21 | AE49: 2.10 | AF49: 0.73 | AG49: 0.28 | AH49: -1.27 | AI49: -0.81 | AJ49: 0.46 | AK49: 0.80 | AL49: 0.53 | AM49: -0.40 | AN49: -0.19 | AO49: -0.76 | AP49: -1.64 | AQ49: -0.41 | AR49: -0.49 | AS49: 1.63 | AT49: 0.45 | AU49: -0.68 | AV49: 0.81 | AW49: -0.47 | AX49: 1.02 | AY49: 0.51 | AZ49: -1.19 | BA49: 0.50 | BB49: 0.53 | BC49: -0.89 | BD49: 0.15 | BE49: -0.38 | BF49: 0.13 | BG49: 0.66 | BH49: 0.34 | BI49: -0.02 | BJ49: -1.22 | BK49: 1.41 | BL49: -0.80 | BM49: -0.00 | BN49: 0.57 | BO49: 0.46 | BP49: 1.45 | BQ49: -0.36 | BR49: -0.64 | BS49: -0.68 | BT49: 0.79 | BU49: -0.16 | BV49: 2.38 | BW49: -0.18 | BX49: -0.27 | BY49: -0.18 | BZ49: 0.67 | CA49: -0.34 | CB49: 0.55 | CC49: 0.68 | CD49: 1.51 | CE49: -0.27 | CF49: 0.51 | CG49: -0.89 | CH49: 0.64 | CI49: 1.22 | CJ49: 0.91 | CK49: 2.15 | CL49: 1.17 | CM49: 0.66 | CN49: 0.81 | CO49: -0.47 | CP49: -0.18 | CQ49: -0.10 | CR49: -0.15 | CS49: -0.61 | CT49: 1.80 | CU49: -0.34 | CV49: -1.10 | CW49: -0.90 | CX49: 43 | CY49: 2711.31 | CZ49: 2851.23 | DA49: 15214.03 | DB49: 8266.08 | DC49: 753.79 | DD49: 4241.59 | DE49: 5394.07 | DF49: 49485.98 | DG49: 7281.78 | DH49: 999.40 | DI49: 11858.90 | DJ49: 1339.85 | DK49: 2090.38 | DL49: 8560.69 | DM49: 8661.47 | DN49: 1154.99 | DO49: 4554.38 | DP49: 5052.71 | DQ49: 18319.97 | DR49: 4029.75 | DS49: 3029.74 | DT49: 4160.47 | DU49: 52195.09 | DV49: 1201.94 | DW49: 22581.13 | DX49: 4582.22 | DY49: 1256.86 | DZ49: 10665.44 | EA49: 5456.89 | EB49: 8482.49 | EC49: 4090.15 | ED49: 1244.16 | EE49: 3627.03 | EF49: 1121.97 | EG49: 13609.61 | EH49: 1941.64 | EI49: 4650.89 | EJ49: 2703.51 | EK49: 2344.05 | EL49: 3823.57 | EM49: 3407.49 | EN49: 1156.84 | EO49: 9307.24 | EP49: 1559.99 | EQ49: 4210.92 | ER49: 8622.76 | ES49: 3063.64 | ET49: 5724.98 | EU49: 3252.65 | EV49: 15597.38 | EW49: 3043.46 | EX49: 2281.04 | EY49: 14014.80 | EZ49: 9390.78 | FA49: 2447.83 | FB49: 6547.92 | FC49: 13263.37 | FD49: 10249.71 | FE49: 8486.65 | FF49: 10408.11 | FG49: 8715.48 | FH49: 13431.13 | FI49: 966.62 | FJ49: 3119.23 | FK49: 11579.71 | FL49: 1729.93 | FM49: 3561.06 | FN49: 3560.21 | FO49: 14843.65 | FP49: 2298.58 | FQ49: 1211.71 | FR49: 4689.27 | FS49: 25147.32 | FT49: 4932.32 | FU49: 6508.27 | FV49: 31904.41 | FW49: 8114.95 | FX49: 17674.62 | FY49: 6543.32 | FZ49: 17625.76 | GA49: 14084.23 | GB49: 2370.63 | GC49: 625.79 | GD49: 2400.19 | GE49: 3812.51 | GF49: 12413.17 | GG49: 28525.85 | GH49: 29845.71 | GI49: 1446.31 | GJ49: 7801.17 | GK49: 4021.19 | GL49: 4500.47 | GM49: 10757.03 | GN49: 26214.77 | GO49: 2934.49 | GP49: 5210.49 | GQ49: 10854.29 | GR49: 2567.94 | GS49: 15957.26 | GT49: 7549.44
A50: 45 | B50: 0.32 | C50: -1.85 | D50: 0.41 | E50: 0.39 | F50: -0.59 | G50: -0.22 | H50: 1.77 | I50: 1.34 | J50: -0.13 | K50: 0.57 | L50: 0.41 | M50: 1.72 | N50: -1.13 | O50: 0.07 | P50: 0.57 | Q50: -1.21 | R50: -0.93 | S50: -0.52 | T50: -0.78 | U50: -0.34 | V50: -0.17 | W50: 0.33 | X50: 0.27 | Y50: -0.67 | Z50: -0.88 | AA50: -0.27 | AB50: -0.44 | AC50: 0.13 | AD50: -0.72 | AE50: -0.35 | AF50: -0.58 | AG50: 0.25 | AH50: -1.62 | AI50: -1.04 | AJ50: 1.51 | AK50: -0.09 | AL50: -0.33 | AM50: -0.91 | AN50: 0.30 | AO50: 0.94 | AP50: 0.62 | AQ50: 0.41 | AR50: 0.77 | AS50: 0.69 | AT50: -0.82 | AU50: -2.16 | AV50: 0.45 | AW50: -0.66 | AX50: 1.40 | AY50: 1.78 | AZ50: -0.23 | BA50: 0.85 | BB50: 0.14 | BC50: 0.26 | BD50: 0.53 | BE50: 0.45 | BF50: -0.02 | BG50: 0.44 | BH50: -0.56 | BI50: -0.35 | BJ50: 0.51 | BK50: -0.20 | BL50: -0.34 | BM50: 0.95 | BN50: -1.32 | BO50: -0.81 | BP50: -1.96 | BQ50: 1.19 | BR50: 0.00 | BS50: -0.62 | BT50: -2.55 | BU50: 0.04 | BV50: 0.99 | BW50: 0.60 | BX50: 0.66 | BY50: -0.31 | BZ50: 0.60 | CA50: -0.17 | CB50: -1.38 | CC50: -0.53 | CD50: -1.02 | CE50: 0.14 | CF50: 0.18 | CG50: 2.52 | CH50: -0.29 | CI50: 0.08 | CJ50: 0.63 | CK50: 1.15 | CL50: 0.59 | CM50: -0.29 | CN50: -0.67 | CO50: -1.06 | CP50: -0.54 | CQ50: 1.58 | CR50: -0.18 | CS50: -2.04 | CT50: 0.19 | CU50: 2.18 | CV50: 1.16 | CW50: -0.48 | CX50: 44 | CY50: 2983.94 | CZ50: 3145.59 | DA50: 16319.86 | DB50: 7100.62 | DC50: 1072.72 | DD50: 3389.23 | DE50: 5266.43 | DF50: 62169.85 | DG50: 8936.71 | DH50: 1360.27 | DI50: 10982.17 | DJ50: 1875.37 | DK50: 2318.28 | DL50: 7971.21 | DM50: 8727.81 | DN50: 1133.24 | DO50: 5885.17 | DP50: 4762.11 | DQ50: 20218.77 | DR50: 4881.04 | DS50: 3232.23 | DT50: 5206.09 | DU50: 53209.15 | DV50: 1351.44 | DW50: 29656.53 | DX50: 4047.03 | DY50: 1395.56 | DZ50: 10742.12 | EA50: 5780.22 | EB50: 12705.06 | EC50: 4983.69 | ED50: 1418.40 | EE50: 3273.80 | EF50: 1086.40 | EG50: 15945.07 | EH50: 2393.57 | EI50: 5505.00 | EJ50: 2781.71 | EK50: 2488.67 | EL50: 3730.48 | EM50: 2909.50 | EN50: 1188.85 | EO50: 9443.35 | EP50: 2178.49 | EQ50: 4920.48 | ER50: 8508.59 | ES50: 3782.57 | ET50: 5829.71 | EU50: 4140.71 | EV50: 18389.42 | EW50: 2781.66 | EX50: 2686.36 | EY50: 16573.02 | EZ50: 8973.72 | FA50: 2734.35 | FB50: 6758.97 | FC50: 14789.28 | FD50: 12375.68 | FE50: 9759.78 | FF50: 11338.94 | FG50: 7934.86 | FH50: 18147.32 | FI50: 936.82 | FJ50: 3407.37 | FK50: 13778.91 | FL50: 2026.20 | FM50: 4834.74 | FN50: 3685.05 | FO50: 14747.20 | FP50: 2268.87 | FQ50: 1489.66 | FR50: 5003.25 | FS50: 39261.20 | FT50: 5245.75 | FU50: 6831.33 | FV50: 33925.07 | FW50: 9809.67 | FX50: 18359.47 | FY50: 7768.48 | FZ50: 21345.22 | GA50: 19293.48 | GB50: 2488.66 | GC50: 737.93 | GD50: 2294.02 | GE50: 4587.49 | GF50: 16286.44 | GG50: 35711.01 | GH50: 45033.39 | GI50: 1883.19 | GJ50: 9414.69 | GK50: 4962.28 | GL50: 4583.39 | GM50: 11444.06 | GN50: 28240.57 | GO50: 3136.61 | GP50: 5198.29 | GQ50: 15549.49 | GR50: 2664.81 | GS50: 14780.97 | GT50: 7212.67
A51: 46 | B51: 0.50 | C51: 1.09 | D51: 0.80 | E51: -0.79 | F51: -0.54 | G51: 0.24 | H51: 0.71 | I51: -0.09 | J51: -1.99 | K51: -2.28 | L51: 0.01 | M51: 0.99 | N51: -0.40 | O51: 1.48 | P51: -0.20 | Q51: -1.56 | R51: 0.94 | S51: 1.59 | T51: -0.30 | U51: -1.67 | V51: 0.10 | W51: 0.87 | X51: 0.50 | Y51: 0.63 | Z51: 0.71 | AA51: 2.29 | AB51: 0.09 | AC51: -0.77 | AD51: 0.26 | AE51: -0.26 | AF51: 1.83 | AG51: 0.20 | AH51: 0.65 | AI51: 0.91 | AJ51: 0.44 | AK51: -1.45 | AL51: 1.27 | AM51: -1.23 | AN51: 0.15 | AO51: -1.58 | AP51: -0.77 | AQ51: 0.36 | AR51: 0.03 | AS51: -0.32 | AT51: -0.68 | AU51: -1.36 | AV51: -0.87 | AW51: 0.04 | AX51: 0.18 | AY51: -2.27 | AZ51: -0.34 | BA51: -0.53 | BB51: 1.23 | BC51: -0.39 | BD51: 0.27 | BE51: -0.31 | BF51: 0.27 | BG51: -0.59 | BH51: 0.80 | BI51: -0.30 | BJ51: 0.18 | BK51: 0.07 | BL51: -0.51 | BM51: 1.28 | BN51: -0.73 | BO51: 0.37 | BP51: -0.30 | BQ51: -1.03 | BR51: 0.64 | BS51: -0.65 | BT51: -0.22 | BU51: 0.26 | BV51: -0.77 | BW51: 1.12 | BX51: 0.60 | BY51: -0.48 | BZ51: 1.21 | CA51: -0.89 | CB51: 0.44 | CC51: -0.55 | CD51: -1.36 | CE51: 0.18 | CF51: -0.17 | CG51: 0.33 | CH51: -2.94 | CI51: 0.21 | CJ51: 0.08 | CK51: 0.60 | CL51: -1.18 | CM51: -0.91 | CN51: -0.48 | CO51: -0.35 | CP51: -1.04 | CQ51: 0.28 | CR51: -0.17 | CS51: 1.30 | CT51: 0.07 | CU51: -0.00 | CV51: 0.48 | CW51: -0.24 | CX51: 45 | CY51: 3419.51 | CZ51: 2602.76 | DA51: 18968.65 | DB51: 8223.39 | DC51: 1073.78 | DD51: 3585.96 | DE51: 7503.63 | DF51: 83109.41 | DG51: 9580.95 | DH51: 1618.44 | DI51: 12755.87 | DJ51: 2653.68 | DK51: 2137.66 | DL51: 8804.48 | DM51: 10391.41 | DN51: 1033.15 | DO51: 5597.99 | DP51: 4816.60 | DQ51: 19658.57 | DR51: 5068.88 | DS51: 3441.23 | DT51: 5974.17 | DU51: 60567.56 | DV51: 1336.20 | DW51: 28393.05 | DX51: 4249.74 | DY51: 1428.21 | DZ51: 11967.30 | EA51: 5670.50 | EB51: 13175.03 | EC51: 4990.71 | ED51: 1608.13 | EE51: 2804.63 | EF51: 1015.30 | EG51: 21859.81 | EH51: 2581.30 | EI51: 5724.34 | EJ51: 2652.27 | EK51: 2846.39 | EL51: 4696.16 | EM51: 3488.80 | EN51: 1381.20 | EO51: 11576.66 | EP51: 2641.85 | EQ51: 4755.46 | ER51: 6727.22 | ES51: 4420.57 | ET51: 5772.45 | EU51: 5585.32 | EV51: 26238.99 | EW51: 2936.97 | EX51: 3332.78 | EY51: 18507.98 | EZ51: 10192.52 | FA51: 3237.78 | FB51: 7903.72 | FC51: 16115.44 | FD51: 14438.20 | FE51: 9806.99 | FF51: 11762.69 | FG51: 9367.50 | FH51: 19247.35 | FI51: 972.53 | FJ51: 4292.65 | FK51: 12349.14 | FL51: 1962.37 | FM51: 3934.80 | FN51: 4815.44 | FO51: 16126.67 | FP51: 2257.85 | FQ51: 1110.66 | FR51: 5496.44 | FS51: 49780.55 | FT51: 6269.66 | FU51: 8237.10 | FV51: 35411.22 | FW51: 11724.56 | FX51: 19556.42 | FY51: 6906.66 | FZ51: 21555.69 | GA51: 18086.33 | GB51: 2777.87 | GC51: 828.75 | GD51: 3657.78 | GE51: 4800.48 | GF51: 18020.04 | GG51: 42864.19 | GH51: 58440.92 | GI51: 2247.38 | GJ51: 9850.14 | GK51: 4903.64 | GL51: 4274.33 | GM51: 11535.22 | GN51: 39098.72 | GO51: 3337.21 | GP51: 4184.18 | GQ51: 17474.40 | GR51: 4037.22 | GS51: 19211.10 | GT51: 7337.45
A52: 47 | B52: -0.90 | C52: -0.85 | D52: -1.19 | E52: 1.73 | F52: 0.54 | G52: 1.24 | H52: 0.81 | I52: 1.87 | J52: 0.20 | K52: 0.10 | L52: -1.02 | M52: 0.58 | N52: 0.34 | O52: -1.21 | P52: -0.35 | Q52: 1.74 | R52: -0.31 | S52: -0.71 | T52: 0.09 | U52: 1.00 | V52: -0.31 | W52: 0.61 | X52: -0.59 | Y52: 1.50 | Z52: -0.55 | AA52: -1.75 | AB52: -0.20 | AC52: 0.31 | AD52: 0.74 | AE52: -0.84 | AF52: -0.32 | AG52: 0.54 | AH52: 1.17 | AI52: -0.74 | AJ52: -3.52 | AK52: -0.29 | AL52: -1.08 | AM52: 0.18 | AN52: -0.29 | AO52: 0.15 | AP52: 1.36 | AQ52: 0.31 | AR52: -0.05 | AS52: 0.08 | AT52: -0.71 | AU52: 0.78 | AV52: 1.74 | AW52: -1.24 | AX52: 0.88 | AY52: -0.84 | AZ52: -0.83 | BA52: -0.88 | BB52: -0.72 | BC52: 0.27 | BD52: 1.10 | BE52: 0.71 | BF52: -0.75 | BG52: -0.34 | BH52: 1.13 | BI52: 0.01 | BJ52: 1.19 | BK52: -0.75 | BL52: -0.59 | BM52: 0.92 | BN52: 0.69 | BO52: 0.91 | BP52: 1.43 | BQ52: 0.14 | BR52: 0.74 | BS52: -0.20 | BT52: -0.79 | BU52: -0.82 | BV52: 0.73 | BW52: -1.59 | BX52: -1.98 | BY52: 1.18 | BZ52: 0.59 | CA52: -0.29 | CB52: -1.49 | CC52: 0.85 | CD52: -0.34 | CE52: 0.02 | CF52: 0.43 | CG52: 0.35 | CH52: -0.44 | CI52: -1.01 | CJ52: -0.51 | CK52: -0.19 | CL52: -0.07 | CM52: -0.54 | CN52: 1.38 | CO52: -0.27 | CP52: 0.19 | CQ52: 0.54 | CR52: -0.67 | CS52: -0.16 | CT52: -2.12 | CU52: 0.21 | CV52: -0.59 | CW52: 0.10 | CX52: 46 | CY52: 4030.05 | CZ52: 3349.96 | DA52: 23383.01 | DB52: 7976.56 | DC52: 1081.56 | DD52: 4063.37 | DE52: 9114.87 | DF52: 89654.69 | DG52: 7762.72 | DH52: 1256.66 | DI52: 13957.71 | DJ52: 3365.12 | DK52: 2201.36 | DL52: 12013.35 | DM52: 11013.04 | DN52: 893.34 | DO52: 7045.46 | DP52: 6677.34 | DQ52: 20549.08 | DR52: 4312.44 | DS52: 3816.75 | DT52: 7435.24 | DU52: 71314.86 | DV52: 1603.78 | DW52: 34509.64 | DX52: 6546.42 | DY52: 1582.82 | DZ52: 11653.03 | EA52: 6445.48 | EB52: 13845.97 | EC52: 7181.82 | ED52: 1812.24 | EE52: 3380.14 | EF52: 1272.56 | EG52: 25524.56 | EH52: 2270.48 | EI52: 7573.17 | EJ52: 2408.73 | EK52: 3182.48 | EL52: 4046.75 | EM52: 3398.28 | EN52: 1593.86 | EO52: 12712.27 | EP52: 2752.87 | EQ52: 4690.86 | ER52: 5999.07 | ES52: 4242.06 | ET52: 6347.50 | EU52: 6266.64 | EV52: 20392.34 | EW52: 3050.95 | EX52: 3361.47 | EY52: 24327.31 | EZ52: 10505.85 | FA52: 3685.72 | FB52: 8241.12 | FC52: 18328.81 | FD52: 14438.47 | FE52: 12089.85 | FF52: 12289.77 | FG52: 10517.79 | FH52: 21244.96 | FI52: 984.71 | FJ52: 5685.57 | FK52: 12103.37 | FL52: 2266.82 | FM52: 4110.33 | FN52: 4506.77 | FO52: 19411.37 | FP52: 2239.14 | FQ52: 1174.69 | FR52: 6244.96 | FS52: 48498.67 | FT52: 8103.91 | FU52: 9855.71 | FV52: 35992.32 | FW52: 15372.24 | FX52: 18691.73 | FY52: 8059.66 | FZ52: 21697.08 | GA52: 16118.01 | GB52: 3118.22 | GC52: 883.42 | GD52: 4199.42 | GE52: 3372.95 | GF52: 20316.51 | GG52: 47442.65 | GH52: 69917.97 | GI52: 2058.76 | GJ52: 9384.75 | GK52: 4985.01 | GL52: 4434.49 | GM52: 10787.14 | GN52: 44554.06 | GO52: 3555.40 | GP52: 5553.01 | GQ52: 19300.65 | GR52: 4409.50 | GS52: 22572.89 | GT52: 7733.98
A53: 48 | B53: 0.30 | C53: 0.28 | D53: -2.10 | E53: 1.61 | F53: -0.54 | G53: 0.33 | H53: 0.47 | I53: -0.49 | J53: 0.47 | K53: -0.31 | L53: 0.16 | M53: 0.45 | N53: -0.26 | O53: -0.35 | P53: 0.21 | Q53: -0.09 | R53: -1.45 | S53: -0.31 | T53: 1.05 | U53: -0.22 | V53: 0.93 | W53: 0.48 | X53: -0.75 | Y53: 0.12 | Z53: -0.43 | AA53: -0.18 | AB53: -0.92 | AC53: -1.09 | AD53: -0.99 | AE53: -0.51 | AF53: 2.31 | AG53: 0.92 | AH53: -0.01 | AI53: 1.83 | AJ53: 0.17 | AK53: 0.57 | AL53: 1.48 | AM53: -0.59 | AN53: 1.17 | AO53: 0.80 | AP53: -0.02 | AQ53: 1.15 | AR53: -0.40 | AS53: -0.64 | AT53: 0.09 | AU53: -1.18 | AV53: -1.09 | AW53: -0.37 | AX53: 0.44 | AY53: 1.44 | AZ53: 0.82 | BA53: -1.21 | BB53: -0.35 | BC53: 0.13 | BD53: 2.48 | BE53: 0.31 | BF53: -0.19 | BG53: 0.98 | BH53: 2.13 | BI53: -0.22 | BJ53: 1.76 | BK53: 1.32 | BL53: 0.02 | BM53: -0.57 | BN53: 2.36 | BO53: 1.88 | BP53: 0.43 | BQ53: -0.37 | BR53: -0.27 | BS53: -1.28 | BT53: 0.21 | BU53: 0.43 | BV53: -0.48 | BW53: 0.39 | BX53: -0.40 | BY53: -2.17 | BZ53: 0.51 | CA53: -0.58 | CB53: -1.59 | CC53: -0.25 | CD53: -1.31 | CE53: -1.24 | CF53: -0.14 | CG53: 0.92 | CH53: -0.14 | CI53: -1.41 | CJ53: 1.62 | CK53: 0.49 | CL53: 1.30 | CM53: -1.92 | CN53: 0.29 | CO53: 0.43 | CP53: -0.08 | CQ53: -0.04 | CR53: 0.93 | CS53: -0.77 | CT53: -0.06 | CU53: 0.71 | CV53: -1.05 | CW53: 0.31 | CX53: 47 | CY53: 3849.02 | CZ53: 3220.47 | DA53: 21377.56 | DB53: 11306.55 | DC53: 1282.58 | DD53: 5350.35 | DE53: 11254.68 | DF53: 129616.51 | DG53: 8739.71 | DH53: 1394.15 | DI53: 13081.88 | DJ53: 4008.93 | DK53: 2530.15 | DL53: 10942.09 | DM53: 11411.37 | DN53: 1267.47 | DO53: 7351.26 | DP53: 6556.72 | DQ53: 22745.31 | DR53: 5479.24 | DS53: 3982.08 | DT53: 8899.84 | DU53: 71280.05 | DV53: 2195.56 | DW53: 34700.74 | DX53: 5501.84 | DY53: 1678.10 | DZ53: 13349.84 | EA53: 7867.82 | EB53: 13344.64 | EC53: 7485.43 | ED53: 2145.99 | EE53: 4403.66 | EF53: 1243.83 | EG53: 16444.35 | EH53: 2376.69 | EI53: 7042.50 | EJ53: 2705.97 | EK53: 3328.56 | EL53: 4520.02 | EM53: 4556.30 | EN53: 1824.12 | EO53: 13797.42 | EP53: 3044.77 | EQ53: 4607.28 | ER53: 7369.79 | ES53: 6018.94 | ET53: 5759.84 | EU53: 7815.91 | EV53: 19639.55 | EW53: 2942.83 | EX53: 3217.82 | EY53: 23871.21 | EZ53: 11954.89 | FA53: 4752.37 | FB53: 10018.39 | FC53: 17886.67 | FD53: 14988.44 | FE53: 15643.70 | FF53: 13455.89 | FG53: 13741.21 | FH53: 20748.89 | FI53: 985.53 | FJ53: 7132.30 | FK53: 14658.96 | FL53: 2838.68 | FM53: 5566.08 | FN53: 5030.74 | FO53: 23688.16 | FP53: 2376.20 | FQ53: 1139.59 | FR53: 6036.09 | FS53: 59110.47 | FT53: 6975.92 | FU53: 8006.42 | FV53: 46917.76 | FW53: 18355.37 | FX53: 19542.89 | FY53: 7047.08 | FZ53: 26920.33 | GA53: 16739.89 | GB53: 3419.70 | GC53: 1029.59 | GD53: 4836.76 | GE53: 3449.21 | GF53: 19089.65 | GG53: 48041.35 | GH53: 74303.69 | GI53: 2226.05 | GJ53: 9451.97 | GK53: 6704.65 | GL53: 4656.28 | GM53: 12127.04 | GN53: 52831.41 | GO53: 3512.43 | GP53: 5925.43 | GQ53: 15356.25 | GR53: 4975.71 | GS53: 22592.41 | GT53: 8581.80
A54: 49 | B54: 0.49 | C54: -0.39 | D54: -0.56 | E54: 0.59 | F54: -1.32 | G54: -1.10 | H54: 0.09 | I54: -0.58 | J54: -1.47 | K54: 0.05 | L54: 0.22 | M54: -1.30 | N54: -1.22 | O54: 1.25 | P54: -1.00 | Q54: 0.66 | R54: 0.54 | S54: 0.23 | T54: -0.39 | U54: -0.79 | V54: 0.24 | W54: 0.71 | X54: -1.61 | Y54: -0.84 | Z54: -2.15 | AA54: -0.59 | AB54: -0.12 | AC54: -0.42 | AD54: -1.30 | AE54: -1.10 | AF54: 1.14 | AG54: -0.97 | AH54: -1.35 | AI54: -0.18 | AJ54: -2.10 | AK54: -1.13 | AL54: 0.11 | AM54: -0.23 | AN54: 1.37 | AO54: -0.46 | AP54: -1.10 | AQ54: 0.40 | AR54: 0.02 | AS54: -0.40 | AT54: -0.64 | AU54: 1.32 | AV54: -0.50 | AW54: 2.30 | AX54: -1.45 | AY54: 0.18 | AZ54: 2.10 | BA54: -1.38 | BB54: -1.18 | BC54: -0.13 | BD54: -0.48 | BE54: -0.75 | BF54: -0.76 | BG54: 0.49 | BH54: -0.15 | BI54: 0.62 | BJ54: 0.82 | BK54: 0.11 | BL54: 0.64 | BM54: 0.14 | BN54: -0.99 | BO54: 1.34 | BP54: -0.45 | BQ54: -0.07 | BR54: -0.94 | BS54: -0.79 | BT54: 0.02 | BU54: -0.52 | BV54: 0.39 | BW54: 0.43 | BX54: -1.07 | BY54: -0.12 | BZ54: 1.12 | CA54: -0.19 | CB54: -0.49 | CC54: 0.18 | CD54: 0.66 | CE54: 0.43 | CF54: -0.94 | CG54: 0.20 | CH54: 1.09 | CI54: -1.01 | CJ54: -0.15 | CK54: 1.09 | CL54: 2.32 | CM54: -0.61 | CN54: -0.34 | CO54: 1.41 | CP54: -0.60 | CQ54: -1.32 | CR54: 0.46 | CS54: -0.67 | CT54: 0.66 | CU54: 0.02 | CV54: -0.51 | CW54: 0.62 | CX54: 48 | CY54: 4399.95 | CZ54: 3672.00 | DA54: 17043.03 | DB54: 15734.65 | DC54: 1291.68 | DD54: 6140.91 | DE54: 13189.23 | DF54: 131656.81 | DG54: 10251.14 | DH54: 1453.40 | DI54: 14634.18 | DJ54: 4686.00 | DK54: 2660.48 | DL54: 11351.01 | DM54: 12862.47 | DN54: 1366.90 | DO54: 6464.17 | DP54: 6840.00 | DQ54: 29101.53 | DR54: 5793.48 | DS54: 5006.63 | DT54: 10446.48 | DU54: 69576.49 | DV54: 2442.66 | DW54: 35539.09 | DX54: 5852.07 | DY54: 1597.70 | DZ54: 12382.61 | EA54: 7415.32 | EB54: 13501.56 | EC54: 11569.95 | ED54: 2691.20 | EE54: 4804.22 | EF54: 1788.82 | EG54: 18438.92 | EH54: 2828.71 | EI54: 9602.63 | EJ54: 2706.72 | EK54: 4333.90 | EL54: 5567.95 | EM54: 4965.89 | EN54: 2370.05 | EO54: 14189.65 | EP54: 3024.82 | EQ54: 5106.28 | ER54: 6742.72 | ES54: 5587.27 | ET54: 5955.97 | EU54: 9119.88 | EV54: 26638.02 | EW54: 3637.83 | EX54: 2931.16 | EY54: 24746.08 | EZ54: 13331.50 | FA54: 7528.64 | FB54: 11474.55 | FC54: 19001.54 | FD54: 18959.84 | FE54: 23545.32 | FF54: 14236.11 | FG54: 19542.46 | FH54: 27657.67 | FI54: 1080.93 | FJ54: 7152.43 | FK54: 22821.25 | FL54: 4113.78 | FM54: 6488.56 | FN54: 5203.96 | FO54: 24874.68 | FP54: 2143.06 | FQ54: 1285.57 | FR54: 7040.11 | FS54: 60131.57 | FT54: 8085.98 | FU54: 8244.88 | FV54: 37028.67 | FW54: 21669.42 | FX54: 19577.09 | FY54: 6066.69 | FZ54: 28335.23 | GA54: 15020.95 | GB54: 3103.71 | GC54: 1102.58 | GD54: 6069.52 | GE54: 3688.93 | GF54: 16877.46 | GG54: 66935.56 | GH54: 87390.89 | GI54: 2954.75 | GJ54: 7738.93 | GK54: 7654.02 | GL54: 5430.03 | GM54: 13087.22 | GN54: 57376.83 | GO54: 4415.91 | GP54: 5773.29 | GQ54: 16619.86 | GR54: 6048.76 | GS54: 21088.37 | GT54: 9826.67
A55: 50 | B55: -0.63 | C55: 1.60 | D55: -0.33 | E55: -0.57 | F55: 0.39 | G55: 0.50 | H55: -0.44 | I55: -1.09 | J55: -1.78 | K55: -0.29 | L55: 0.28 | M55: -0.21 | N55: -0.81 | O55: 0.46 | P55: 0.76 | Q55: -0.27 | R55: -2.61 | S55: 0.28 | T55: 0.01 | U55: -1.13 | V55: -0.02 | W55: 0.66 | X55: -0.40 | Y55: 0.91 | Z55: -1.75 | AA55: 0.12 | AB55: 0.36 | AC55: 0.35 | AD55: 1.81 | AE55: -1.25 | AF55: 0.17 | AG55: -0.49 | AH55: 1.19 | AI55: 0.41 | AJ55: 0.26 | AK55: -0.66 | AL55: -0.11 | AM55: -2.10 | AN55: -0.14 | AO55: 0.05 | AP55: 0.40 | AQ55: -0.31 | AR55: 0.45 | AS55: -0.38 | AT55: -0.75 | AU55: 0.14 | AV55: -0.94 | AW55: 0.32 | AX55: 0.00 | AY55: -0.86 | AZ55: 0.30 | BA55: 1.74 | BB55: -0.88 | BC55: 1.97 | BD55: -2.28 | BE55: 0.69 | BF55: -0.35 | BG55: -0.44 | BH55: 0.30 | BI55: 2.39 | BJ55: -0.74 | BK55: 0.62 | BL55: -0.63 | BM55: -2.37 | BN55: 1.16 | BO55: -1.56 | BP55: -0.46 | BQ55: -1.32 | BR55: 0.44 | BS55: -1.31 | BT55: -0.26 | BU55: -1.13 | BV55: -0.29 | BW55: 0.40 | BX55: -2.27 | BY55: -1.23 | BZ55: 1.02 | CA55: -0.22 | CB55: -0.58 | CC55: 0.77 | CD55: -1.36 | CE55: 1.59 | CF55: 1.39 | CG55: -0.88 | CH55: 0.93 | CI55: 2.25 | CJ55: 0.11 | CK55: -0.11 | CL55: -0.51 | CM55: 0.03 | CN55: 0.35 | CO55: 0.00 | CP55: -0.76 | CQ55: 0.19 | CR55: -1.43 | CS55: -1.86 | CT55: 1.15 | CU55: 0.04 | CV55: 0.47 | CW55: 0.22 | CX55: 49 | CY55: 5175.32 | CZ55: 3784.56 | DA55: 17132.14 | DB55: 18794.28 | DC55: 1157.46 | DD55: 5691.10 | DE55: 14619.39 | DF55: 131967.69 | DG55: 8988.99 | DH55: 1599.69 | DI55: 16519.32 | DJ55: 4211.07 | DK55: 2421.14 | DL55: 14955.47 | DM55: 12093.32 | DN55: 1648.27 | DO55: 7661.95 | DP55: 7731.46 | DQ55: 29976.83 | DR55: 5625.23 | DS55: 5674.39 | DT55: 12692.99 | DU55: 59716.70 | DV55: 2354.26 | DW55: 28131.35 | DX55: 5850.89 | DY55: 1714.76 | DZ55: 12700.60 | EA55: 6671.62 | EB55: 12505.51 | EC55: 14999.07 | ED55: 2544.17 | EE55: 4290.10 | EF55: 1903.60 | EG55: 14704.83 | EH55: 2610.82 | EI55: 10669.33 | EJ55: 2858.01 | EK55: 5818.91 | EL55: 5678.59 | EM55: 4604.08 | EN55: 2749.55 | EO55: 15564.05 | EP55: 3111.70 | EQ55: 5070.39 | ER55: 8977.50 | ES55: 5667.21 | ET55: 9196.83 | EU55: 8012.51 | EV55: 29899.29 | EW55: 5444.21 | EX55: 2605.76 | EY55: 22639.48 | EZ55: 14278.84 | FA55: 7650.21 | FB55: 11205.26 | FC55: 18533.83 | FD55: 22294.07 | FE55: 25148.68 | FF55: 17067.73 | FG55: 24143.40 | FH55: 30720.06 | FI55: 1301.08 | FJ55: 7977.61 | FK55: 21484.17 | FL55: 5495.94 | FM55: 6629.80 | FN55: 5623.82 | FO55: 23600.07 | FP55: 2079.07 | FQ55: 1408.43 | FR55: 7111.68 | FS55: 69622.56 | FT55: 9428.36 | FU55: 7674.65 | FV55: 39743.54 | FW55: 28016.85 | FX55: 20789.79 | FY55: 6161.23 | FZ55: 31835.11 | GA55: 18129.82 | GB55: 3618.37 | GC55: 1046.92 | GD55: 6838.05 | GE55: 4748.74 | GF55: 15841.91 | GG55: 71493.66 | GH55: 112402.26 | GI55: 4573.94 | GJ55: 7723.36 | GK55: 7945.86 | GL55: 7326.50 | GM55: 13079.76 | GN55: 51420.31 | GO55: 5169.14 | GP55: 5709.57 | GQ55: 20039.63 | GR55: 6633.04 | GS55: 21333.83 | GT55: 11786.97
CX56: 50 | CY56: 5145.51 | CZ56: 5259.27 | DA56: 17830.09 | DB56: 18863.87 | DC56: 1340.08 | DD56: 6702.69 | DE56: 14945.75 | DF56: 122424.20 | DG56: 7526.00 | DH56: 1672.64 | DI56: 18820.85 | DJ56: 4461.16 | DK56: 2343.49 | DL56: 17504.67 | DM56: 14815.49 | DN56: 1730.88 | DO56: 5663.77 | DP56: 8814.00 | DQ56: 32828.33 | DR56: 5187.52 | DS56: 6181.09 | DT56: 15315.01 | DU56: 61413.53 | DV56: 2950.99 | DW56: 23656.32 | DX56: 6512.18 | DY56: 1977.39 | DZ56: 14635.11 | EA56: 9570.50 | EB56: 11325.10 | EC56: 16801.90 | ED56: 2583.05 | EE56: 5607.12 | EF56: 2210.96 | EG56: 16713.53 | EH56: 2584.92 | EI56: 11466.67 | EJ56: 2278.76 | EK56: 6225.48 | EL56: 6253.19 | EM56: 5340.89 | EN56: 2867.85 | EO56: 18199.84 | EP56: 3211.88 | EQ56: 4952.90 | ER56: 10015.10 | ES56: 5378.26 | ET56: 10549.10 | EU56: 8757.39 | EV56: 28716.35 | EW56: 6226.67 | EX56: 3698.39 | EY56: 21678.98 | EZ56: 20955.57 | FA56: 5939.21 | FB56: 13582.67 | FC56: 19221.53 | FD56: 22808.20 | FE56: 28768.67 | FF56: 26704.90 | FG56: 23603.96 | FH56: 36823.77 | FI56: 1292.79 | FJ56: 6109.27 | FK56: 27957.29 | FL56: 4754.64 | FM56: 6759.04 | FN56: 5038.74 | FO56: 27531.17 | FP56: 1866.18 | FQ56: 1479.55 | FR56: 6556.89 | FS56: 72859.24 | FT56: 10933.28 | FU56: 5969.97 | FV56: 36116.35 | FW56: 35679.92 | FX56: 21985.19 | FY56: 6167.82 | FZ56: 39035.86 | GA56: 16165.62 | GB56: 5017.64 | GC56: 1410.06 | GD56: 6546.17 | GE56: 5969.60 | GF56: 24270.94 | GG56: 79459.31 | GH56: 120870.70 | GI56: 4627.18 | GJ56: 8484.29 | GK56: 9151.23 | GL56: 8009.63 | GM56: 12745.10 | GN56: 57852.62 | GO56: 4559.34 | GP56: 4716.94 | GQ56: 26026.12 | GR56: 7294.75 | GS56: 25019.76 | GT56: 13313.94
CX58: Tassi medi | CY58: =(+CY56/100)^(1/50)-1 -> 0.08200 | CZ58: 0.08248 | DA58: 0.10923 | DB58: 0.11048 | DC58: 0.05328 | DD58: 0.08774 | DE58: 0.10533 | DF58: 0.15281 | DG58: 0.09026 | DH58: 0.05796 | DI58: 0.11043 | DJ58: 0.07892 | DK58: 0.06512 | DL58: 0.10883 | DM58: 0.10513 | DN58: 0.05868 | DO58: 0.08408 | DP58: 0.09371 | DQ58: 0.12286 | DR58: 0.08218 | DS58: 0.08598 | DT58: 0.10587 | DU58: 0.13701 | DV58: 0.07004 | DW58: 0.11552 | DX58: 0.08711 | DY58: 0.06150 | DZ58: 0.10486 | EA58: 0.09552 | EB58: 0.09921 | EC58: 0.10792 | ED58: 0.06719 | EE58: =(+EE56/100)^(1/50)-1 -> 0.08386 | EF58: 0.06388 | EG58: 0.10780 | EH58: 0.06721 | EI58: 0.09948 | EJ58: 0.06452 | EK58: 0.08613 | EL58: 0.08623 | EM58: 0.08281 | EN58: 0.06943 | EO58: 0.10969 | EP58: 0.07185 | EQ58: 0.08118 | ER58: 0.09651 | ES58: 0.08296 | ET58: 0.09765 | EU58: 0.09357 | EV58: 0.11986 | EW58: 0.08614 | EX58: 0.07488 | EY58: 0.11358 | EZ58: 0.11282 | FA58: 0.08511 | FB58: 0.10321 | FC58: 0.11090 | FD58: 0.11471 | FE58: 0.11990 | FF58: 0.11823 | FG58: 0.11547 | FH58: 0.12544 | FI58: 0.05252 | FJ58: 0.08572 | FK58: =(+FK56/100)^(1/50)-1 -> 0.11926 | FL58: 0.08029 | FM58: 0.08792 | FN58: 0.08155 | FO58: 0.11891 | FP58: 0.06028 | FQ58: 0.05536 | FR58: 0.08726 | FS58: 0.14091 | FT58: 0.09844 | FU58: 0.08522 | FV58: 0.12500 | FW58: 0.12473 | FX58: 0.11389 | FY58: 0.08593 | FZ58: 0.12675 | GA58: 0.10706 | GB58: 0.08146 | GC58: 0.05435 | GD58: 0.08723 | GE58: 0.08522 | GF58: 0.11610 | GG58: 0.14289 | GH58: 0.15251 | GI58: 0.07971 | GJ58: 0.09288 | GK58: 0.09453 | GL58: 0.09162 | GM58: 0.10181 | GN58: 0.13566 | GO58: 0.07939 | GP58: 0.08012 | GQ58: 0.11766 | GR58: 0.08958 | GS58: 0.11677 | GT58: 0.10277
CX60: Media campione | CY60: =AVERAGE(CY58:GT58) -> 0.09564
CX62: Media Esatta | CY62: 0.10000

Sheet Pagina Iniziale
B3: Manuale di
B4: Matematica finanziaria
B5: Carocci editore - 2012
B7: Marco Micocci - Giovanni Masala
B9: Capitolo 11

Sheet Portfolio insurance
B2: Portfolio insurance
B4: prezzo di esercizio | D4: 550
B5: durata | D5: 1.00
B6: tasso risk free istantaneo | D6: 0.09
B7: m | D7: 0.12
B8: s | D8: 0.25
B9: importo investito in t = 0 | D9: 15,000,000
B11: numero di azioni e put acquistate in t = 0 | F11: =+D9/(C16+F16) -> 23,910.8
B12: valore minimo del portafoglio | F12: =+F11*D4 -> 13,150,914.1
N13: Portafoglio inizio periodo | S13: Portafoglio fine periodo
B14: Epoca | C14: Azione | D14: d1 | E14: N(d1) | F14: Put | H14: Alfa | I14: 1-Alfa | K14: Epoca | L14: Azioni | M14: Obbligazioni | N14: Totale | P14: Epoca | Q14: Azioni | R14: Obbligazioni | S14: Totale
U15: Corrente | V15: Esempio 1 | Z15: Base | AB15: Esempio 2 | AC15: Rend. Minimo
B16: 0 | C16: 610.0 | D16: =+(LN(C16/$D$4)+($D$6+$D$8^2/2)*($D$5-B16))/($D$8*(($D$5-B16)^0.5)) -> 0.8992 | E16: =NORMSDIST(D16) -> 0.8157 | F16: =[1]!PutBS(C16,$D$4,$D$5-B16,$D$6,$D$8) -> 17.333 | H16: =+C16*E16/(C16+F16) -> 0.7932 | I16: =1-H16 -> 0.2068 | K16: =+B16 -> 0 | L16: =+H16*D9 -> 11,897,688.7 | M16: =+I16*D9 -> 3,102,311.3 | N16: =+L16+M16 -> 15,000,000.0 | P16: =+B16 -> 0 | Q16: =+L16/C16*C17 -> 11,505,995.1 | R16: =+M16*EXP($D$6/52) -> 3,107,685.4 | S16: =+Q16+R16 -> 14,613,680.5 | U16: =+AB16 -> -1.0148 | V16: 0.3460 | W16: 0.3010 | X16: 0.0552 | Y16: 0.2714 | Z16: -0.9822 | AA16: -4.0093 | AB16: -1.0148 | AC16: -2.9948
B17: =+D5/52 -> 0.0192 | C17: =+C16*EXP($D$7/52-0.5*($D$8^2)/52+($D$8/(52^0.5))*U16) -> 589.9 | D17: 0.7633 | E17: =NORMSDIST(D17) -> 0.7774 | F17: 21.243 | H17: =+C17*E17/(C17+F17) -> 0.7503 | I17: =1-H17 -> 0.2497 | K17: =+B17 -> 0.0192 | L17: =+H17*(S16) -> 10,965,225.6 | M17: =+I17*(S16) -> 3,648,454.9 | N17: =+L17+M17 -> 14,613,680.5 | P17: =+B17 -> 0.0192 | Q17: 10,874,376.5 | R17: 3,654,775.0 | S17: =+Q17+R17 -> 14,529,151.5 | U17: =+AB17 -> -0.2892 | V17: 0.5394 | W17: -1.2272 | X17: -0.8875 | Y17: -1.1215 | Z17: -1.2927 | AA17: 0.5018 | AB17: -0.2892 | AC17: 2.3271
B18: =+$B$17+B17 -> 0.0385 | C18: =+C17*EXP($D$7/52-0.5*($D$8^2)/52+($D$8/(52^0.5))*U17) -> 585.0 | D18: 0.7275 | E18: 0.7665 | F18: 22.194 | H18: 0.7385 | I18: 0.2615 | K18: 0.0385 | L18: 10,729,911.8 | M18: 3,799,239.8 | N18: 14,529,151.5 | P18: 0.0385 | Q18: 10,933,091.0 | R18: 3,805,821.1 | S18: 14,738,912.0 | U18: 0.4919 | V18: 0.3945 | W18: -0.9375 | X18: -0.9447 | Y18: -1.0374 | Z18: -0.5951 | AA18: -0.9981 | AB18: 0.4919 | AC18: 1.0682
B19: =+$B$17+B18 -> 0.0577 | C19: 596.1 | D19: 0.8025 | E19: 0.7889 | F19: 19.563 | H19: 0.7638 | I19: 0.2362 | K19: 0.0577 | L19: 11,257,729.2 | M19: 3,481,182.9 | N19: 14,738,912.0 | P19: 0.0577 | Q19: 10,975,102.1 | R19: 3,487,213.2 | S19: 14,462,315.4 | U19: -0.7826 | V19: -0.7539 | W19: 0.1810 | X19: -0.6481 | Y19: -0.5994 | Z19: 0.5149 | AA19: 0.8127 | AB19: -0.7826 | AC19: 0.4097
B20: 0.0769 | C20: 581.1 | D20: 0.6953 | E20: 0.7566 | F20: 22.785 | H20: 0.7280 | I20: 0.2720 | K20: 0.0769 | L20: 10,528,804.5 | M20: 3,933,510.9 | N20: 14,462,315.4 | P20: 0.0769 | Q20: 10,402,264.5 | R20: 3,940,324.8 | S20: 14,342,589.3 | U20: -0.3980 | V20: -1.3472 | W20: -0.0460 | X20: -0.5035 | Y20: -1.0560 | Z20: -1.1116 | AA20: 1.6642 | AB20: -0.3980 | AC20: -0.2672
B21: 0.0962 | C21: 574.2 | D21: 0.6420 | E21: 0.7395 | F21: 24.374 | H21: 0.7094 | I21: 0.2906 | K21: 0.0962 | L21: 10,175,106.3 | M21: 4,167,483.0 | N21: 14,342,589.3 | P21: 0.0962 | Q21: 9,940,798.4 | R21: 4,174,702.2 | S21: 14,115,500.5 | U21: -0.7212 | V21: 0.7410 | W21: -0.4643 | X21: 0.7833 | Y21: -1.9507 | Z21: 0.5879 | AA21: -0.4545 | AB21: -0.7212 | AC21: -0.1827
B22: 0.1154 | C22: 560.9 | D22: 0.5399 | E22: 0.7054 | F22: 27.873 | H22: 0.6720 | I22: 0.3280 | K22: 0.1154 | L22: 9,485,280.5 | M22: 4,630,220.1 | N22: 14,115,500.5 | P22: 0.1154 | Q22: 9,404,401.7 | R22: 4,638,240.9 | S22: 14,042,642.5 | U22: -0.2962 | V22: -0.3186 | W22: 1.8263 | X22: -0.0169 | Y22: -2.0228 | Z22: -0.4440 | AA22: 1.5966 | AB22: -0.2962 | AC22: 1.8533
B23: 0.1346 | C23: 556.2 | D23: 0.4990 | E23: 0.6911 | F23: 29.157 | H23: 0.6567 | I23: 0.3433 | K23: 0.1346 | L23: 9,221,653.1 | M23: 4,820,989.5 | N23: 14,042,642.5 | P23: 0.1346 | Q23: 9,179,094.7 | R23: 4,829,340.7 | S23: 14,008,435.4 | U23: -0.1827 | V23: 0.5677 | W23: -0.1792 | X23: 0.2457 | Y23: -1.9456 | Z23: 0.5913 | AA23: 0.8493 | AB23: -0.1827 | AC23: 0.7693
B24: 0.1538 | C24: 553.6 | D24: 0.4744 | E24: 0.6824 | F24: 29.802 | H24: 0.6475 | I24: 0.3525 | K24: 0.1538 | L24: 9,070,946.1 | M24: 4,937,489.3 | N24: 14,008,435.4 | P24: 0.1538 | Q24: 9,923,944.2 | R24: 4,946,042.4 | S24: 14,869,986.5 | U24: 2.5431 | V24: -0.1684 | W24: 0.4780 | X24: 1.1030 | Y24: 0.5159 | Z24: -1.3575 | AA24: -0.1646 | AB24: 2.5431 | AC24: 0.6977
B25: 0.1731 | C25: 605.6 | D25: 0.8650 | E25: 0.8065 | F25: 16.483 | H25: 0.7851 | I25: 0.2149 | K25: 0.1731 | L25: 11,674,478.7 | M25: 3,195,507.9 | N25: 14,869,986.5 | P25: 0.1731 | Q25: 12,161,634.7 | R25: 3,201,043.3 | S25: 15,362,678.0 | U25: 1.1300 | V25: 1.9507 | W25: 2.1252 | X25: -0.0640 | Y25: 1.0622 | Z25: 1.2744 | AA25: -0.2199 | AB25: 1.1300 | AC25: 0.1207
B26: 0.1923 | C26: 630.9 | D26: 1.0468 | E26: 0.8524 | F26: 11.982 | H26: 0.8365 | I26: 0.1635 | K26: 0.1923 | L26: 12,851,065.5 | M26: 2,511,612.6 | N26: 15,362,678.0 | P26: 0.1923 | Q26: 12,609,590.0 | R26: 2,515,963.4 | S26: 15,125,553.3 | U26: -0.5964 | V26: -1.8348 | W26: -0.2224 | X26: -0.0845 | Y26: -0.9037 | Z26: 0.5466 | AA26: -1.1523 | AB26: -0.5964 | AC26: 1.0349
B27: 0.2115 | C27: 619.1 | D27: 0.9635 | E27: 0.8324 | F27: 13.636 | H27: 0.8144 | I27: 0.1856 | K27: 0.2115 | L27: 12,318,483.2 | M27: 2,807,070.1 | N27: 15,125,553.3 | P27: 0.2115 | Q27: 12,359,954.4 | R27: 2,811,932.7 | S27: 15,171,887.1 | U27: 0.0477 | V27: 2.6108 | W27: -1.3631 | X27: -0.1186 | Y27: 0.5007 | Z27: 1.0410 | AA27: 0.7143 | AB27: 0.0477 | AC27: 0.1603
B28: 0.2308 | C28: 621.1 | D28: 0.9802 | E28: 0.8365 | F28: 13.071 | H28: 0.8193 | I28: 0.1807 | K28: 0.2308 | L28: 12,429,710.0 | M28: 2,742,177.1 | N28: 15,171,887.1 | P28: 0.2308 | Q28: 12,864,908.3 | R28: 2,746,927.3 | S28: 15,611,835.5 | U28: 0.9434 | V28: 0.3369 | W28: 1.0450 | X28: -0.2365 | Y28: 0.6448 | Z28: 0.3237 | AA28: 1.4414 | AB28: 0.9434 | AC28: -0.1342
B29: 0.2500 | C29: 642.9 | D29: 1.1408 | E29: 0.8730 | F29: 9.706 | H29: 0.8600 | I29: 0.1400 | K29: 0.2500 | L29: 13,426,915.3 | M29: 2,184,920.3 | N29: 15,611,835.5 | P29: 0.2500 | Q29: 13,584,519.8 | R29: 2,188,705.1 | S29: 15,773,224.9 | U29: 0.2874 | V29: 0.9821 | W29: 0.4528 | X29: -0.0386 | Y29: 1.8930 | Z29: 1.7917 | AA29: 0.6287 | AB29: 0.2874 | AC29: -0.2012
B30: 0.2692 | C30: 650.4 | D30: 1.1994 | E30: 0.8848 | F30: 8.581 | H30: 0.8733 | I30: 0.1267 | K30: 0.2692 | L30: 13,774,794.5 | M30: 1,998,430.5 | N30: 15,773,224.9 | P30: 0.2692 | Q30: 14,784,547.1 | R30: 2,001,892.3 | S30: 16,786,439.3 | U30: 1.9913 | V30: -0.4417 | W30: 1.2343 | X30: 2.2154 | Y30: -1.1518 | Z30: -1.2096 | AA30: 1.1744 | AB30: 1.9913 | AC30: -0.8550
B31: 0.2885 | C31: 698.1 | D31: 1.5399 | E31: 0.9382 | F31: 4.282 | H31: 0.9325 | I31: 0.0675 | K31: 0.2885 | L31: 15,653,255.3 | M31: 1,133,184.1 | N31: 16,786,439.3 | P31: 0.2885 | Q31: 15,992,828.3 | R31: 1,135,147.1 | S31: 17,127,975.3 | U31: 0.5698 | V31: 0.4597 | W31: 0.1489 | X31: 0.9432 | Y31: 1.0345 | Z31: -0.2406 | AA31: -0.0413 | AB31: 0.5698 | AC31: -0.3281
B32: 0.3077 | C32: 713.3 | D32: 1.6532 | E32: 0.9509 | F32: 3.293 | H32: 0.9465 | I32: 0.0535 | K32: 0.3077 | L32: 16,211,303.3 | M32: 916,672.1 | N32: 17,127,975.3 | P32: 0.3077 | Q32: 16,419,178.5 | R32: 918,260.0 | S32: 17,337,438.5 | U32: 0.3183 | V32: -0.7890 | W32: 2.1431 | X32: -0.1179 | Y32: 1.6503 | Z32: 0.2064 | AA32: -0.7875 | AB32: 0.3183 | AC32: 0.3854
B33: 0.3269 | C33: 722.4 | D33: 1.7274 | E33: 0.9579 | F33: 2.738 | H33: 0.9543 | I33: 0.0457 | K33: 0.3269 | L33: 16,545,655.7 | M33: 791,782.7 | N33: 17,337,438.5 | P33: 0.3269 | Q33: 16,386,083.1 | R33: 793,154.3 | S33: 17,179,237.3 | U33: -0.3288 | V33: -0.8818 | W33: 0.7676 | X33: -1.4435 | Y33: 0.6199 | Z33: 0.7054 | AA33: 0.1021 | AB33: -0.3288 | AC33: -0.3869
B34: 0.3462 | C34: 715.4 | D34: 1.6931 | E34: 0.9548 | F34: 2.905 | H34: 0.9509 | I34: 0.0491 | K34: 0.3462 | L34: 16,336,091.7 | M34: 843,145.6 | N34: 17,179,237.3 | P34: 0.3462 | Q34: 16,696,065.1 | R34: 844,606.2 | S34: 17,540,671.2 | U34: 0.5795 | V34: -2.3387 | W34: 0.3280 | X34: 0.0864 | Y34: 0.5435 | Z34: 0.0910 | AA34: 0.0471 | AB34: 0.5795 | AC34: 1.0144
B35: 0.3654 | C35: 731.2 | D35: 1.8163 | E35: 0.9653 | F35: 2.147 | H35: 0.9625 | I35: 0.0375 | K35: 0.3654 | L35: 16,883,101.9 | M35: 657,569.4 | N35: 17,540,671.2 | P35: 0.3654 | Q35: 16,751,587.9 | R35: 658,708.5 | S35: 17,410,296.3 | U35: -0.2748 | V35: -0.5124 | W35: 0.1354 | X35: -0.7145 | Y35: 0.3982 | Z35: -0.5822 | AA35: -1.5617 | AB35: -0.2748 | AC35: -1.2266
B36: 0.3846 | C36: 725.5 | D36: 1.7927 | E36: 0.9635 | F36: 2.225 | H36: 0.9605 | I36: 0.0395 | K36: 0.3846 | L36: 16,723,351.8 | M36: 686,944.6 | N36: 17,410,296.3 | P36: 0.3846 | Q36: 16,530,028.2 | R36: 688,134.5 | S36: 17,218,162.7 | U36: -0.3846 | V36: 0.5214 | W36: -0.4647 | X36: -0.2081 | Y36: -0.1210 | Z36: -1.1020 | AA36: -1.7928 | AB36: -0.3846 | AC36: -2.3271
B37: 0.4038 | C37: 717.1 | D37: 1.7491 | E37: 0.9599 | F37: 2.412 | H37: 0.9566 | I37: 0.0434 | K37: 0.4038 | L37: 16,471,614.8 | M37: 746,547.9 | N37: 17,218,162.7 | P37: 0.4038 | Q37: 16,921,238.2 | R37: 747,841.1 | S37: 17,669,079.3 | U37: 0.7276 | V37: 0.0878 | W37: 2.1762 | X37: 0.7736 | Y37: 0.8454 | Z37: 0.7275 | AA37: -0.9377 | AB37: 0.7276 | AC37: 0.0045
B38: 0.4231 | C38: 736.7 | D38: 1.9075 | E38: 0.9718 | F38: 1.623 | H38: 0.9696 | I38: 0.0304 | K38: 0.4231 | L38: 17,132,591.0 | M38: 536,488.3 | N38: 17,669,079.3 | P38: 0.4231 | Q38: 17,128,167.8 | R38: 537,417.6 | S38: 17,665,585.4 | U38: -0.0567 | V38: 1.2871 | W38: 0.8770 | X38: -0.4688 | Y38: 0.5978 | Z38: -0.2958 | AA38: -1.2723 | AB38: -0.0567 | AC38: -0.2544
B39: 0.4423 | C39: 736.5 | D39: 1.9263 | E39: 0.9730 | F39: 1.517 | H39: 0.9710 | I39: 0.0290 | K39: 0.4423 | L39: 17,152,645.9 | M39: 512,939.5 | N39: 17,665,585.4 | P39: 0.4423 | Q39: 16,682,512.3 | R39: 513,828.1 | S39: 17,196,340.4 | U39: -0.8509 | V39: 1.1537 | W39: -0.6987 | X39: -2.1108 | Y39: 1.5386 | Z39: -1.4759 | AA39: -0.0211 | AB39: -0.8509 | AC39: 1.0842
B40: 0.4615 | C40: 716.3 | D40: 1.7961 | E40: 0.9638 | F40: 2.027 | H40: 0.9610 | I40: 0.0390 | K40: 0.4615 | L40: 16,526,460.2 | M40: 669,880.2 | N40: 17,196,340.4 | P40: 0.4615 | Q40: 16,211,804.2 | R40: 671,040.6 | S40: 16,882,844.8 | U40: -0.6037 | V40: -1.0401 | W40: 0.3984 | X40: -0.4912 | Y40: 0.5182 | Z40: 1.6379 | AA40: 0.4785 | AB40: -0.6037 | AC40: -0.6773
B41: 0.4808 | C41: 702.7 | D41: 1.7095 | E41: 0.9563 | F41: 2.422 | H41: 0.9530 | I41: 0.0470 | K41: 0.4808 | L41: 16,089,897.7 | M41: 792,947.2 | N41: 16,882,844.8 | P41: 0.4808 | Q41: 15,759,851.2 | R41: 794,320.8 | S41: 16,554,172.0 | U41: -0.6471 | V41: 2.2940 | W41: -0.0029 | X41: 0.7639 | Y41: -1.6847 | Z41: -0.7644 | AA41: 0.5285 | AB41: -0.6471 | AC41: 0.0757
B42: 0.5000 | C42: 688.3 | D42: 1.6116 | E42: 0.9465 | F42: 2.947 | H42: 0.9424 | I42: 0.0576 | K42: 0.5000 | L42: 15,601,287.9 | M42: 952,884.1 | N42: 16,554,172.0 | P42: 0.5000 | Q42: 14,940,166.5 | R42: 954,534.7 | S42: 15,894,701.2 | U42: -1.2982 | V42: -0.7459 | W42: 0.2161 | X42: 0.1284 | Y42: -1.2597 | Z42: 0.2628 | AA42: -1.5100 | AB42: -1.2982 | AC42: 1.0699
B43: 0.5192 | C43: 659.1 | D43: 1.3803 | E43: 0.9162 | F43: 4.702 | H43: 0.9098 | I43: 0.0902 | K43: 0.5192 | L43: 14,460,307.9 | M43: 1,434,393.3 | N43: 15,894,701.2 | P43: 0.5192 | Q43: 14,038,009.1 | R43: 1,436,878.0 | S43: 15,474,887.1 | U43: -0.9041 | V43: 0.0417 | W43: -0.3038 | X43: 0.6528 | Y43: 1.4631 | Z43: -0.8798 | AA43: -0.4789 | AB43: -0.9041 | AC43: 0.0107
B44: 0.5385 | C44: 639.9 | D44: 1.2205 | E44: 0.8889 | F44: 6.294 | H44: 0.8802 | I44: 0.1198 | K44: 0.5385 | L44: 13,621,000.2 | M44: 1,853,887.0 | N44: 15,474,887.1 | P44: 0.5385 | Q44: 13,036,407.9 | R44: 1,857,098.4 | S44: 14,893,506.3 | U44: -1.3145 | V44: -0.5453 | W44: 0.2404 | X44: 0.1961 | Y44: 1.9492 | Z44: -0.5557 | AA44: 0.3652 | AB44: -1.3145 | AC44: 0.8238
B45: 0.5577 | C45: 612.4 | D45: 0.9689 | E45: 0.8337 | F45: 9.730 | H45: 0.8207 | I45: 0.1793 | K45: 0.5577 | L45: 12,222,438.8 | M45: 2,671,067.5 | N45: 14,893,506.3 | P45: 0.5577 | Q45: 11,986,249.0 | R45: 2,675,694.5 | S45: 14,661,943.5 | U45: -0.6121 | V45: 0.1611 | W45: -0.3648 | X45: -0.3369 | Y45: -1.4035 | Z45: -0.6729 | AA45: 0.0842 | AB45: -0.6121 | AC45: -0.8466
B46: 0.5769 | C46: 600.6 | D46: 0.8563 | E46: 0.8041 | F46: 11.494 | H46: 0.7890 | I46: 0.2110 | K46: 0.5769 | L46: 11,568,055.4 | M46: 3,093,888.1 | N46: 14,661,943.5 | P46: 0.5769 | Q46: 11,503,838.9 | R46: 3,099,247.5 | S46: 14,603,086.5 | U46: -0.2098 | V46: 1.1304 | W46: 0.6397 | X46: 0.9601 | Y46: 0.5564 | Z46: 0.8785 | AA46: 1.0350 | AB46: -0.2098 | AC46: -0.7274
B47: 0.5962 | C47: 597.2 | D47: 0.8267 | E47: 0.7958 | F47: 11.761 | H47: 0.7804 | I47: 0.2196 | K47: 0.5962 | L47: 11,396,810.5 | M47: 3,206,275.9 | N47: 14,603,086.5 | P47: 0.5962 | Q47: 11,997,852.7 | R47: 3,211,830.0 | S47: 15,209,682.8 | U47: 1.4332 | V47: -0.4383 | W47: -0.1785 | X47: 0.7844 | Y47: 0.2533 | Z47: -2.9948 | AA47: -0.7521 | AB47: 1.4332 | AC47: -0.4007
B48: 0.6154 | C48: 628.7 | D48: =+(LN(C48/$D$4)+($D$6+$D$8^2/2)*($D$5-B48))/($D$8*(($D$5-B48)^0.5)) -> 1.1636 | E48: 0.8777 | F48: =[1]!PutBS(C48,$D$4,$D$5-B48,$D$6,$D$8) -> 6.308 | H48: 0.8690 | I48: 0.1310 | K48: 0.6154 | L48: 13,217,045.7 | M48: 1,992,637.1 | N48: 15,209,682.8 | P48: 0.6154 | Q48: =+L48/C48*C49 -> 12,585,869.5 | R48: 1,996,088.9 | S48: 14,581,958.4 | U48: -1.4607 | V48: -1.3709 | W48: 0.9654 | X48: -1.6841 | Y48: 0.0728 | Z48: -1.0405 | AA48: -0.7998 | AB48: -1.4607 | AC48: -0.2395
B49: 0.6346 | C49: 598.7 | D49: 0.8546 | E49: 0.8036 | F49: 10.621 | H49: 0.7896 | I49: 0.2104 | K49: 0.6346 | L49: =+H49*(S48) -> 11,513,987.1 | M49: =+I49*(S48) -> 3,067,971.3 | N49: 14,581,958.4 | P49: 0.6346 | Q49: 11,338,446.9 | R49: =+M49*EXP($D$6/52) -> 3,073,285.9 | S49: 14,411,732.7 | U49: -0.4924 | V49: -1.3109 | W49: 0.7378 | X49: 0.2395 | Y49: -0.2005 | Z49: 2.1469 | AA49: -1.6200 | AB49: -0.4924 | AC49: -2.4320
B50: 0.6538 | C50: 589.6 | D50: 0.7577 | E50: 0.7757 | F50: 12.083 | H50: 0.7601 | I50: 0.2399 | K50: 0.6538 | L50: 10,954,491.6 | M50: 3,457,241.2 | N50: 14,411,732.7 | P50: 0.6538 | Q50: 10,872,209.7 | R50: 3,463,230.0 | S50: 14,335,439.8 | U50: -0.2667 | V50: 0.5796 | W50: -0.5242 | X50: 0.4586 | Y50: 0.8402 | Z50: -0.2321 | AA50: 0.0502 | AB50: -0.2667 | AC50: -0.8990
B51: 0.6731 | C51: 585.1 | D51: 0.7106 | E51: 0.7613 | F51: 12.623 | H51: 0.7453 | I51: 0.2547 | K51: 0.6731 | L51: 10,683,669.9 | M51: 3,651,769.9 | N51: 14,335,439.8 | P51: 0.6731 | Q51: 10,842,670.1 | R51: 3,658,095.7 | S51: 14,500,765.8 | U51: 0.3769 | V51: 1.8146 | W51: 0.9620 | X51: 1.9957 | Y51: 0.3749 | Z51: 1.5586 | AA51: 0.5193 | AB51: 0.3769 | AC51: 0.6250
B52: 0.6923 | C52: 593.9 | D52: 0.8222 | E52: 0.7945 | F52: 10.188 | H52: 0.7811 | I52: 0.2189 | K52: 0.6923 | L52: 11,326,826.0 | M52: 3,173,939.8 | N52: 14,500,765.8 | P52: 0.6923 | Q52: 10,938,600.0 | R52: 3,179,438.0 | S52: 14,118,037.9 | U52: -1.0552 | V52: -1.0861 | W52: 1.4689 | X52: -2.1252 | Y52: -0.4544 | Z52: -0.3155 | AA52: -1.1215 | AB52: -1.0552 | AC52: 0.8171
B53: 0.7115 | C53: 573.5 | D53: 0.5721 | E53: 0.7164 | F53: 14.594 | H53: 0.6986 | I53: 0.3014 | K53: 0.7115 | L53: 9,862,608.7 | M53: 4,255,429.3 | N53: 14,118,037.9 | P53: 0.7115 | Q53: 9,459,045.3 | R53: 4,262,800.8 | S53: 13,721,846.1 | U53: -1.2543 | V53: 0.2016 | W53: 1.1428 | X53: 2.0205 | Y53: -0.6042 | Z53: 0.4986 | AA53: -0.7180 | AB53: -1.2543 | AC53: 0.9101
B54: 0.7308 | C54: 550.0 | D54: 0.2521 | E54: 0.5995 | F54: 21.995 | H54: 0.5765 | I54: 0.4235 | K54: 0.7308 | L54: 7,910,113.9 | M54: 5,811,732.2 | N54: 13,721,846.1 | P54: 0.7308 | Q54: 7,725,938.0 | R54: 5,821,799.7 | S54: 13,547,737.7 | U54: -0.7288 | V54: 0.7558 | W54: 1.2339 | X54: -0.9929 | Y54: -1.4420 | Z54: 0.5798 | AA54: -0.2673 | AB54: -0.7288 | AC54: 0.3447
B55: 0.7500 | C55: 537.2 | D55: 0.0545 | E55: 0.5217 | F55: 27.057 | H55: 0.4967 | I55: 0.5033 | K55: 0.7500 | L55: 6,729,249.8 | M55: 6,818,487.9 | N55: 13,547,737.7 | P55: 0.7500 | Q55: 6,653,071.5 | R55: 6,830,299.3 | S55: 13,483,370.8 | U55: -0.3776 | V55: 1.4186 | W55: -1.2256 | X55: -0.1739 | Y55: -1.4349 | Z55: 0.3553 | AA55: 0.2994 | AB55: -0.3776 | AC55: 0.5245
B56: 0.7692 | C56: 531.1 | D56: -0.0575 | E56: 0.4771 | F56: 29.566 | H56: 0.4519 | I56: 0.5481 | K56: 0.7692 | L56: 6,093,303.1 | M56: 7,390,067.7 | N56: 13,483,370.8 | P56: 0.7692 | Q56: 5,785,507.3 | R56: 7,402,869.2 | S56: 13,188,376.6 | U56: -1.5444 | V56: 1.3927 | W56: 0.4094 | X56: -0.0833 | Y56: -0.2045 | Z56: 0.8296 | AA56: -0.8299 | AB56: -1.5444 | AC56: -0.6717
B57: 0.7885 | C57: 504.3 | D57: -0.5311 | E57: 0.2977 | F57: 45.612 | H57: 0.2730 | I57: 0.7270 | K57: 0.7885 | L57: 3,600,026.8 | M57: 9,588,349.8 | N57: 13,188,376.6 | P57: 0.7885 | Q57: 3,676,887.9 | R57: 9,604,959.4 | S57: 13,281,847.4 | U57: 0.5601 | V57: -0.7842 | W57: 0.9477 | X57: -0.2994 | Y57: 1.5751 | Z57: 1.2744 | AA57: -0.5737 | AB57: 0.5601 | AC57: -0.0502
B58: 0.8077 | C58: 515.1 | D58: -0.3856 | E58: 0.3499 | F58: 38.015 | H58: 0.3258 | I58: 0.6742 | K58: 0.8077 | L58: 4,327,637.8 | M58: 8,954,209.6 | N58: 13,281,847.4 | P58: 0.8077 | Q58: 4,336,128.3 | R58: 8,969,720.6 | S58: 13,305,849.0 | U58: 0.0073 | V58: -0.9566 | W58: -1.4060 | X58: 0.4770 | Y58: -0.2942 | Z58: -1.2563 | AA58: 0.4359 | AB58: 0.0073 | AC58: -0.2475
B59: 0.8269 | C59: 516.1 | D59: -0.4101 | E59: 0.3409 | F59: 36.934 | H59: 0.3181 | I59: 0.6819 | K59: 0.8269 | L59: 4,232,692.7 | M59: 9,073,156.3 | N59: 13,305,849.0 | P59: 0.8269 | Q59: 4,479,919.6 | R59: 9,088,873.4 | S59: 13,568,793.0 | U59: 1.5882 | V59: -1.0750 | W59: 1.4466 | X59: -0.1289 | Y59: -0.1605 | Z59: -1.6367 | AA59: 1.2952 | AB59: 1.5882 | AC59: 0.1713
B60: 0.8462 | C60: 546.2 | D60: 0.1202 | E60: 0.5478 | F60: 19.441 | H60: 0.5290 | I60: 0.4710 | K60: 0.8462 | L60: 7,177,882.4 | M60: 6,390,910.6 | N60: 13,568,793.0 | P60: 0.8462 | Q60: 7,188,036.6 | R60: 6,401,981.3 | S60: 13,590,017.9 | U60: -0.0085 | V60: -1.2229 | W60: -0.1394 | X60: -0.3001 | Y60: 1.8427 | Z60: -0.4130 | AA60: 1.4151 | AB60: -0.0085 | AC60: -0.5921
B61: 0.8654 | C61: 547.0 | D61: 0.1185 | E61: 0.5471 | F61: 18.180 | H61: 0.5295 | I61: 0.4705 | K61: 0.8654 | L61: 7,196,572.4 | M61: 6,393,445.6 | N61: 13,590,017.9 | P61: 0.8654 | Q61: 7,310,914.2 | R61: 6,404,520.7 | S61: 13,715,434.9 | U61: 0.4055 | V61: 1.3917 | W61: 0.3624 | X61: 3.8417 | Y61: 1.1199 | Z61: 0.0496 | AA61: -0.7161 | AB61: 0.4055 | AC61: -0.1233
B62: 0.8846 | C62: 555.7 | D62: 0.2861 | E62: 0.6126 | F62: 13.488 | H62: 0.5981 | I62: 0.4019 | K62: 0.8846 | L62: 8,203,068.6 | M62: 5,512,366.3 | N62: 13,715,434.9 | P62: 0.8846 | Q62: 8,044,190.0 | R62: 5,521,915.2 | S62: 13,566,105.2 | U62: -0.6134 | V62: 0.6335 | W62: 0.0568 | X62: 1.1179 | Y62: -1.7944 | Z62: -1.3233 | AA62: -1.7671 | AB62: -0.6134 | AC62: 0.9213
B63: 0.9038 | C63: 544.9 | D63: 0.0311 | E63: 0.5124 | F63: 17.017 | H63: 0.4969 | I63: 0.5031 | K63: 0.9038 | L63: 6,740,613.9 | M63: 6,825,491.3 | N63: 13,566,105.2 | P63: 0.9038 | Q63: 6,660,805.5 | R63: 6,837,314.9 | S63: 13,498,120.4 | U63: -0.3928 | V63: 1.2471 | W63: 0.7505 | X63: 0.2006 | Y63: 0.4178 | Z63: 0.1975 | AA63: -1.1326 | AB63: -0.3928 | AC63: 0.2208
B64: 0.9231 | C64: 538.5 | D64: -0.1707 | E64: 0.4322 | F64: 19.175 | H64: 0.4174 | I64: 0.5826 | K64: 0.9231 | L64: 5,633,764.5 | M64: 7,864,355.9 | N64: 13,498,120.4 | P64: 0.9231 | Q64: 5,471,515.9 | R64: 7,877,979.1 | S64: 13,349,494.9 | U64: -0.8921 | V64: -1.4324 | W64: 1.3251 | X64: -0.7915 | Y64: 1.0470 | Z64: -0.9794 | AA64: -1.3239 | AB64: -0.8921 | AC64: -0.8450
B65: 0.9423 | C65: 523.0 | D65: -0.7226 | E65: 0.2350 | F65: 28.370 | H65: 0.2229 | I65: 0.7771 | K65: 0.9423 | L65: 2,975,375.2 | M65: 10,374,119.7 | N65: 13,349,494.9 | P65: 0.9423 | Q65: 2,817,203.2 | R65: 10,392,090.5 | S65: 13,209,293.6 | U65: -1.6249 | V65: 0.2242 | W65: 0.3501 | X65: -0.0805 | Y65: -0.5658 | Z65: 1.9825 | AA65: 0.2866 | AB65: -1.6249 | AC65: -0.1834
B66: 0.9615 | C66: 495.2 | D66: -2.0467 | E66: 0.0203 | F66: 53.104 | H66: 0.0184 | I66: 0.9816 | K66: 0.9615 | L66: 242,720.7 | M66: 12,966,573.0 | N66: 13,209,293.6 | P66: 0.9615 | Q66: 236,668.8 | R66: 12,989,034.6 | S66: 13,225,703.4 | U66: -0.7775 | V66: -0.4798 | W66: -0.9022 | X66: 0.1993 | Y66: 0.6423 | Z66: 0.0081 | AA66: -0.4433 | AB66: -0.7775 | AC66: -0.3316
B67: 0.9808 | C67: 482.8 | D67: -3.6900 | E67: 0.0001 | F67: 66.222 | H67: 0.0001 | I67: 0.9999 | K67: 0.9808 | L67: 1,304.2 | M67: 13,224,399.2 | N67: 13,225,703.4 | P67: 0.9808 | U67: 0.3600 | V67: 0.0277 | W67: -0.1170 | X67: 0.8225 | Y67: 0.1150 | Z67: -0.8601 | AA67: -1.0102 | AB67: 0.3600 | AC67: 0.1417

Sheet Convergenza CRR e B&S
B2: Convergenza tra modello di
B3: Black & Scholes e modello Binomiale
B5: Black & Scholes | F5: Binomiale
B7: A = | C7: 550 | F7: m | G7: T/m | H7: u | I7: d | J7: r | K7: Call CRR | L7: Call BS | M7: Put CRR | N7: Put BS
B8: K = | C8: 550 | F8: 10 | G8: =+$C$11/F8 -> 0.100 | H8: =EXP($C$9*((G8)^0.5)) -> 1.0995 | I8: =1/H8 -> 0.9095 | J8: =EXP($C$10*G8)-1 -> 0.0101 | K8: =[1]!CALLcrr($C$7,$C$8,F8,H8,I8,J8) -> 90.423 | L8: =+C13 -> 92.038 | M8: =[1]!PUTcrr($C$7,$C$8,F8,H8,I8,J8) -> 38.083 | N8: =+C14 -> 39.698
B9: sigma = | C9: 0.30 | F9: =+F8+15 -> 25 | G9: 0.040 | H9: =EXP($C$9*((G9)^0.5)) -> 1.0618 | I9: =1/H9 -> 0.9418 | J9: =EXP($C$10*G9)-1 -> 0.0040 | K9: 92.556 | L9: =+L8 -> 92.038 | M9: 40.216 | N9: =+N8 -> 39.698
B10: r = | C10: 0.10 | F10: =+F9+15 -> 40 | G10: 0.025 | H10: 1.0486 | I10: 0.9537 | J10: 0.0025 | K10: 91.630 | L10: =+L9 -> 92.038 | M10: 39.290 | N10: =+N9 -> 39.698
B11: T = | C11: 1 | F11: =+F10+5 -> 45 | G11: 0.022 | H11: 1.0457 | I11: 0.9563 | J11: 0.0022 | K11: 92.325 | L11: 92.038 | M11: 39.986 | N11: 39.698
F12: =+F11+5 -> 50 | G12: 0.020 | H12: 1.0433 | I12: 0.9585 | J12: 0.0020 | K12: 91.711 | L12: 92.038 | M12: 39.372 | N12: 39.698
B13: Call B&S | C13: =[1]!CallBS(C7,C8,C11,C10,C9) -> 92.038 | F13: 55 | G13: 0.018 | H13: 1.0413 | I13: 0.9604 | J13: 0.0018 | K13: 92.273 | L13: 92.038 | M13: 39.933 | N13: 39.698
B14: Put B&S | C14: =[1]!PutBS(C7,C8,C11,C10,C9) -> 39.698 | F14: 60 | G14: 0.017 | H14: 1.0395 | I14: 0.9620 | J14: 0.0017 | K14: 91.765 | L14: 92.038 | M14: 39.426 | N14: 39.698
F15: 65 | G15: 0.015 | H15: 1.0379 | I15: 0.9635 | J15: 0.0015 | K15: 92.237 | L15: 92.038 | M15: 39.897 | N15: 39.698
F16: 70 | G16: 0.014 | H16: 1.0365 | I16: 0.9648 | J16: 0.0014 | K16: 91.804 | L16: 92.038 | M16: 39.465 | N16: 39.698
F17: 75 | G17: 0.013 | H17: 1.0352 | I17: 0.9660 | J17: 0.0013 | K17: 92.210 | L17: 92.038 | M17: 39.871 | N17: 39.698
F18: 80 | G18: 0.013 | H18: 1.0341 | I18: 0.9670 | J18: 0.0013 | K18: 91.833 | L18: 92.038 | M18: 39.494 | N18: 39.698
F19: 85 | G19: 0.012 | H19: 1.0331 | I19: 0.9680 | J19: 0.0012 | K19: 92.190 | L19: 92.038 | M19: 39.850 | N19: 39.698
F20: 90 | G20: 0.011 | H20: 1.0321 | I20: 0.9689 | J20: 0.0011 | K20: 91.856 | L20: 92.038 | M20: 39.517 | N20: 39.698
F21: 95 | G21: 0.011 | H21: 1.0313 | I21: 0.9697 | J21: 0.0011 | K21: 92.174 | L21: 92.038 | M21: 39.834 | N21: 39.698
F22: 100 | G22: 0.010 | H22: 1.0305 | I22: 0.9704 | J22: 0.0010 | K22: 91.874 | L22: 92.038 | M22: 39.535 | N22: 39.698
F23: 105 | G23: 0.010 | H23: 1.0297 | I23: 0.9711 | J23: 0.0010 | K23: 92.161 | L23: 92.038 | M23: 39.821 | N23: 39.698
F24: 110 | G24: 0.009 | H24: 1.0290 | I24: 0.9718 | J24: 0.0009 | K24: 91.889 | L24: 92.038 | M24: 39.550 | N24: 39.698

Sheet Assicurazioni e B&S
B2: Contratti assicurativi e modello di Black & Scholes
B3: Il caso di una mista
B5: i = | C5: 0.04
B6: r = | C6: 0.05
B7: sigma = | C7: 0.20
B8: D = | C8: 100.00
A10: Età | B10: lx | C10: dx | D10: tpx | E10: t-1/1qx | F10: vCx | G10: mCx | H10: PutVita | I10: PutMorte
A12: 40 | B12: 95861 | D12: =+B12/$B$12 -> 1.0000
A13: =+A12+1 -> 41 | B13: 95692 | C13: =+B12-B13 -> 169 | D13: 0.9982 | E13: =+C13/$B$12 -> 0.0018 | F13: 0 | G13: =$C$8*EXP($C$5*(A13-$A$12)) -> 104.08 | I13: =[1]!PutBS($C$8,G13,A13-$A$12,$C$6,$C$7) -> 7.44 | K13: =+I13*E13 -> 0.013
A14: 42 | B14: 95510 | C14: =+B13-B14 -> 182 | D14: 0.9963 | E14: =+C14/$B$12 -> 0.0019 | F14: 0 | G14: 108.33 | I14: 10.17 | K14: =+I14*E14 -> 0.019
A15: 43 | B15: 95313 | C15: 197 | D15: 0.9943 | E15: 0.0021 | F15: 0 | G15: 112.75 | I15: 12.12 | K15: 0.025
A16: 44 | B16: 95100 | C16: 213 | D16: 0.9921 | E16: 0.0022 | F16: 0 | G16: 117.35 | I16: 13.66 | K16: 0.030
A17: 45 | B17: 94868 | C17: 232 | D17: 0.9896 | E17: 0.0024 | F17: 0 | G17: 122.14 | I17: 14.93 | K17: 0.036
A18: 46 | B18: 94609 | C18: 259 | D18: 0.9869 | E18: 0.0027 | F18: 0 | G18: 127.12 | I18: 16.01 | K18: 0.043
A19: 47 | B19: 94323 | C19: 286 | D19: 0.9840 | E19: 0.0030 | F19: 0 | G19: 132.31 | I19: 16.95 | K19: 0.051
A20: 48 | B20: 94003 | C20: 320 | D20: 0.9806 | E20: 0.0033 | F20: 0 | G20: 137.71 | I20: 17.78 | K20: 0.059
A21: 49 | B21: 93647 | C21: 356 | D21: 0.9769 | E21: 0.0037 | F21: 0 | G21: 143.33 | I21: 18.51 | K21: 0.069
A22: 50 | B22: 93252 | C22: 395 | D22: 0.9728 | E22: 0.0041 | F22: =+C8*EXP($C$5*(A22-A12)) -> 149.18 | G22: 149.18 | H22: =[1]!PutBS($C$8,F22,A22-A12,C6,C7) -> 19.16 | I22: 19.16 | J22: =+H22*D22 -> 18.64 | K22: 0.079
I24: Sovrappremio = | K24: =SUM(J13:K22) -> 19.07
I25: Premio = | K25: =+C8 -> 100.00
I27: Premio totale = | K27: =+K25+K24 -> 119.07

Sheet Modello di Stulz
B2: Opzioni sul massimo / minimo di
B3: due attività rischiose
B4: Il modello di Stulz
B6: Attività rischiosa 1
B8: Valore iniziale V | C8: 100 | E8: g1 | F8: =(LN(C13/C18)+(C20-0.5*C14^2)*C22)/(C14*(C22^0.5)) -> 10.2428 | H8: N(g1,g2,rVH) | I8: 0.696549
B9: volatilità sV | C9: 0.1748 | E9: g2 | F9: =(LN(C8/C18)+(C20-0.5*C9^2)*C22)/(C9*(C22^0.5)) -> 0.5145
E10: s2 | F10: =+C9^2+C14^2-2*C16*C14*C9 -> 0.0310
B11: Attività rischiosa 2
E12: a1 | F12: =+F8+C14*(C22^0.5) -> 10.26987307 | H12: N(a1,a2,a3) | I12: 0.464935
B13: Valore iniziale H | C13: 100 | E13: a2 | F13: =(LN(C8/C13)-0.5*F10*(C22^0.5))/(F10^0.5*C22^0.5) -> -0.08800599063
B14: volatilità sH | C14: 0.0121 | E14: a3 | F14: =+(C16*C9-C14)/(F10^0.5) -> -0.1341915467
B16: Correlazione tra V ed H | C16: -0.0659 | E16: b1 | F16: =+F9+C9*(C22^0.5) -> 0.9053967162 | H16: N(b1,b2,b3) | I16: 0.282037
E17: b2 | F17: =(LN(C13/C8)-0.5*F10*(C22^0.5))/(F10^0.5*C22^0.5) -> -0.08800599063
B18: Soglia minima F | C18: 100 | E18: b3 | F18: =(+C16*C14-C9)/(F10^0.5) -> -0.9976445282
B20: Tasso risk free r | C20: 0.0555 | E20: m(V,H,F,T) = | F20: =+C13*I12+C8*I16-C18*EXP(-C20*C22)*I8 -> 21.92138432
B22: Durata T | C22: 5 | E22: C(V,F,T) = | F22: =[1]!CallBS(C8,C18,C22,C20,C9) -> 28.96059078
E24: C(H,F,T) = | F24: =[1]!CallBS(C13,C18,C22,C20,C14) -> 24.23244354
E26: MX(V,H,F,T) = | F26: =+F22+F24-F20 -> 31.27165001

Sheet Modello di Merton
B2: Il modello di Merton
B3: Tassi risk free stocastici
B4: dB(t, T) = B(t, T)*(a(t, T) + b(t, T)*dz2(t))
B6: prezzo dell'azione | D6: 12000.00
B7: prezzo di esercizio | D7: 11000.00
B8: prezzo dello zbc | D8: =EXP(-D10*D9) -> 0.67
B9: durata | D9: 5.00
B10: deriva zcb | D10: 0.08
B11: dev. std zbc | D11: 0.10
B12: dev. std azione | D12: 0.20
B13: correlazione | D13: 0.50
B14: v2(t, T) | D14: =+(D12^2+D11^2-2*D13*D12*D11)*D9 -> 0.15
B16: d1 | D16: =(LN(D6/D7)-LN(D8)+0.5*D14)/(((D14)^0.5)) -> 1.4511
B17: d2 | D17: =(LN(D6/D7)-LN(D8)-0.5*D14)/(((D14)^0.5)) -> 1.0638
B19: f(d1) | D19: =NORMDIST(D16,0,1,FALSE) -> 0.1392
B20: f(d2) | D20: =NORMDIST(D17,0,1,FALSE) -> 0.2266
B22: N(d1) | D22: =NORMSDIST(D16) -> 0.9266 | F22: N(-d1) | H22: =NORMSDIST(-D16) -> 0.0734
B23: N(d2) | D23: =NORMSDIST(D17) -> 0.8563 | F23: N(-d2) | H23: =NORMSDIST(-D17) -> 0.1437
B25: valore della Call | D25: =+D6*D22-D7*D8*D23 -> 4805.61 | F25: valore della Put | H25: =+D7*H23*EXP(-D9*D10)-D6*H22 -> 179.13

Sheet Modello B&S
B2: Il modello di Black & Scholes
B5: prezzo dell'azione | D5: 12000.00 | F5: B(0) | G5: =+D24*D5-D20 -> 5750.596456
B6: prezzo di esercizio | D6: 11000.00
B7: durata | D7: 5.00
B8: tasso risk free istantaneo | D8: 0.10
B9: dev.std | D9: 0.20
B11: d1 | D11: =+(LN(D5/D6)+(D8+D9^2/2)*D7)/(D9*(D7^0.5)) -> 1.5362
B12: d2 | D12: =+D11-D9*D7^0.5 -> 1.0890
B14: f(d1) | D14: =NORMDIST(D11,0,1,FALSE) -> 0.1226
B15: f(d2) | D15: =NORMDIST(D12,0,1,FALSE) -> 0.2205
B17: N(d1) | D17: =NORMSDIST(D11) -> 0.9378 | F17: N(-d1) | H17: =NORMSDIST(-D11) -> 0.0622
B18: N(d2) | D18: =NORMSDIST(D12) -> 0.8619 | F18: N(-d2) | H18: =NORMSDIST(-D12) -> 0.1381
B20: valore della Call | D20: =+D5*D17-D6*EXP(-D7*D8)*D18 -> 5502.47 | F20: valore della Put | H20: =+D6*H18*EXP(-D7*D8)-D5*H17 -> 174.31
B24: alfa = | D24: =+D17 -> 0.9378
B25: beta = | D25: =-(+D17*D5-D20) -> -5,750.5965
B28: S*N(d1) = | D28: =+D24*D5 -> 11,253.0701
B29: beta = | D29: =+D28-D20 -> 5,750.5965
B32: Sensitività | D32: Call | F32: Put
B34: Delta | D34: =+D17 -> 0.9378 | F34: =-H17 -> -0.0622
B35: Theta | D35: =+(D14*D5*D9/(2*(D7^0.5)))+D8*D6*EXP(-D8*D7)*D18 -> 640.8490 | F35: =+(D14*D5*D9/(2*(D7^0.5)))-D8*D6*EXP(-D8*D7)*H18 -> -26.3347
B36: Lambda | D36: =+D14*D5*(D7^0.5) -> 3,289.4668 | F36: =+D14*D5*(D7^0.5) -> 3,289.4668
B37: Gamma | D37: =+D14/(D5*D9*(D7^0.5)) -> 0.0000 | F37: =+D14/(D5*D9*(D7^0.5)) -> 0.0000
B38: Elasticità | D38: =+D5*D17/D20 -> 2.0451 | F38: =-D5*H17/H20 -> -4.2850
B39: vs Strike Price | D39: =-EXP(-D8*D7)*D18 -> -0.52278 | F39: =EXP(-D8*D7)*H18 -> 0.0837
B40: vs tasso risk free | D40: =D7*D6*EXP(-D8*D7)*D18 -> 28,752.9823 | F40: =-D7*D6*EXP(-D8*D7)*H18 -> -4,606.2040

Sheet Modello CRR
B2: Il modello di Cox, Ross e Rubinstein
B5: Prezzo corrente dell'azione | C5: 1,000
B6: Strike price | C6: 1,000
B8: Numero di periodi | C8: 5
B10: Fattore di rialzo | C10: 1.20
B11: Fattore di ribasso | C11: 0.90
B12: Tasso risk free (effettivo uniperiodale) | C12: 7.00%
B14: Valore CALL | C14: =[1]!CALLcrr(C5,C6,C8,C10,C11,C12) -> 306.62
B15: Valore PUT | C15: =[1]!PUTcrr(C5,C6,C8,C10,C11,C12) -> 19.61

Sheet Varianza storica
B2: Il calcolo della varianza storica
B4: epoca | C4: FTSE 100 | D4: Rend.ti
D5: istantanei
B6: 1 | C6: 2,422.7
B7: 2 | C7: 2,345.8 | D7: =LN(C7/C6) -> -0.0323
B8: 3 | C8: 2,238.4 | D8: =LN(C8/C7) -> -0.0469
B9: 4 | C9: 2,221.6 | D9: -0.0075
B10: 5 | C10: 2,117.9 | D10: -0.0478
B11: 6 | C11: 2,371.4 | D11: 0.1131
B12: 7 | C12: 2,372.0 | D12: 0.0003
B13: 8 | C13: 2,339.0 | D13: -0.0140
B14: 9 | C14: 2,166.6 | D14: -0.0766
B15: 10 | C15: 2,030.8 | D15: -0.0647
B16: 11 | C16: 2,028.0 | D16: -0.0014
B17: 12 | C17: 2,162.7 | D17: 0.0643
C19: media | D19: =AVERAGE(D7:D17) -> -0.0103
C20: varianza | D20: =VARP(D7:D17) -> 0.0029
C21: s.q.m. | D21: =+D20^0.5 -> 0.0536
